Publisher Label,Publisher URI,"Directorate code","Directorate","Service code","Service","Revenue or capital code","Revenue capital","Cost centre","Cost centre description","Bvsub Category","Bvsub description","Bvsum code","Bvsum description","Account code","Account description","Transaction No","Period","Transaction Date","Amount","Classification code","Classification description","Supplier ID","Supplier description","Company registration number","Company registration number Uri","VAT registration number"
"London Borough of Redbridge","http://opendatacommunities.org/doc/london-borough-council/redbridge","1BCENTRALPUB","Central Services to the Public","1CLOCALTAXCO","Local Tax Collection","REV","Revenue","R5760","Local Tax Collection","04-SUPPLIES","Supplies And Services","04D","Printing, stationery and general office expenses","5706","Printing","60547759","202410",31/12/2023 00:00:00,58.54,"49180","Mailing Houses","10033082","OPUS TRUST MARKETING LIMITED","03829462","http://opencorporates.com/companies/gb/03829462","232730729"
"London Borough of Redbridge","http://opendatacommunities.org/doc/london-borough-council/redbridge","1BCENTRALPUB","Central Services to the Public","1CLOCALTAXCO","Local Tax Collection","REV","Revenue","R5760","Local Tax Collection","04-SUPPLIES","Supplies And Services","04F","Communications and computing","5853","Computer Software","60546382","202410",19/12/2023 00:00:00,-352.65,"20703","Computer Systems and Software","10013046","NEC Software Solutions UK Ltd","00968498","http://opencorporates.com/companies/gb/00968498","202159745"
"London Borough of Redbridge","http://opendatacommunities.org/doc/london-borough-council/redbridge","1BCENTRALPUB","Central Services to the Public","1CLOCALTAXCO","Local Tax Collection","REV","Revenue","R5760","Local Tax Collection","04-SUPPLIES","Supplies And Services","04F","Communications and computing","5853","Computer Software","60546388","202410",19/12/2023 00:00:00,-15081.26,"20703","Computer Systems and Software","10013046","NEC Software Solutions UK Ltd","00968498","http://opencorporates.com/companies/gb/00968498","202159745"
"London Borough of Redbridge","http://opendatacommunities.org/doc/london-borough-council/redbridge","1BCENTRALPUB","Central Services to the Public","1CLOCALTAXCO","Local Tax Collection","REV","Revenue","R5760","Local Tax Collection","04-SUPPLIES","Supplies And Services","04F","Communications and computing","5853","Computer Software","60549040","202410",22/01/2024 00:00:00,1050,"20703","Computer Systems and Software","10013046","NEC Software Solutions UK Ltd","00968498","http://opencorporates.com/companies/gb/00968498","202159745"
"London Borough of Redbridge","http://opendatacommunities.org/doc/london-borough-council/redbridge","1BCENTRALPUB","Central Services to the Public","1CLOCALTAXCO","Local Tax Collection","REV","Revenue","R5760","Local Tax Collection","04-SUPPLIES","Supplies And Services","04H","Grants and subscriptions","5954","Professional Fees","60548175","202410",11/01/2024 00:00:00,198,"45170","Information Services","10035165","LoCTA Ltd","12277411","http://opencorporates.com/companies/gb/12277411","337 5006 15"
"London Borough of Redbridge","http://opendatacommunities.org/doc/london-borough-council/redbridge","1BCENTRALPUB","Central Services to the Public","1CLOCALTAXCO","Local Tax Collection","REV","Revenue","R5760","Local Tax Collection","04-SUPPLIES","Supplies And Services","04H","Grants and subscriptions","5954","Professional Fees","60547289","202410",04/01/2024 00:00:00,242.15,"20703","Computer Systems and Software","10012725","CIVICA  UK LTD","1628868","http://opencorporates.com/companies/gb/1628868","391171065"
"London Borough of Redbridge","http://opendatacommunities.org/doc/london-borough-council/redbridge","1BCENTRALPUB","Central Services to the Public","1CLOCALTAXCO","Local Tax Collection","REV","Revenue","R5760","Local Tax Collection","04-SUPPLIES","Supplies And Services","04H","Grants and subscriptions","5957","Bailiff Fees","3770227","202410",28/11/2023 00:00:00,140,"24230","Debt Collection Agencies","10017970","","",,""
"London Borough of Redbridge","http://opendatacommunities.org/doc/london-borough-council/redbridge","1BCENTRALPUB","Central Services to the Public","1CLOCALTAXCO","Local Tax Collection","REV","Revenue","R5760","Local Tax Collection","04-SUPPLIES","Supplies And Services","04H","Grants and subscriptions","5957","Bailiff Fees","3770188","202410",02/12/2023 00:00:00,75,"24230","Debt Collection Agencies","10021640","","3770985","http://opencorporates.com/companies/gb/3770985","739828088"
"London Borough of Redbridge","http://opendatacommunities.org/doc/london-borough-council/redbridge","1BCENTRALPUB","Central Services to the Public","1CLOCALTAXCO","Local Tax Collection","REV","Revenue","R5760","Local Tax Collection","04-SUPPLIES","Supplies And Services","04H","Grants and subscriptions","5957","Bailiff Fees","3770190","202410",25/11/2023 00:00:00,75,"24230","Debt Collection Agencies","10021640","","3770985","http://opencorporates.com/companies/gb/3770985","739828088"
"London Borough of Redbridge","http://opendatacommunities.org/doc/london-borough-council/redbridge","1BCENTRALPUB","Central Services to the Public","1CLOCALTAXCO","Local Tax Collection","REV","Revenue","R5760","Local Tax Collection","04-SUPPLIES","Supplies And Services","04H","Grants and subscriptions","5957","Bailiff Fees","3770186","202410",09/12/2023 00:00:00,94.08,"24230","Debt Collection Agencies","10021640","","3770985","http://opencorporates.com/companies/gb/3770985","739828088"
"London Borough of Redbridge","http://opendatacommunities.org/doc/london-borough-council/redbridge","1BCENTRALPUB","Central Services to the Public","1CLOCALTAXCO","Local Tax Collection","REV","Revenue","R5760","Local Tax Collection","04-SUPPLIES","Supplies And Services","04H","Grants and subscriptions","5957","Bailiff Fees","3770235","202410",30/11/2023 00:00:00,0,"06130","Bailiffs","10029374","REVENTUS LTD","04714602","http://opencorporates.com/companies/gb/04714602","836065524"
"London Borough of Redbridge","http://opendatacommunities.org/doc/london-borough-council/redbridge","1BCENTRALPUB","Central Services to the Public","1CLOCALTAXCO","Local Tax Collection","REV","Revenue","R5760","Local Tax Collection","04-SUPPLIES","Supplies And Services","04H","Grants and subscriptions","5957","Bailiff Fees","3770266","202410",28/12/2023 00:00:00,0,"06130","Bailiffs","10029374","REVENTUS LTD","04714602","http://opencorporates.com/companies/gb/04714602","836065524"
"London Borough of Redbridge","http://opendatacommunities.org/doc/london-borough-council/redbridge","1BCENTRALPUB","Central Services to the Public","1CLOCALTAXCO","Local Tax Collection","REV","Revenue","R5760","Local Tax Collection","04-SUPPLIES","Supplies And Services","04H","Grants and subscriptions","5957","Bailiff Fees","3770267","202410",04/01/2024 00:00:00,0,"06130","Bailiffs","10029374","REVENTUS LTD","04714602","http://opencorporates.com/companies/gb/04714602","836065524"
"London Borough of Redbridge","http://opendatacommunities.org/doc/london-borough-council/redbridge","1BCENTRALPUB","Central Services to the Public","1CLOCALTAXCO","Local Tax Collection","REV","Revenue","R5760","Local Tax Collection","04-SUPPLIES","Supplies And Services","04H","Grants and subscriptions","5957","Bailiff Fees","3770260","202410",30/11/2023 00:00:00,0,"06130","Bailiffs","10029374","REVENTUS LTD","04714602","http://opencorporates.com/companies/gb/04714602","836065524"
"London Borough of Redbridge","http://opendatacommunities.org/doc/london-borough-council/redbridge","1BCENTRALPUB","Central Services to the Public","1CLOCALTAXCO","Local Tax Collection","REV","Revenue","R5760","Local Tax Collection","04-SUPPLIES","Supplies And Services","04H","Grants and subscriptions","5957","Bailiff Fees","3770261","202410",14/12/2023 00:00:00,0,"06130","Bailiffs","10029374","REVENTUS LTD","04714602","http://opencorporates.com/companies/gb/04714602","836065524"
"London Borough of Redbridge","http://opendatacommunities.org/doc/london-borough-council/redbridge","1BCENTRALPUB","Central Services to the Public","1CLOCALTAXCO","Local Tax Collection","REV","Revenue","R5760","Local Tax Collection","04-SUPPLIES","Supplies And Services","04H","Grants and subscriptions","5957","Bailiff Fees","3770262","202410",30/11/2023 00:00:00,0,"06130","Bailiffs","10029374","REVENTUS LTD","04714602","http://opencorporates.com/companies/gb/04714602","836065524"
"London Borough of Redbridge","http://opendatacommunities.org/doc/london-borough-council/redbridge","1BCENTRALPUB","Central Services to the Public","1CLOCALTAXCO","Local Tax Collection","REV","Revenue","R5760","Local Tax Collection","04-SUPPLIES","Supplies And Services","04H","Grants and subscriptions","5957","Bailiff Fees","3770263","202410",07/12/2023 00:00:00,0,"06130","Bailiffs","10029374","REVENTUS LTD","04714602","http://opencorporates.com/companies/gb/04714602","836065524"
"London Borough of Redbridge","http://opendatacommunities.org/doc/london-borough-council/redbridge","1BCENTRALPUB","Central Services to the Public","1CLOCALTAXCO","Local Tax Collection","REV","Revenue","R5760","Local Tax Collection","04-SUPPLIES","Supplies And Services","04H","Grants and subscriptions","5957","Bailiff Fees","3770264","202410",14/12/2023 00:00:00,0,"06130","Bailiffs","10029374","REVENTUS LTD","04714602","http://opencorporates.com/companies/gb/04714602","836065524"
"London Borough of Redbridge","http://opendatacommunities.org/doc/london-borough-council/redbridge","1BCENTRALPUB","Central Services to the Public","1CLOCALTAXCO","Local Tax Collection","REV","Revenue","R5760","Local Tax Collection","04-SUPPLIES","Supplies And Services","04H","Grants and subscriptions","5957","Bailiff Fees","3770265","202410",21/12/2023 00:00:00,0,"06130","Bailiffs","10029374","REVENTUS LTD","04714602","http://opencorporates.com/companies/gb/04714602","836065524"
"London Borough of Redbridge","http://opendatacommunities.org/doc/london-borough-council/redbridge","1BCENTRALPUB","Central Services to the Public","1CLOCALTAXCO","Local Tax Collection","REV","Revenue","R5760","Local Tax Collection","04-SUPPLIES","Supplies And Services","04H","Grants and subscriptions","5957","Bailiff Fees","3770254","202410",28/12/2023 00:00:00,0,"06130","Bailiffs","10029374","REVENTUS LTD","04714602","http://opencorporates.com/companies/gb/04714602","836065524"
"London Borough of Redbridge","http://opendatacommunities.org/doc/london-borough-council/redbridge","1BCENTRALPUB","Central Services to the Public","1CLOCALTAXCO","Local Tax Collection","REV","Revenue","R5760","Local Tax Collection","04-SUPPLIES","Supplies And Services","04H","Grants and subscriptions","5957","Bailiff Fees","3770255","202410",04/01/2024 00:00:00,0,"06130","Bailiffs","10029374","REVENTUS LTD","04714602","http://opencorporates.com/companies/gb/04714602","836065524"
"London Borough of Redbridge","http://opendatacommunities.org/doc/london-borough-council/redbridge","1BCENTRALPUB","Central Services to the Public","1CLOCALTAXCO","Local Tax Collection","REV","Revenue","R5760","Local Tax Collection","04-SUPPLIES","Supplies And Services","04H","Grants and subscriptions","5957","Bailiff Fees","3770256","202410",07/12/2023 00:00:00,0,"06130","Bailiffs","10029374","REVENTUS LTD","04714602","http://opencorporates.com/companies/gb/04714602","836065524"
"London Borough of Redbridge","http://opendatacommunities.org/doc/london-borough-council/redbridge","1BCENTRALPUB","Central Services to the Public","1CLOCALTAXCO","Local Tax Collection","REV","Revenue","R5760","Local Tax Collection","04-SUPPLIES","Supplies And Services","04H","Grants and subscriptions","5957","Bailiff Fees","3770257","202410",21/12/2023 00:00:00,0,"06130","Bailiffs","10029374","REVENTUS LTD","04714602","http://opencorporates.com/companies/gb/04714602","836065524"
"London Borough of Redbridge","http://opendatacommunities.org/doc/london-borough-council/redbridge","1BCENTRALPUB","Central Services to the Public","1CLOCALTAXCO","Local Tax Collection","REV","Revenue","R5760","Local Tax Collection","04-SUPPLIES","Supplies And Services","04H","Grants and subscriptions","5957","Bailiff Fees","3770258","202410",28/12/2023 00:00:00,0,"06130","Bailiffs","10029374","REVENTUS LTD","04714602","http://opencorporates.com/companies/gb/04714602","836065524"
"London Borough of Redbridge","http://opendatacommunities.org/doc/london-borough-council/redbridge","1BCENTRALPUB","Central Services to the Public","1CLOCALTAXCO","Local Tax Collection","REV","Revenue","R5760","Local Tax Collection","04-SUPPLIES","Supplies And Services","04H","Grants and subscriptions","5957","Bailiff Fees","3770259","202410",04/01/2024 00:00:00,0,"06130","Bailiffs","10029374","REVENTUS LTD","04714602","http://opencorporates.com/companies/gb/04714602","836065524"
"London Borough of Redbridge","http://opendatacommunities.org/doc/london-borough-council/redbridge","1BCENTRALPUB","Central Services to the Public","1CLOCALTAXCO","Local Tax Collection","REV","Revenue","R5760","Local Tax Collection","04-SUPPLIES","Supplies And Services","04H","Grants and subscriptions","5957","Bailiff Fees","3770248","202410",28/12/2023 00:00:00,0,"06130","Bailiffs","10029374","REVENTUS LTD","04714602","http://opencorporates.com/companies/gb/04714602","836065524"
"London Borough of Redbridge","http://opendatacommunities.org/doc/london-borough-council/redbridge","1BCENTRALPUB","Central Services to the Public","1CLOCALTAXCO","Local Tax Collection","REV","Revenue","R5760","Local Tax Collection","04-SUPPLIES","Supplies And Services","04H","Grants and subscriptions","5957","Bailiff Fees","3770249","202410",04/01/2024 00:00:00,0,"06130","Bailiffs","10029374","REVENTUS LTD","04714602","http://opencorporates.com/companies/gb/04714602","836065524"
"London Borough of Redbridge","http://opendatacommunities.org/doc/london-borough-council/redbridge","1BCENTRALPUB","Central Services to the Public","1CLOCALTAXCO","Local Tax Collection","REV","Revenue","R5760","Local Tax Collection","04-SUPPLIES","Supplies And Services","04H","Grants and subscriptions","5957","Bailiff Fees","3770250","202410",30/11/2023 00:00:00,0,"06130","Bailiffs","10029374","REVENTUS LTD","04714602","http://opencorporates.com/companies/gb/04714602","836065524"
"London Borough of Redbridge","http://opendatacommunities.org/doc/london-borough-council/redbridge","1BCENTRALPUB","Central Services to the Public","1CLOCALTAXCO","Local Tax Collection","REV","Revenue","R5760","Local Tax Collection","04-SUPPLIES","Supplies And Services","04H","Grants and subscriptions","5957","Bailiff Fees","3770251","202410",07/12/2023 00:00:00,0,"06130","Bailiffs","10029374","REVENTUS LTD","04714602","http://opencorporates.com/companies/gb/04714602","836065524"
"London Borough of Redbridge","http://opendatacommunities.org/doc/london-borough-council/redbridge","1BCENTRALPUB","Central Services to the Public","1CLOCALTAXCO","Local Tax Collection","REV","Revenue","R5760","Local Tax Collection","04-SUPPLIES","Supplies And Services","04H","Grants and subscriptions","5957","Bailiff Fees","3770252","202410",14/12/2023 00:00:00,0,"06130","Bailiffs","10029374","REVENTUS LTD","04714602","http://opencorporates.com/companies/gb/04714602","836065524"
"London Borough of Redbridge","http://opendatacommunities.org/doc/london-borough-council/redbridge","1BCENTRALPUB","Central Services to the Public","1CLOCALTAXCO","Local Tax Collection","REV","Revenue","R5760","Local Tax Collection","04-SUPPLIES","Supplies And Services","04H","Grants and subscriptions","5957","Bailiff Fees","3770253","202410",21/12/2023 00:00:00,0,"06130","Bailiffs","10029374","REVENTUS LTD","04714602","http://opencorporates.com/companies/gb/04714602","836065524"
"London Borough of Redbridge","http://opendatacommunities.org/doc/london-borough-council/redbridge","1BCENTRALPUB","Central Services to the Public","1CLOCALTAXCO","Local Tax Collection","REV","Revenue","R5760","Local Tax Collection","04-SUPPLIES","Supplies And Services","04H","Grants and subscriptions","5957","Bailiff Fees","3770243","202410",04/01/2024 00:00:00,0,"06130","Bailiffs","10029374","REVENTUS LTD","04714602","http://opencorporates.com/companies/gb/04714602","836065524"
"London Borough of Redbridge","http://opendatacommunities.org/doc/london-borough-council/redbridge","1BCENTRALPUB","Central Services to the Public","1CLOCALTAXCO","Local Tax Collection","REV","Revenue","R5760","Local Tax Collection","04-SUPPLIES","Supplies And Services","04H","Grants and subscriptions","5957","Bailiff Fees","3770244","202410",30/11/2023 00:00:00,0,"06130","Bailiffs","10029374","REVENTUS LTD","04714602","http://opencorporates.com/companies/gb/04714602","836065524"
"London Borough of Redbridge","http://opendatacommunities.org/doc/london-borough-council/redbridge","1BCENTRALPUB","Central Services to the Public","1CLOCALTAXCO","Local Tax Collection","REV","Revenue","R5760","Local Tax Collection","04-SUPPLIES","Supplies And Services","04H","Grants and subscriptions","5957","Bailiff Fees","3770245","202410",07/12/2023 00:00:00,0,"06130","Bailiffs","10029374","REVENTUS LTD","04714602","http://opencorporates.com/companies/gb/04714602","836065524"
"London Borough of Redbridge","http://opendatacommunities.org/doc/london-borough-council/redbridge","1BCENTRALPUB","Central Services to the Public","1CLOCALTAXCO","Local Tax Collection","REV","Revenue","R5760","Local Tax Collection","04-SUPPLIES","Supplies And Services","04H","Grants and subscriptions","5957","Bailiff Fees","3770246","202410",14/12/2023 00:00:00,0,"06130","Bailiffs","10029374","REVENTUS LTD","04714602","http://opencorporates.com/companies/gb/04714602","836065524"
"London Borough of Redbridge","http://opendatacommunities.org/doc/london-borough-council/redbridge","1BCENTRALPUB","Central Services to the Public","1CLOCALTAXCO","Local Tax Collection","REV","Revenue","R5760","Local Tax Collection","04-SUPPLIES","Supplies And Services","04H","Grants and subscriptions","5957","Bailiff Fees","3770247","202410",21/12/2023 00:00:00,0,"06130","Bailiffs","10029374","REVENTUS LTD","04714602","http://opencorporates.com/companies/gb/04714602","836065524"
"London Borough of Redbridge","http://opendatacommunities.org/doc/london-borough-council/redbridge","1BCENTRALPUB","Central Services to the Public","1CLOCALTAXCO","Local Tax Collection","REV","Revenue","R5760","Local Tax Collection","04-SUPPLIES","Supplies And Services","04H","Grants and subscriptions","5957","Bailiff Fees","3770236","202410",14/12/2023 00:00:00,0,"06130","Bailiffs","10029374","REVENTUS LTD","04714602","http://opencorporates.com/companies/gb/04714602","836065524"
"London Borough of Redbridge","http://opendatacommunities.org/doc/london-borough-council/redbridge","1BCENTRALPUB","Central Services to the Public","1CLOCALTAXCO","Local Tax Collection","REV","Revenue","R5760","Local Tax Collection","04-SUPPLIES","Supplies And Services","04H","Grants and subscriptions","5957","Bailiff Fees","3770237","202410",14/12/2023 00:00:00,0,"06130","Bailiffs","10029374","REVENTUS LTD","04714602","http://opencorporates.com/companies/gb/04714602","836065524"
"London Borough of Redbridge","http://opendatacommunities.org/doc/london-borough-council/redbridge","1BCENTRALPUB","Central Services to the Public","1CLOCALTAXCO","Local Tax Collection","REV","Revenue","R5760","Local Tax Collection","04-SUPPLIES","Supplies And Services","04H","Grants and subscriptions","5957","Bailiff Fees","3770238","202410",21/12/2023 00:00:00,0,"06130","Bailiffs","10029374","REVENTUS LTD","04714602","http://opencorporates.com/companies/gb/04714602","836065524"
"London Borough of Redbridge","http://opendatacommunities.org/doc/london-borough-council/redbridge","1BCENTRALPUB","Central Services to the Public","1CLOCALTAXCO","Local Tax Collection","REV","Revenue","R5760","Local Tax Collection","04-SUPPLIES","Supplies And Services","04H","Grants and subscriptions","5957","Bailiff Fees","3770239","202410",30/11/2023 00:00:00,0,"06130","Bailiffs","10029374","REVENTUS LTD","04714602","http://opencorporates.com/companies/gb/04714602","836065524"
"London Borough of Redbridge","http://opendatacommunities.org/doc/london-borough-council/redbridge","1BCENTRALPUB","Central Services to the Public","1CLOCALTAXCO","Local Tax Collection","REV","Revenue","R9005","Registrar Service","04-SUPPLIES","Supplies And Services","04B","Catering","5602","Refreshments","80047063","202410",25/01/2024 00:00:00,3.11,"84070","Water Suppliers - Bottled","10012869","EDEN SPRINGS (UK) LTD (NATURE SPRING)","04063744","http://opencorporates.com/companies/gb/04063744","232160411"
"London Borough of Redbridge","http://opendatacommunities.org/doc/london-borough-council/redbridge","1BCENTRALPUB","Central Services to the Public","1CLOCALTAXCO","Local Tax Collection","REV","Revenue","R9005","Registrar Service","04-SUPPLIES","Supplies And Services","04B","Catering","5602","Refreshments","80047064","202410",25/01/2024 00:00:00,6.22,"84070","Water Suppliers - Bottled","10012869","EDEN SPRINGS (UK) LTD (NATURE SPRING)","04063744","http://opencorporates.com/companies/gb/04063744","232160411"
"London Borough of Redbridge","http://opendatacommunities.org/doc/london-borough-council/redbridge","1BCENTRALPUB","Central Services to the Public","1CREGBDM","Reg. of Births, Deaths & Marriages","REV","Revenue","R3970","Corporate Policy and Performance","04-SUPPLIES","Supplies And Services","04D","Printing, stationery and general office expenses","5708","Advertising Publicity and Promotions","60548928","202410",19/01/2024 00:00:00,340.2,"02100","Advertising Services","10010344","LBOX COMMUNICATIONS","4312971","http://opencorporates.com/companies/gb/4312971","791597182"
"London Borough of Redbridge","http://opendatacommunities.org/doc/london-borough-council/redbridge","1BCENTRALPUB","Central Services to the Public","1CREGBDM","Reg. of Births, Deaths & Marriages","REV","Revenue","R3974","Strategy Director","04-SUPPLIES","Supplies And Services","04K","Miscellaneous expenses","6280","Miscellaneous Expenditure","60549941","202410",30/01/2024 00:00:00,2600,"96234","Gift Services and Gift Packs","10035838","WONDE LTD","08645640","http://opencorporates.com/companies/gb/08645640","230 6430 47"
"London Borough of Redbridge","http://opendatacommunities.org/doc/london-borough-council/redbridge","1BCENTRALPUB","Central Services to the Public","1CTRADSURDEF","Trading Account Surpluses & Deficits","REV","Revenue","R3971","Local London Director","01-EMPLOYEES","Employees","01B","Indirect employee expenses","2403","External Training","60548020","202410",15/12/2023 00:00:00,96.82,"79980","Training Services","10037058","FOCAL POINT TRAINING & CONSULTANCY LTD","4352651","http://opencorporates.com/companies/gb/4352651","788073780"
"London Borough of Redbridge","http://opendatacommunities.org/doc/london-borough-council/redbridge","1BCENTRALPUB","Central Services to the Public","1CTRADSURDEF","Trading Account Surpluses & Deficits","REV","Revenue","R3971","Local London Director","01-EMPLOYEES","Employees","01B","Indirect employee expenses","2403","External Training","60548394","202410",17/11/2023 00:00:00,60.9,"79980","Training Services","10037058","FOCAL POINT TRAINING & CONSULTANCY LTD","4352651","http://opencorporates.com/companies/gb/4352651","788073780"
"London Borough of Redbridge","http://opendatacommunities.org/doc/london-borough-council/redbridge","1BCENTRALPUB","Central Services to the Public","1CTRADSURDEF","Trading Account Surpluses & Deficits","REV","Revenue","R3971","Local London Director","04-SUPPLIES","Supplies And Services","04F","Communications and computing","5858","Phones","60547047","202410",01/01/2024 00:00:00,113,"76520","Telecommunications Equipment and Systems","10023784","DAISY CORPORATE SERVICES TRADING LTD","4145329","http://opencorporates.com/companies/gb/4145329","703444170"
"London Borough of Redbridge","http://opendatacommunities.org/doc/london-borough-council/redbridge","1BCENTRALPUB","Central Services to the Public","1CTRADSURDEF","Trading Account Surpluses & Deficits","REV","Revenue","R5753","Scanning","05-THIRD","Third Party Payments","05A","Independent units within the council","6513","Agency & Contracted Services","60548194","202410",13/07/2021 00:00:00,-2.85,"35240","Financial Services","10033865","NORTHERN HOUSING CONSORTIUM","",,"459790295"
"London Borough of Redbridge","http://opendatacommunities.org/doc/london-borough-council/redbridge","1BCENTRALPUB","Central Services to the Public","1CTRADSURDEF","Trading Account Surpluses & Deficits","REV","Revenue","R5770","Income Assessment","04-SUPPLIES","Supplies And Services","04H","Grants and subscriptions","5954","Professional Fees","60549333","202410",11/11/2022 00:00:00,18,"48582","Loans and Debt - Management","10016193","MOORCROFT DEBT RECOVERY LTD","1703704","http://opencorporates.com/companies/gb/1703704","453109273"
"London Borough of Redbridge","http://opendatacommunities.org/doc/london-borough-council/redbridge","1BCENTRALPUB","Central Services to the Public","1CTRADSURDEF","Trading Account Surpluses & Deficits","REV","Revenue","R5770","Income Assessment","04-SUPPLIES","Supplies And Services","04H","Grants and subscriptions","5954","Professional Fees","60549334","202410",14/10/2022 00:00:00,15,"48582","Loans and Debt - Management","10016193","MOORCROFT DEBT RECOVERY LTD","1703704","http://opencorporates.com/companies/gb/1703704","453109273"
"London Borough of Redbridge","http://opendatacommunities.org/doc/london-borough-council/redbridge","1BCENTRALPUB","Central Services to the Public","1CTRADSURDEF","Trading Account Surpluses & Deficits","REV","Revenue","R5770","Income Assessment","04-SUPPLIES","Supplies And Services","04H","Grants and subscriptions","5954","Professional Fees","60549320","202410",16/09/2022 00:00:00,213.25,"48582","Loans and Debt - Management","10016193","MOORCROFT DEBT RECOVERY LTD","1703704","http://opencorporates.com/companies/gb/1703704","453109273"
"London Borough of Redbridge","http://opendatacommunities.org/doc/london-borough-council/redbridge","1BCORPDEM","Corporate & Democratic Core","1CCORPMGT","Corporate Management","REV","Revenue","R0029","Chief Executive","04-SUPPLIES","Supplies And Services","04E","Services","5759","Hire Of Venues","60547063","202410",03/01/2024 00:00:00,270,"64480","Religious Organisations","10024493","CITYGATES CHURCH","",,""
"London Borough of Redbridge","http://opendatacommunities.org/doc/london-borough-council/redbridge","1BCORPDEM","Corporate & Democratic Core","1CCORPMGT","Corporate Management","REV","Revenue","R0029","Chief Executive","04-SUPPLIES","Supplies And Services","04E","Services","5759","Hire Of Venues","60547062","202410",03/01/2024 00:00:00,220,"64480","Religious Organisations","10024493","CITYGATES CHURCH","",,""
"London Borough of Redbridge","http://opendatacommunities.org/doc/london-borough-council/redbridge","1BCORPDEM","Corporate & Democratic Core","1CCORPMGT","Corporate Management","REV","Revenue","R0029","Chief Executive","04-SUPPLIES","Supplies And Services","04E","Services","5759","Hire Of Venues","60547061","202410",03/01/2024 00:00:00,445,"64480","Religious Organisations","10024493","CITYGATES CHURCH","",,""
"London Borough of Redbridge","http://opendatacommunities.org/doc/london-borough-council/redbridge","1BOTHEROPI&E","Other Operating Income & Expenditure","1CELECTIONS","Elections","REV","Revenue","R9362","Electoral Registration","01-EMPLOYEES","Employees","01B","Indirect employee expenses","2403","External Training","60538698","202410",27/10/2023 00:00:00,250,"52570","National Associations","10017340","ASSOCIATION OF ELECTORAL ADMINISTRATORS","2406897","http://opencorporates.com/companies/gb/2406897","580583816"
"London Borough of Redbridge","http://opendatacommunities.org/doc/london-borough-council/redbridge","1BOTHEROPI&E","Other Operating Income & Expenditure","1CELECTIONS","Elections","REV","Revenue","R9362","Electoral Registration","04-SUPPLIES","Supplies And Services","04D","Printing, stationery and general office expenses","5705","Postage","60549226","202410",01/01/2024 00:00:00,174.3,"61820","Printers' Services and Supplies","10033190","FINANCIAL DATA MANAGEMENT PLC","2827644","http://opencorporates.com/companies/gb/2827644","690659887"
"London Borough of Redbridge","http://opendatacommunities.org/doc/london-borough-council/redbridge","1BOTHEROPI&E","Other Operating Income & Expenditure","1CELECTIONS","Elections","REV","Revenue","R9362","Electoral Registration","04-SUPPLIES","Supplies And Services","04D","Printing, stationery and general office expenses","5705","Postage","60549712","202410",15/01/2024 00:00:00,47.18,"24510","Delivery Services","10015571","ROYAL MAIL GROUP LTD","4138203","http://opencorporates.com/companies/gb/4138203","243170002"
"London Borough of Redbridge","http://opendatacommunities.org/doc/london-borough-council/redbridge","1BOTHEROPI&E","Other Operating Income & Expenditure","1CELECTIONS","Elections","REV","Revenue","R9362","Electoral Registration","04-SUPPLIES","Supplies And Services","04D","Printing, stationery and general office expenses","5705","Postage","60548717","202410",09/01/2024 00:00:00,90,"24510","Delivery Services","10015571","ROYAL MAIL GROUP LTD","4138203","http://opencorporates.com/companies/gb/4138203","243170002"
"London Borough of Redbridge","http://opendatacommunities.org/doc/london-borough-council/redbridge","1BOTHEROPI&E","Other Operating Income & Expenditure","1CELECTIONS","Elections","REV","Revenue","R9362","Electoral Registration","04-SUPPLIES","Supplies And Services","04D","Printing, stationery and general office expenses","5705","Postage","60547708","202410",18/12/2023 00:00:00,98.32,"24510","Delivery Services","10015571","ROYAL MAIL GROUP LTD","4138203","http://opencorporates.com/companies/gb/4138203","243170002"
"London Borough of Redbridge","http://opendatacommunities.org/doc/london-borough-council/redbridge","1BOTHEROPI&E","Other Operating Income & Expenditure","1CELECTIONS","Elections","REV","Revenue","R9362","Electoral Registration","04-SUPPLIES","Supplies And Services","04D","Printing, stationery and general office expenses","5705","Postage","60549874","202410",22/01/2024 00:00:00,100.2,"24510","Delivery Services","10015571","ROYAL MAIL GROUP LTD","4138203","http://opencorporates.com/companies/gb/4138203","243170002"
"London Borough of Redbridge","http://opendatacommunities.org/doc/london-borough-council/redbridge","1BOTHEROPI&E","Other Operating Income & Expenditure","1CELECTIONS","Elections","REV","Revenue","R9362","Electoral Registration","04-SUPPLIES","Supplies And Services","04D","Printing, stationery and general office expenses","5706","Printing","60549227","202410",01/01/2024 00:00:00,190.56,"61820","Printers' Services and Supplies","10033190","FINANCIAL DATA MANAGEMENT PLC","2827644","http://opencorporates.com/companies/gb/2827644","690659887"
"London Borough of Redbridge","http://opendatacommunities.org/doc/london-borough-council/redbridge","1BOTHEROPI&E","Other Operating Income & Expenditure","1CTRADSURDEF","Trading Account Surpluses & Deficits","REV","Revenue","R9001","Customer Contact Centre","04-SUPPLIES","Supplies And Services","04A","Equipment, furniture and materials","5502","Equipment Purchase","60548132","202410",11/01/2024 00:00:00,50,"54612","Orthopaedic Care Equipment","10024972","BACK CARE SOLUTIONS LTD","01607829","http://opencorporates.com/companies/gb/01607829","812525749"
"London Borough of Redbridge","http://opendatacommunities.org/doc/london-borough-council/redbridge","1BOTHEROPI&E","Other Operating Income & Expenditure","1CTRADSURDEF","Trading Account Surpluses & Deficits","REV","Revenue","R9001","Customer Contact Centre","04-SUPPLIES","Supplies And Services","04B","Catering","5602","Refreshments","80046928","202410",25/12/2023 00:00:00,15.95,"84070","Water Suppliers - Bottled","10012869","EDEN SPRINGS (UK) LTD (NATURE SPRING)","04063744","http://opencorporates.com/companies/gb/04063744","232160411"
"London Borough of Redbridge","http://opendatacommunities.org/doc/london-borough-council/redbridge","1BOTHEROPI&E","Other Operating Income & Expenditure","1CTRADSURDEF","Trading Account Surpluses & Deficits","REV","Revenue","R9001","Customer Contact Centre","05-THIRD","Third Party Payments","05H","Private contractors","6915","Contractor Payments","60549951","202410",30/01/2024 00:00:00,1777.43,"61820","Printers' Services and Supplies","10034471","ALLIED PUBLICITY SERVICES(MANCHESTER) LTD T/A APS GROUP","681528","http://opencorporates.com/companies/gb/681528","313979087"
"London Borough of Redbridge","http://opendatacommunities.org/doc/london-borough-council/redbridge","1BOTHEROPI&E","Other Operating Income & Expenditure","1CTRADSURDEF","Trading Account Surpluses & Deficits","REV","Revenue","R9001","Customer Contact Centre","05-THIRD","Third Party Payments","05H","Private contractors","6915","Contractor Payments","60549907","202410",29/01/2024 00:00:00,767.28,"45170","Information Services","10034478","VALTECH LIMITED","3127414","http://opencorporates.com/companies/gb/3127414","628656016"
"London Borough of Redbridge","http://opendatacommunities.org/doc/london-borough-council/redbridge","1BOTHEROPI&E","Other Operating Income & Expenditure","1CTRADSURDEF","Trading Account Surpluses & Deficits","REV","Revenue","R9053","Tree Management","04-SUPPLIES","Supplies And Services","04C","Clothes, uniform and laundry","5651","Protective Clothing","60547201","202410",04/01/2024 00:00:00,146.13,"62000","Protective Clothing - Industrial","10028267","BK SAFETY AND WORKWEAR LIMITED","05815362","http://opencorporates.com/companies/gb/05815362","802540175"
"London Borough of Redbridge","http://opendatacommunities.org/doc/london-borough-council/redbridge","1BOTHEROPI&E","Other Operating Income & Expenditure","1CTRADSURDEF","Trading Account Surpluses & Deficits","REV","Revenue","R9148","Tree Holding Account","02-PREMISES","Premises","02I","Grounds maintenance costs","4753","Trees / Recreational","60548582","202410",16/01/2024 00:00:00,1490,"80228","Tree Work and Forestry Services","10028678","DEAN TUCKER LTD","09178711","http://opencorporates.com/companies/gb/09178711","193245792"
"London Borough of Redbridge","http://opendatacommunities.org/doc/london-borough-council/redbridge","1BOTHEROPI&E","Other Operating Income & Expenditure","1CTRADSURDEF","Trading Account Surpluses & Deficits","REV","Revenue","R9148","Tree Holding Account","02-PREMISES","Premises","02I","Grounds maintenance costs","4753","Trees / Recreational","60547052","202410",03/01/2024 00:00:00,309.38,"80228","Tree Work and Forestry Services","10028678","DEAN TUCKER LTD","09178711","http://opencorporates.com/companies/gb/09178711","193245792"
"London Borough of Redbridge","http://opendatacommunities.org/doc/london-borough-council/redbridge","1BOTHEROPI&E","Other Operating Income & Expenditure","1CTRADSURDEF","Trading Account Surpluses & Deficits","REV","Revenue","R9148","Tree Holding Account","02-PREMISES","Premises","02I","Grounds maintenance costs","4753","Trees / Recreational","60548693","202410",17/01/2024 00:00:00,2689.83,"90043","Highway Maintenance","10012791","S H GOSS & CO LTD","",,""
"London Borough of Redbridge","http://opendatacommunities.org/doc/london-borough-council/redbridge","1BOTHEROPI&E","Other Operating Income & Expenditure","1CTRADSURDEF","Trading Account Surpluses & Deficits","REV","Revenue","R9148","Tree Holding Account","02-PREMISES","Premises","02I","Grounds maintenance costs","4753","Trees / Recreational","60547356","202410",05/01/2024 00:00:00,394.96,"90043","Highway Maintenance","10012791","S H GOSS & CO LTD","",,""
"London Borough of Redbridge","http://opendatacommunities.org/doc/london-borough-council/redbridge","1BOTHEROPI&E","Other Operating Income & Expenditure","1CTRADSURDEF","Trading Account Surpluses & Deficits","REV","Revenue","R9148","Tree Holding Account","02-PREMISES","Premises","02I","Grounds maintenance costs","4753","Trees / Recreational","60547796","202410",09/01/2024 00:00:00,195,"91569","Nurserymen - Trees, Shrubs and Bonsai","10024103","PRINCIPAL TREES LTD","07035737","http://opencorporates.com/companies/gb/07035737","980080328"
"London Borough of Redbridge","http://opendatacommunities.org/doc/london-borough-council/redbridge","1BOTHEROPI&E","Other Operating Income & Expenditure","1CTRADSURDEF","Trading Account Surpluses & Deficits","REV","Revenue","R9148","Tree Holding Account","02-PREMISES","Premises","02I","Grounds maintenance costs","4753","Trees / Recreational","60549066","202410",23/01/2024 00:00:00,2883,"91569","Nurserymen - Trees, Shrubs and Bonsai","10024103","PRINCIPAL TREES LTD","07035737","http://opencorporates.com/companies/gb/07035737","980080328"
"London Borough of Redbridge","http://opendatacommunities.org/doc/london-borough-council/redbridge","1BOTHEROPI&E","Other Operating Income & Expenditure","1CTRADSURDEF","Trading Account Surpluses & Deficits","REV","Revenue","R9148","Tree Holding Account","02-PREMISES","Premises","02I","Grounds maintenance costs","4753","Trees / Recreational","60549067","202410",23/01/2024 00:00:00,833.25,"91569","Nurserymen - Trees, Shrubs and Bonsai","10024103","PRINCIPAL TREES LTD","07035737","http://opencorporates.com/companies/gb/07035737","980080328"
"London Borough of Redbridge","http://opendatacommunities.org/doc/london-borough-council/redbridge","1BOTHEROPI&E","Other Operating Income & Expenditure","1CTRADSURDEF","Trading Account Surpluses & Deficits","REV","Revenue","R9148","Tree Holding Account","02-PREMISES","Premises","02I","Grounds maintenance costs","4753","Trees / Recreational","60549068","202410",23/01/2024 00:00:00,50.5,"91569","Nurserymen - Trees, Shrubs and Bonsai","10024103","PRINCIPAL TREES LTD","07035737","http://opencorporates.com/companies/gb/07035737","980080328"
"London Borough of Redbridge","http://opendatacommunities.org/doc/london-borough-council/redbridge","1BOTHEROPI&E","Other Operating Income & Expenditure","1CTRADSURDEF","Trading Account Surpluses & Deficits","REV","Revenue","R9148","Tree Holding Account","02-PREMISES","Premises","02I","Grounds maintenance costs","4753","Trees / Recreational","60549062","202410",23/01/2024 00:00:00,600,"91569","Nurserymen - Trees, Shrubs and Bonsai","10024103","PRINCIPAL TREES LTD","07035737","http://opencorporates.com/companies/gb/07035737","980080328"
"London Borough of Redbridge","http://opendatacommunities.org/doc/london-borough-council/redbridge","1BOTHEROPI&E","Other Operating Income & Expenditure","1CTRADSURDEF","Trading Account Surpluses & Deficits","REV","Revenue","R9148","Tree Holding Account","02-PREMISES","Premises","02I","Grounds maintenance costs","4753","Trees / Recreational","60549063","202410",23/01/2024 00:00:00,200.75,"91569","Nurserymen - Trees, Shrubs and Bonsai","10024103","PRINCIPAL TREES LTD","07035737","http://opencorporates.com/companies/gb/07035737","980080328"
"London Borough of Redbridge","http://opendatacommunities.org/doc/london-borough-council/redbridge","1BOTHEROPI&E","Other Operating Income & Expenditure","1CTRADSURDEF","Trading Account Surpluses & Deficits","REV","Revenue","R9148","Tree Holding Account","02-PREMISES","Premises","02I","Grounds maintenance costs","4753","Trees / Recreational","60549064","202410",23/01/2024 00:00:00,400,"91569","Nurserymen - Trees, Shrubs and Bonsai","10024103","PRINCIPAL TREES LTD","07035737","http://opencorporates.com/companies/gb/07035737","980080328"
"London Borough of Redbridge","http://opendatacommunities.org/doc/london-borough-council/redbridge","1BOTHEROPI&E","Other Operating Income & Expenditure","1CTRADSURDEF","Trading Account Surpluses & Deficits","REV","Revenue","R9148","Tree Holding Account","02-PREMISES","Premises","02I","Grounds maintenance costs","4753","Trees / Recreational","60549077","202410",23/01/2024 00:00:00,3589,"91569","Nurserymen - Trees, Shrubs and Bonsai","10024103","PRINCIPAL TREES LTD","07035737","http://opencorporates.com/companies/gb/07035737","980080328"
"London Borough of Redbridge","http://opendatacommunities.org/doc/london-borough-council/redbridge","1BOTHEROPI&E","Other Operating Income & Expenditure","1CTRADSURDEF","Trading Account Surpluses & Deficits","REV","Revenue","R9148","Tree Holding Account","02-PREMISES","Premises","02I","Grounds maintenance costs","4753","Trees / Recreational","60549075","202410",23/01/2024 00:00:00,189.38,"91569","Nurserymen - Trees, Shrubs and Bonsai","10024103","PRINCIPAL TREES LTD","07035737","http://opencorporates.com/companies/gb/07035737","980080328"
"London Borough of Redbridge","http://opendatacommunities.org/doc/london-borough-council/redbridge","1BOTHEROPI&E","Other Operating Income & Expenditure","1CTRADSURDEF","Trading Account Surpluses & Deficits","REV","Revenue","R9148","Tree Holding Account","02-PREMISES","Premises","02I","Grounds maintenance costs","4753","Trees / Recreational","60549078","202410",23/01/2024 00:00:00,3000,"91569","Nurserymen - Trees, Shrubs and Bonsai","10024103","PRINCIPAL TREES LTD","07035737","http://opencorporates.com/companies/gb/07035737","980080328"
"London Borough of Redbridge","http://opendatacommunities.org/doc/london-borough-council/redbridge","1BOTHEROPI&E","Other Operating Income & Expenditure","1CTRADSURDEF","Trading Account Surpluses & Deficits","REV","Revenue","R9148","Tree Holding Account","02-PREMISES","Premises","02I","Grounds maintenance costs","4753","Trees / Recreational","60549065","202410",23/01/2024 00:00:00,125,"91569","Nurserymen - Trees, Shrubs and Bonsai","10024103","PRINCIPAL TREES LTD","07035737","http://opencorporates.com/companies/gb/07035737","980080328"
"London Borough of Redbridge","http://opendatacommunities.org/doc/london-borough-council/redbridge","1BOTHEROPI&E","Other Operating Income & Expenditure","1CTRADSURDEF","Trading Account Surpluses & Deficits","REV","Revenue","R9148","Tree Holding Account","02-PREMISES","Premises","02I","Grounds maintenance costs","4753","Trees / Recreational","60549076","202410",23/01/2024 00:00:00,1200,"91569","Nurserymen - Trees, Shrubs and Bonsai","10024103","PRINCIPAL TREES LTD","07035737","http://opencorporates.com/companies/gb/07035737","980080328"
"London Borough of Redbridge","http://opendatacommunities.org/doc/london-borough-council/redbridge","1BOTHEROPI&E","Other Operating Income & Expenditure","1CTRADSURDEF","Trading Account Surpluses & Deficits","REV","Revenue","R9148","Tree Holding Account","02-PREMISES","Premises","02I","Grounds maintenance costs","4753","Trees / Recreational","60549069","202410",23/01/2024 00:00:00,500,"91569","Nurserymen - Trees, Shrubs and Bonsai","10024103","PRINCIPAL TREES LTD","07035737","http://opencorporates.com/companies/gb/07035737","980080328"
"London Borough of Redbridge","http://opendatacommunities.org/doc/london-borough-council/redbridge","1BOTHEROPI&E","Other Operating Income & Expenditure","1CTRADSURDEF","Trading Account Surpluses & Deficits","REV","Revenue","R9148","Tree Holding Account","02-PREMISES","Premises","02I","Grounds maintenance costs","4753","Trees / Recreational","60549070","202410",23/01/2024 00:00:00,308.05,"91569","Nurserymen - Trees, Shrubs and Bonsai","10024103","PRINCIPAL TREES LTD","07035737","http://opencorporates.com/companies/gb/07035737","980080328"
"London Borough of Redbridge","http://opendatacommunities.org/doc/london-borough-council/redbridge","1BOTHEROPI&E","Other Operating Income & Expenditure","1CTRADSURDEF","Trading Account Surpluses & Deficits","REV","Revenue","R9148","Tree Holding Account","02-PREMISES","Premises","02I","Grounds maintenance costs","4753","Trees / Recreational","60549071","202410",23/01/2024 00:00:00,1877,"91569","Nurserymen - Trees, Shrubs and Bonsai","10024103","PRINCIPAL TREES LTD","07035737","http://opencorporates.com/companies/gb/07035737","980080328"
"London Borough of Redbridge","http://opendatacommunities.org/doc/london-borough-council/redbridge","1BOTHEROPI&E","Other Operating Income & Expenditure","1CTRADSURDEF","Trading Account Surpluses & Deficits","REV","Revenue","R9148","Tree Holding Account","02-PREMISES","Premises","02I","Grounds maintenance costs","4753","Trees / Recreational","60549072","202410",23/01/2024 00:00:00,152.51,"91569","Nurserymen - Trees, Shrubs and Bonsai","10024103","PRINCIPAL TREES LTD","07035737","http://opencorporates.com/companies/gb/07035737","980080328"
"London Borough of Redbridge","http://opendatacommunities.org/doc/london-borough-council/redbridge","1BOTHEROPI&E","Other Operating Income & Expenditure","1CTRADSURDEF","Trading Account Surpluses & Deficits","REV","Revenue","R9148","Tree Holding Account","02-PREMISES","Premises","02I","Grounds maintenance costs","4753","Trees / Recreational","60549073","202410",23/01/2024 00:00:00,6990.16,"91569","Nurserymen - Trees, Shrubs and Bonsai","10024103","PRINCIPAL TREES LTD","07035737","http://opencorporates.com/companies/gb/07035737","980080328"
"London Borough of Redbridge","http://opendatacommunities.org/doc/london-borough-council/redbridge","1BOTHEROPI&E","Other Operating Income & Expenditure","1CTRADSURDEF","Trading Account Surpluses & Deficits","REV","Revenue","R9148","Tree Holding Account","02-PREMISES","Premises","02I","Grounds maintenance costs","4753","Trees / Recreational","60549074","202410",23/01/2024 00:00:00,505,"91569","Nurserymen - Trees, Shrubs and Bonsai","10024103","PRINCIPAL TREES LTD","07035737","http://opencorporates.com/companies/gb/07035737","980080328"
"London Borough of Redbridge","http://opendatacommunities.org/doc/london-borough-council/redbridge","1BOTHEROPI&E","Other Operating Income & Expenditure","1CTRADSURDEF","Trading Account Surpluses & Deficits","REV","Revenue","R9148","Tree Holding Account","02-PREMISES","Premises","02I","Grounds maintenance costs","4753","Trees / Recreational","60548830","202410",18/01/2024 00:00:00,200,"18632","Civil Engineers","10018376","KENSON CONTRACTORS BENINGTON LTD","1314691","http://opencorporates.com/companies/gb/1314691","301629589"
"London Borough of Redbridge","http://opendatacommunities.org/doc/london-borough-council/redbridge","1BOTHEROPI&E","Other Operating Income & Expenditure","1CTRADSURDEF","Trading Account Surpluses & Deficits","REV","Revenue","R9148","Tree Holding Account","02-PREMISES","Premises","02I","Grounds maintenance costs","4753","Trees / Recreational","60548861","202410",19/01/2024 00:00:00,620,"80228","Tree Work and Forestry Services","10024383","BECKER TREE CONTRACTS LIMITED","03668415","http://opencorporates.com/companies/gb/03668415","726078330"
"London Borough of Redbridge","http://opendatacommunities.org/doc/london-borough-council/redbridge","1BOTHEROPI&E","Other Operating Income & Expenditure","1CTRADSURDEF","Trading Account Surpluses & Deficits","REV","Revenue","R9148","Tree Holding Account","02-PREMISES","Premises","02I","Grounds maintenance costs","4753","Trees / Recreational","60548858","202410",19/01/2024 00:00:00,3520,"80228","Tree Work and Forestry Services","10024383","BECKER TREE CONTRACTS LIMITED","03668415","http://opencorporates.com/companies/gb/03668415","726078330"
"London Borough of Redbridge","http://opendatacommunities.org/doc/london-borough-council/redbridge","1BOTHEROPI&E","Other Operating Income & Expenditure","1CTRADSURDEF","Trading Account Surpluses & Deficits","REV","Revenue","R9148","Tree Holding Account","02-PREMISES","Premises","02I","Grounds maintenance costs","4753","Trees / Recreational","60548862","202410",19/01/2024 00:00:00,2413.96,"80228","Tree Work and Forestry Services","10024383","BECKER TREE CONTRACTS LIMITED","03668415","http://opencorporates.com/companies/gb/03668415","726078330"
"London Borough of Redbridge","http://opendatacommunities.org/doc/london-borough-council/redbridge","1BOTHEROPI&E","Other Operating Income & Expenditure","1CTRADSURDEF","Trading Account Surpluses & Deficits","REV","Revenue","R9148","Tree Holding Account","02-PREMISES","Premises","02I","Grounds maintenance costs","4753","Trees / Recreational","60548863","202410",19/01/2024 00:00:00,3090,"80228","Tree Work and Forestry Services","10024383","BECKER TREE CONTRACTS LIMITED","03668415","http://opencorporates.com/companies/gb/03668415","726078330"
"London Borough of Redbridge","http://opendatacommunities.org/doc/london-borough-council/redbridge","1BOTHEROPI&E","Other Operating Income & Expenditure","1CTRADSURDEF","Trading Account Surpluses & Deficits","REV","Revenue","R9152","Operational Accounting","01-EMPLOYEES","Employees","01A","Direct employee expenses","0004","Agency Staff - Pay","60549949","202410",30/01/2024 00:00:00,3375,"31230","Employment and Recruitment Agencies","10026498","ALLEN LANE LIMITED","05115229","http://opencorporates.com/companies/gb/05115229","835970985"
"London Borough of Redbridge","http://opendatacommunities.org/doc/london-borough-council/redbridge","1BOTHEROPI&E","Other Operating Income & Expenditure","1CTRADSURDEF","Trading Account Surpluses & Deficits","REV","Revenue","R9152","Operational Accounting","01-EMPLOYEES","Employees","01A","Direct employee expenses","0004","Agency Staff - Pay","60547769","202410",09/01/2024 00:00:00,3705,"31230","Employment and Recruitment Agencies","10026498","ALLEN LANE LIMITED","05115229","http://opencorporates.com/companies/gb/05115229","835970985"
"London Borough of Redbridge","http://opendatacommunities.org/doc/london-borough-council/redbridge","1BOTHEROPI&E","Other Operating Income & Expenditure","1CTRADSURDEF","Trading Account Surpluses & Deficits","REV","Revenue","R9152","Operational Accounting","01-EMPLOYEES","Employees","01A","Direct employee expenses","0004","Agency Staff - Pay","60548522","202410",16/01/2024 00:00:00,1350,"31230","Employment and Recruitment Agencies","10026498","ALLEN LANE LIMITED","05115229","http://opencorporates.com/companies/gb/05115229","835970985"
"London Borough of Redbridge","http://opendatacommunities.org/doc/london-borough-council/redbridge","1BOTHEROPI&E","Other Operating Income & Expenditure","1CTRADSURDEF","Trading Account Surpluses & Deficits","REV","Revenue","R9152","Operational Accounting","01-EMPLOYEES","Employees","01A","Direct employee expenses","0004","Agency Staff - Pay","60549157","202410",23/01/2024 00:00:00,3375,"31230","Employment and Recruitment Agencies","10026498","ALLEN LANE LIMITED","05115229","http://opencorporates.com/companies/gb/05115229","835970985"
"London Borough of Redbridge","http://opendatacommunities.org/doc/london-borough-council/redbridge","1BOTHEROPI&E","Other Operating Income & Expenditure","1CTRADSURDEF","Trading Account Surpluses & Deficits","REV","Revenue","R9252","Programme Services","04-SUPPLIES","Supplies And Services","04F","Communications and computing","5853","Computer Software","60548383","202410",15/01/2024 00:00:00,103.55,"20703","Computer Systems and Software","10025316","TRUSTMARQUE SOLUTIONS LTD","2183240","http://opencorporates.com/companies/gb/2183240","618184140"
"London Borough of Redbridge","http://opendatacommunities.org/doc/london-borough-council/redbridge","1BOTHEROPI&E","Other Operating Income & Expenditure","1CTRADSURDEF","Trading Account Surpluses & Deficits","REV","Revenue","R9254","Infrastructure","04-SUPPLIES","Supplies And Services","04F","Communications and computing","5852","Computer Equipment - Repairs & Maintenance","60548209","202410",12/01/2024 00:00:00,408.75,"53400","Office Equipment Servicing and Maintenance","10023885","UNITED TECHNOLOGIES UK LTD(UTL)","03805286","http://opencorporates.com/companies/gb/03805286","740173460"
"London Borough of Redbridge","http://opendatacommunities.org/doc/london-borough-council/redbridge","1BOTHEROPI&E","Other Operating Income & Expenditure","1CTRADSURDEF","Trading Account Surpluses & Deficits","REV","Revenue","R9254","Infrastructure","04-SUPPLIES","Supplies And Services","04F","Communications and computing","5854","Exchange Line Rental","3770110","202410",08/01/2024 00:00:00,31.08,"76510","Telecommunication Services","10020093","VIRGIN MEDIA PAYMENTS LTD(MAIN ACCT)","1785381","http://opencorporates.com/companies/gb/1785381","591819014"
"London Borough of Redbridge","http://opendatacommunities.org/doc/london-borough-council/redbridge","1BOTHEROPI&E","Other Operating Income & Expenditure","1CTRADSURDEF","Trading Account Surpluses & Deficits","REV","Revenue","R9254","Infrastructure","04-SUPPLIES","Supplies And Services","04F","Communications and computing","5854","Exchange Line Rental","3770111","202410",08/01/2024 00:00:00,56.22,"76510","Telecommunication Services","10020093","VIRGIN MEDIA PAYMENTS LTD(MAIN ACCT)","1785381","http://opencorporates.com/companies/gb/1785381","591819014"
"London Borough of Redbridge","http://opendatacommunities.org/doc/london-borough-council/redbridge","1BOTHEROPI&E","Other Operating Income & Expenditure","1CTRADSURDEF","Trading Account Surpluses & Deficits","REV","Revenue","R9254","Infrastructure","04-SUPPLIES","Supplies And Services","04F","Communications and computing","5854","Exchange Line Rental","3770268","202410",10/01/2024 00:00:00,301,"76520","Telecommunications Equipment and Systems","10012399","O2 (UK) LTD","",,""
"London Borough of Redbridge","http://opendatacommunities.org/doc/london-borough-council/redbridge","1BOTHEROPI&E","Other Operating Income & Expenditure","1CTRADSURDEF","Trading Account Surpluses & Deficits","REV","Revenue","R9254","Infrastructure","04-SUPPLIES","Supplies And Services","04F","Communications and computing","5854","Exchange Line Rental","3770268","202410",10/01/2024 00:00:00,301,"76520","Telecommunications Equipment and Systems","10012399","O2 (UK) LTD","",,""
"London Borough of Redbridge","http://opendatacommunities.org/doc/london-borough-council/redbridge","1BOTHEROPI&E","Other Operating Income & Expenditure","1CTRADSURDEF","Trading Account Surpluses & Deficits","REV","Revenue","R9254","Infrastructure","04-SUPPLIES","Supplies And Services","04F","Communications and computing","5856","Leased Line Rentals","60549744","202410",26/01/2024 00:00:00,7.93,"76510","Telecommunication Services","10020093","VIRGIN MEDIA PAYMENTS LTD(MAIN ACCT)","1785381","http://opencorporates.com/companies/gb/1785381","591819014"
"London Borough of Redbridge","http://opendatacommunities.org/doc/london-borough-council/redbridge","1BOTHEROPI&E","Other Operating Income & Expenditure","1CTRADSURDEF","Trading Account Surpluses & Deficits","REV","Revenue","R9254","Infrastructure","04-SUPPLIES","Supplies And Services","04F","Communications and computing","5856","Leased Line Rentals","60547624","202410",27/12/2023 00:00:00,7.93,"76510","Telecommunication Services","10020093","VIRGIN MEDIA PAYMENTS LTD(MAIN ACCT)","1785381","http://opencorporates.com/companies/gb/1785381","591819014"
"London Borough of Redbridge","http://opendatacommunities.org/doc/london-borough-council/redbridge","1BOTHEROPI&E","Other Operating Income & Expenditure","1CTRADSURDEF","Trading Account Surpluses & Deficits","REV","Revenue","R9254","Infrastructure","04-SUPPLIES","Supplies And Services","04F","Communications and computing","5856","Leased Line Rentals","60547904","202410",09/01/2024 00:00:00,133,"76510","Telecommunication Services","10020093","VIRGIN MEDIA PAYMENTS LTD(MAIN ACCT)","1785381","http://opencorporates.com/companies/gb/1785381","591819014"
"London Borough of Redbridge","http://opendatacommunities.org/doc/london-borough-council/redbridge","1BOTHEROPI&E","Other Operating Income & Expenditure","1CTRADSURDEF","Trading Account Surpluses & Deficits","REV","Revenue","R9254","Infrastructure","04-SUPPLIES","Supplies And Services","04F","Communications and computing","5868","IT Support Contract","60548556","202410",16/01/2024 00:00:00,4062.08,"20703","Computer Systems and Software","10025316","TRUSTMARQUE SOLUTIONS LTD","2183240","http://opencorporates.com/companies/gb/2183240","618184140"
"London Borough of Redbridge","http://opendatacommunities.org/doc/london-borough-council/redbridge","1BOTHEROPI&E","Other Operating Income & Expenditure","1CTRADSURDEF","Trading Account Surpluses & Deficits","REV","Revenue","R9254","Infrastructure","04-SUPPLIES","Supplies And Services","04F","Communications and computing","5868","IT Support Contract","60548262","202410",15/01/2024 00:00:00,10079,"20690","Computer Support and Services","10035736","Version 1 Solutions Limited","3438874","http://opencorporates.com/companies/gb/3438874","GB 704 8728 24"
"London Borough of Redbridge","http://opendatacommunities.org/doc/london-borough-council/redbridge","1BOTHEROPI&E","Other Operating Income & Expenditure","1CTRADSURDEF","Trading Account Surpluses & Deficits","REV","Revenue","R9254","Infrastructure","04-SUPPLIES","Supplies And Services","04F","Communications and computing","5868","IT Support Contract","60548261","202410",15/01/2024 00:00:00,3128.2,"20690","Computer Support and Services","10035736","Version 1 Solutions Limited","3438874","http://opencorporates.com/companies/gb/3438874","GB 704 8728 24"
"London Borough of Redbridge","http://opendatacommunities.org/doc/london-borough-council/redbridge","1BOTHEROPI&E","Other Operating Income & Expenditure","1CTRADSURDEF","Trading Account Surpluses & Deficits","REV","Revenue","R9255","Support","04-SUPPLIES","Supplies And Services","04D","Printing, stationery and general office expenses","5706","Printing","60548798","202410",08/01/2024 00:00:00,12644.93,"57614","Photocopiers","10015716","CANON UK LTD","1264300","http://opencorporates.com/companies/gb/1264300","523797128"
"London Borough of Redbridge","http://opendatacommunities.org/doc/london-borough-council/redbridge","1BOTHEROPI&E","Other Operating Income & Expenditure","1CTRADSURDEF","Trading Account Surpluses & Deficits","REV","Revenue","R9255","Support","04-SUPPLIES","Supplies And Services","04D","Printing, stationery and general office expenses","5706","Printing","60549917","202410",26/01/2024 00:00:00,964.39,"57614","Photocopiers","10015716","CANON UK LTD","1264300","http://opencorporates.com/companies/gb/1264300","523797128"
"London Borough of Redbridge","http://opendatacommunities.org/doc/london-borough-council/redbridge","1BOTHEROPI&E","Other Operating Income & Expenditure","1CTRADSURDEF","Trading Account Surpluses & Deficits","REV","Revenue","R9255","Support","04-SUPPLIES","Supplies And Services","04D","Printing, stationery and general office expenses","5706","Printing","60549917","202410",26/01/2024 00:00:00,6423.82,"57614","Photocopiers","10015716","CANON UK LTD","1264300","http://opencorporates.com/companies/gb/1264300","523797128"
"London Borough of Redbridge","http://opendatacommunities.org/doc/london-borough-council/redbridge","1BOTHEROPI&E","Other Operating Income & Expenditure","1CTRADSURDEF","Trading Account Surpluses & Deficits","REV","Revenue","R9255","Support","04-SUPPLIES","Supplies And Services","04D","Printing, stationery and general office expenses","5706","Printing","60549799","202410",26/01/2024 00:00:00,6038.53,"57614","Photocopiers","10015716","CANON UK LTD","1264300","http://opencorporates.com/companies/gb/1264300","523797128"
"London Borough of Redbridge","http://opendatacommunities.org/doc/london-borough-council/redbridge","1BOTHEROPI&E","Other Operating Income & Expenditure","1CTRADSURDEF","Trading Account Surpluses & Deficits","REV","Revenue","R9255","Support","04-SUPPLIES","Supplies And Services","04F","Communications and computing","5850","Computer Equipment - General Supplies","60549745","202410",26/01/2024 00:00:00,7.93,"76510","Telecommunication Services","10020093","VIRGIN MEDIA PAYMENTS LTD(MAIN ACCT)","1785381","http://opencorporates.com/companies/gb/1785381","591819014"
"London Borough of Redbridge","http://opendatacommunities.org/doc/london-borough-council/redbridge","1BOTHEROPI&E","Other Operating Income & Expenditure","1CTRADSURDEF","Trading Account Surpluses & Deficits","REV","Revenue","R9255","Support","04-SUPPLIES","Supplies And Services","04F","Communications and computing","5850","Computer Equipment - General Supplies","60547623","202410",27/12/2023 00:00:00,7.93,"76510","Telecommunication Services","10020093","VIRGIN MEDIA PAYMENTS LTD(MAIN ACCT)","1785381","http://opencorporates.com/companies/gb/1785381","591819014"
"London Borough of Redbridge","http://opendatacommunities.org/doc/london-borough-council/redbridge","1BOTHEROPI&E","Other Operating Income & Expenditure","1CTRADSURDEF","Trading Account Surpluses & Deficits","REV","Revenue","R9255","Support","04-SUPPLIES","Supplies And Services","04F","Communications and computing","5858","Phones","60549742","202410",26/01/2024 00:00:00,80.68,"76510","Telecommunication Services","10020093","VIRGIN MEDIA PAYMENTS LTD(MAIN ACCT)","1785381","http://opencorporates.com/companies/gb/1785381","591819014"
"London Borough of Redbridge","http://opendatacommunities.org/doc/london-borough-council/redbridge","1BOTHEROPI&E","Other Operating Income & Expenditure","1CTRADSURDEF","Trading Account Surpluses & Deficits","REV","Revenue","R9255","Support","04-SUPPLIES","Supplies And Services","04F","Communications and computing","5858","Phones","60547625","202410",27/12/2023 00:00:00,23.79,"76510","Telecommunication Services","10020093","VIRGIN MEDIA PAYMENTS LTD(MAIN ACCT)","1785381","http://opencorporates.com/companies/gb/1785381","591819014"
"London Borough of Redbridge","http://opendatacommunities.org/doc/london-borough-council/redbridge","1BOTHEROPI&E","Other Operating Income & Expenditure","1CTRADSURDEF","Trading Account Surpluses & Deficits","REV","Revenue","R9255","Support","04-SUPPLIES","Supplies And Services","04F","Communications and computing","5858","Phones","60548151","202410",11/01/2024 00:00:00,15.86,"76510","Telecommunication Services","10020093","VIRGIN MEDIA PAYMENTS LTD(MAIN ACCT)","1785381","http://opencorporates.com/companies/gb/1785381","591819014"
"London Borough of Redbridge","http://opendatacommunities.org/doc/london-borough-council/redbridge","1BOTHEROPI&E","Other Operating Income & Expenditure","1CTRADSURDEF","Trading Account Surpluses & Deficits","REV","Revenue","R9255","Support","04-SUPPLIES","Supplies And Services","04F","Communications and computing","5858","Phones","60547906","202410",09/01/2024 00:00:00,17,"76510","Telecommunication Services","10020093","VIRGIN MEDIA PAYMENTS LTD(MAIN ACCT)","1785381","http://opencorporates.com/companies/gb/1785381","591819014"
"London Borough of Redbridge","http://opendatacommunities.org/doc/london-borough-council/redbridge","1BOTHEROPI&E","Other Operating Income & Expenditure","1CTRADSURDEF","Trading Account Surpluses & Deficits","REV","Revenue","R9255","Support","04-SUPPLIES","Supplies And Services","04F","Communications and computing","5858","Phones","60548889","202410",18/01/2024 00:00:00,56.89,"76510","Telecommunication Services","10020093","VIRGIN MEDIA PAYMENTS LTD(MAIN ACCT)","1785381","http://opencorporates.com/companies/gb/1785381","591819014"
"London Borough of Redbridge","http://opendatacommunities.org/doc/london-borough-council/redbridge","1BOTHEROPI&E","Other Operating Income & Expenditure","1CTRADSURDEF","Trading Account Surpluses & Deficits","REV","Revenue","R9255","Support","04-SUPPLIES","Supplies And Services","04F","Communications and computing","5858","Phones","60547617","202410",22/12/2023 00:00:00,81.44,"76510","Telecommunication Services","10020093","VIRGIN MEDIA PAYMENTS LTD(MAIN ACCT)","1785381","http://opencorporates.com/companies/gb/1785381","591819014"
"London Borough of Redbridge","http://opendatacommunities.org/doc/london-borough-council/redbridge","1BOTHEROPI&E","Other Operating Income & Expenditure","1CTRADSURDEF","Trading Account Surpluses & Deficits","REV","Revenue","R9255","Support","04-SUPPLIES","Supplies And Services","04F","Communications and computing","5858","Phones","60547630","202410",29/12/2023 00:00:00,7.93,"76510","Telecommunication Services","10020093","VIRGIN MEDIA PAYMENTS LTD(MAIN ACCT)","1785381","http://opencorporates.com/companies/gb/1785381","591819014"
"London Borough of Redbridge","http://opendatacommunities.org/doc/london-borough-council/redbridge","1BOTHEROPI&E","Other Operating Income & Expenditure","1CTRADSURDEF","Trading Account Surpluses & Deficits","REV","Revenue","R9255","Support","04-SUPPLIES","Supplies And Services","04F","Communications and computing","5858","Phones","60547631","202410",25/12/2023 00:00:00,13.5,"76510","Telecommunication Services","10020093","VIRGIN MEDIA PAYMENTS LTD(MAIN ACCT)","1785381","http://opencorporates.com/companies/gb/1785381","591819014"
"London Borough of Redbridge","http://opendatacommunities.org/doc/london-borough-council/redbridge","1BOTHEROPI&E","Other Operating Income & Expenditure","1CTRADSURDEF","Trading Account Surpluses & Deficits","REV","Revenue","R9255","Support","04-SUPPLIES","Supplies And Services","04F","Communications and computing","5858","Phones","60547616","202410",22/12/2023 00:00:00,41.14,"76510","Telecommunication Services","10020093","VIRGIN MEDIA PAYMENTS LTD(MAIN ACCT)","1785381","http://opencorporates.com/companies/gb/1785381","591819014"
"London Borough of Redbridge","http://opendatacommunities.org/doc/london-borough-council/redbridge","1BOTHEROPI&E","Other Operating Income & Expenditure","1CTRADSURDEF","Trading Account Surpluses & Deficits","REV","Revenue","R9255","Support","04-SUPPLIES","Supplies And Services","04F","Communications and computing","5858","Phones","60547628","202410",29/12/2023 00:00:00,7,"76510","Telecommunication Services","10020093","VIRGIN MEDIA PAYMENTS LTD(MAIN ACCT)","1785381","http://opencorporates.com/companies/gb/1785381","591819014"
"London Borough of Redbridge","http://opendatacommunities.org/doc/london-borough-council/redbridge","1BOTHEROPI&E","Other Operating Income & Expenditure","1CTRADSURDEF","Trading Account Surpluses & Deficits","REV","Revenue","R9255","Support","04-SUPPLIES","Supplies And Services","04F","Communications and computing","5858","Phones","60547629","202410",29/12/2023 00:00:00,17.5,"76510","Telecommunication Services","10020093","VIRGIN MEDIA PAYMENTS LTD(MAIN ACCT)","1785381","http://opencorporates.com/companies/gb/1785381","591819014"
"London Borough of Redbridge","http://opendatacommunities.org/doc/london-borough-council/redbridge","1BOTHEROPI&E","Other Operating Income & Expenditure","1CTRADSURDEF","Trading Account Surpluses & Deficits","REV","Revenue","R9255","Support","04-SUPPLIES","Supplies And Services","04F","Communications and computing","5858","Phones","60549740","202410",25/01/2024 00:00:00,13.5,"76510","Telecommunication Services","10020093","VIRGIN MEDIA PAYMENTS LTD(MAIN ACCT)","1785381","http://opencorporates.com/companies/gb/1785381","591819014"
"London Borough of Redbridge","http://opendatacommunities.org/doc/london-borough-council/redbridge","1BOTHEROPI&E","Other Operating Income & Expenditure","1CTRADSURDEF","Trading Account Surpluses & Deficits","REV","Revenue","R9255","Support","04-SUPPLIES","Supplies And Services","04F","Communications and computing","5858","Phones","3770268","202410",10/01/2024 00:00:00,10.01,"76520","Telecommunications Equipment and Systems","10012399","O2 (UK) LTD","",,""
"London Borough of Redbridge","http://opendatacommunities.org/doc/london-borough-council/redbridge","1BOTHEROPI&E","Other Operating Income & Expenditure","1CTRADSURDEF","Trading Account Surpluses & Deficits","REV","Revenue","R9255","Support","04-SUPPLIES","Supplies And Services","04F","Communications and computing","5858","Phones","3770268","202410",10/01/2024 00:00:00,10,"76520","Telecommunications Equipment and Systems","10012399","O2 (UK) LTD","",,""
"London Borough of Redbridge","http://opendatacommunities.org/doc/london-borough-council/redbridge","1BOTHEROPI&E","Other Operating Income & Expenditure","1CTRADSURDEF","Trading Account Surpluses & Deficits","REV","Revenue","R9255","Support","04-SUPPLIES","Supplies And Services","04F","Communications and computing","5858","Phones","3770268","202410",10/01/2024 00:00:00,10,"76520","Telecommunications Equipment and Systems","10012399","O2 (UK) LTD","",,""
"London Borough of Redbridge","http://opendatacommunities.org/doc/london-borough-council/redbridge","1BOTHEROPI&E","Other Operating Income & Expenditure","1CTRADSURDEF","Trading Account Surpluses & Deficits","REV","Revenue","R9255","Support","04-SUPPLIES","Supplies And Services","04F","Communications and computing","5858","Phones","3770268","202410",10/01/2024 00:00:00,10,"76520","Telecommunications Equipment and Systems","10012399","O2 (UK) LTD","",,""
"London Borough of Redbridge","http://opendatacommunities.org/doc/london-borough-council/redbridge","1BOTHEROPI&E","Other Operating Income & Expenditure","1CTRADSURDEF","Trading Account Surpluses & Deficits","REV","Revenue","R9255","Support","04-SUPPLIES","Supplies And Services","04F","Communications and computing","5858","Phones","3770268","202410",10/01/2024 00:00:00,10,"76520","Telecommunications Equipment and Systems","10012399","O2 (UK) LTD","",,""
"London Borough of Redbridge","http://opendatacommunities.org/doc/london-borough-council/redbridge","1BOTHEROPI&E","Other Operating Income & Expenditure","1CTRADSURDEF","Trading Account Surpluses & Deficits","REV","Revenue","R9255","Support","04-SUPPLIES","Supplies And Services","04F","Communications and computing","5858","Phones","3770268","202410",10/01/2024 00:00:00,12.66,"76520","Telecommunications Equipment and Systems","10012399","O2 (UK) LTD","",,""
"London Borough of Redbridge","http://opendatacommunities.org/doc/london-borough-council/redbridge","1BOTHEROPI&E","Other Operating Income & Expenditure","1CTRADSURDEF","Trading Account Surpluses & Deficits","REV","Revenue","R9255","Support","04-SUPPLIES","Supplies And Services","04F","Communications and computing","5858","Phones","3770268","202410",10/01/2024 00:00:00,10,"76520","Telecommunications Equipment and Systems","10012399","O2 (UK) LTD","",,""
"London Borough of Redbridge","http://opendatacommunities.org/doc/london-borough-council/redbridge","1BOTHEROPI&E","Other Operating Income & Expenditure","1CTRADSURDEF","Trading Account Surpluses & Deficits","REV","Revenue","R9255","Support","04-SUPPLIES","Supplies And Services","04F","Communications and computing","5858","Phones","3770268","202410",10/01/2024 00:00:00,10,"76520","Telecommunications Equipment and Systems","10012399","O2 (UK) LTD","",,""
"London Borough of Redbridge","http://opendatacommunities.org/doc/london-borough-council/redbridge","1BOTHEROPI&E","Other Operating Income & Expenditure","1CTRADSURDEF","Trading Account Surpluses & Deficits","REV","Revenue","R9255","Support","04-SUPPLIES","Supplies And Services","04F","Communications and computing","5858","Phones","3770268","202410",10/01/2024 00:00:00,10,"76520","Telecommunications Equipment and Systems","10012399","O2 (UK) LTD","",,""
"London Borough of Redbridge","http://opendatacommunities.org/doc/london-borough-council/redbridge","1BOTHEROPI&E","Other Operating Income & Expenditure","1CTRADSURDEF","Trading Account Surpluses & Deficits","REV","Revenue","R9255","Support","04-SUPPLIES","Supplies And Services","04F","Communications and computing","5858","Phones","3770268","202410",10/01/2024 00:00:00,10,"76520","Telecommunications Equipment and Systems","10012399","O2 (UK) LTD","",,""
"London Borough of Redbridge","http://opendatacommunities.org/doc/london-borough-council/redbridge","1BOTHEROPI&E","Other Operating Income & Expenditure","1CTRADSURDEF","Trading Account Surpluses & Deficits","REV","Revenue","R9255","Support","04-SUPPLIES","Supplies And Services","04F","Communications and computing","5858","Phones","3770268","202410",10/01/2024 00:00:00,10,"76520","Telecommunications Equipment and Systems","10012399","O2 (UK) LTD","",,""
"London Borough of Redbridge","http://opendatacommunities.org/doc/london-borough-council/redbridge","1BOTHEROPI&E","Other Operating Income & Expenditure","1CTRADSURDEF","Trading Account Surpluses & Deficits","REV","Revenue","R9255","Support","04-SUPPLIES","Supplies And Services","04F","Communications and computing","5858","Phones","3770268","202410",10/01/2024 00:00:00,10,"76520","Telecommunications Equipment and Systems","10012399","O2 (UK) LTD","",,""
"London Borough of Redbridge","http://opendatacommunities.org/doc/london-borough-council/redbridge","1BOTHEROPI&E","Other Operating Income & Expenditure","1CTRADSURDEF","Trading Account Surpluses & Deficits","REV","Revenue","R9255","Support","04-SUPPLIES","Supplies And Services","04F","Communications and computing","5858","Phones","3770268","202410",10/01/2024 00:00:00,10,"76520","Telecommunications Equipment and Systems","10012399","O2 (UK) LTD","",,""
"London Borough of Redbridge","http://opendatacommunities.org/doc/london-borough-council/redbridge","1BOTHEROPI&E","Other Operating Income & Expenditure","1CTRADSURDEF","Trading Account Surpluses & Deficits","REV","Revenue","R9255","Support","04-SUPPLIES","Supplies And Services","04F","Communications and computing","5858","Phones","3770268","202410",10/01/2024 00:00:00,10,"76520","Telecommunications Equipment and Systems","10012399","O2 (UK) LTD","",,""
"London Borough of Redbridge","http://opendatacommunities.org/doc/london-borough-council/redbridge","1BOTHEROPI&E","Other Operating Income & Expenditure","1CTRADSURDEF","Trading Account Surpluses & Deficits","REV","Revenue","R9255","Support","04-SUPPLIES","Supplies And Services","04F","Communications and computing","5858","Phones","3770268","202410",10/01/2024 00:00:00,10,"76520","Telecommunications Equipment and Systems","10012399","O2 (UK) LTD","",,""
"London Borough of Redbridge","http://opendatacommunities.org/doc/london-borough-council/redbridge","1BOTHEROPI&E","Other Operating Income & Expenditure","1CTRADSURDEF","Trading Account Surpluses & Deficits","REV","Revenue","R9255","Support","04-SUPPLIES","Supplies And Services","04F","Communications and computing","5858","Phones","3770268","202410",10/01/2024 00:00:00,10,"76520","Telecommunications Equipment and Systems","10012399","O2 (UK) LTD","",,""
"London Borough of Redbridge","http://opendatacommunities.org/doc/london-borough-council/redbridge","1BOTHEROPI&E","Other Operating Income & Expenditure","1CTRADSURDEF","Trading Account Surpluses & Deficits","REV","Revenue","R9255","Support","04-SUPPLIES","Supplies And Services","04F","Communications and computing","5858","Phones","3770268","202410",10/01/2024 00:00:00,10,"76520","Telecommunications Equipment and Systems","10012399","O2 (UK) LTD","",,""
"London Borough of Redbridge","http://opendatacommunities.org/doc/london-borough-council/redbridge","1BOTHEROPI&E","Other Operating Income & Expenditure","1CTRADSURDEF","Trading Account Surpluses & Deficits","REV","Revenue","R9255","Support","04-SUPPLIES","Supplies And Services","04F","Communications and computing","5858","Phones","3770268","202410",10/01/2024 00:00:00,10,"76520","Telecommunications Equipment and Systems","10012399","O2 (UK) LTD","",,""
"London Borough of Redbridge","http://opendatacommunities.org/doc/london-borough-council/redbridge","1BOTHEROPI&E","Other Operating Income & Expenditure","1CTRADSURDEF","Trading Account Surpluses & Deficits","REV","Revenue","R9255","Support","04-SUPPLIES","Supplies And Services","04F","Communications and computing","5858","Phones","3770268","202410",10/01/2024 00:00:00,10,"76520","Telecommunications Equipment and Systems","10012399","O2 (UK) LTD","",,""
"London Borough of Redbridge","http://opendatacommunities.org/doc/london-borough-council/redbridge","1BOTHEROPI&E","Other Operating Income & Expenditure","1CTRADSURDEF","Trading Account Surpluses & Deficits","REV","Revenue","R9255","Support","04-SUPPLIES","Supplies And Services","04F","Communications and computing","5858","Phones","3770268","202410",10/01/2024 00:00:00,10,"76520","Telecommunications Equipment and Systems","10012399","O2 (UK) LTD","",,""
"London Borough of Redbridge","http://opendatacommunities.org/doc/london-borough-council/redbridge","1BOTHEROPI&E","Other Operating Income & Expenditure","1CTRADSURDEF","Trading Account Surpluses & Deficits","REV","Revenue","R9255","Support","04-SUPPLIES","Supplies And Services","04F","Communications and computing","5858","Phones","3770268","202410",10/01/2024 00:00:00,10,"76520","Telecommunications Equipment and Systems","10012399","O2 (UK) LTD","",,""
"London Borough of Redbridge","http://opendatacommunities.org/doc/london-borough-council/redbridge","1BOTHEROPI&E","Other Operating Income & Expenditure","1CTRADSURDEF","Trading Account Surpluses & Deficits","REV","Revenue","R9255","Support","04-SUPPLIES","Supplies And Services","04F","Communications and computing","5858","Phones","3770268","202410",10/01/2024 00:00:00,10,"76520","Telecommunications Equipment and Systems","10012399","O2 (UK) LTD","",,""
"London Borough of Redbridge","http://opendatacommunities.org/doc/london-borough-council/redbridge","1BOTHEROPI&E","Other Operating Income & Expenditure","1CTRADSURDEF","Trading Account Surpluses & Deficits","REV","Revenue","R9255","Support","04-SUPPLIES","Supplies And Services","04F","Communications and computing","5858","Phones","3770268","202410",10/01/2024 00:00:00,10,"76520","Telecommunications Equipment and Systems","10012399","O2 (UK) LTD","",,""
"London Borough of Redbridge","http://opendatacommunities.org/doc/london-borough-council/redbridge","1BOTHEROPI&E","Other Operating Income & Expenditure","1CTRADSURDEF","Trading Account Surpluses & Deficits","REV","Revenue","R9255","Support","04-SUPPLIES","Supplies And Services","04F","Communications and computing","5858","Phones","3770268","202410",10/01/2024 00:00:00,10,"76520","Telecommunications Equipment and Systems","10012399","O2 (UK) LTD","",,""
"London Borough of Redbridge","http://opendatacommunities.org/doc/london-borough-council/redbridge","1BOTHEROPI&E","Other Operating Income & Expenditure","1CTRADSURDEF","Trading Account Surpluses & Deficits","REV","Revenue","R9255","Support","04-SUPPLIES","Supplies And Services","04F","Communications and computing","5858","Phones","3770268","202410",10/01/2024 00:00:00,11,"76520","Telecommunications Equipment and Systems","10012399","O2 (UK) LTD","",,""
"London Borough of Redbridge","http://opendatacommunities.org/doc/london-borough-council/redbridge","1BOTHEROPI&E","Other Operating Income & Expenditure","1CTRADSURDEF","Trading Account Surpluses & Deficits","REV","Revenue","R9255","Support","04-SUPPLIES","Supplies And Services","04F","Communications and computing","5858","Phones","3770268","202410",10/01/2024 00:00:00,10,"76520","Telecommunications Equipment and Systems","10012399","O2 (UK) LTD","",,""
"London Borough of Redbridge","http://opendatacommunities.org/doc/london-borough-council/redbridge","1BOTHEROPI&E","Other Operating Income & Expenditure","1CTRADSURDEF","Trading Account Surpluses & Deficits","REV","Revenue","R9255","Support","04-SUPPLIES","Supplies And Services","04F","Communications and computing","5858","Phones","3770268","202410",10/01/2024 00:00:00,10,"76520","Telecommunications Equipment and Systems","10012399","O2 (UK) LTD","",,""
"London Borough of Redbridge","http://opendatacommunities.org/doc/london-borough-council/redbridge","1BOTHEROPI&E","Other Operating Income & Expenditure","1CTRADSURDEF","Trading Account Surpluses & Deficits","REV","Revenue","R9255","Support","04-SUPPLIES","Supplies And Services","04F","Communications and computing","5858","Phones","3770268","202410",10/01/2024 00:00:00,10,"76520","Telecommunications Equipment and Systems","10012399","O2 (UK) LTD","",,""
"London Borough of Redbridge","http://opendatacommunities.org/doc/london-borough-council/redbridge","1BOTHEROPI&E","Other Operating Income & Expenditure","1CTRADSURDEF","Trading Account Surpluses & Deficits","REV","Revenue","R9255","Support","04-SUPPLIES","Supplies And Services","04F","Communications and computing","5858","Phones","3770268","202410",10/01/2024 00:00:00,10,"76520","Telecommunications Equipment and Systems","10012399","O2 (UK) LTD","",,""
"London Borough of Redbridge","http://opendatacommunities.org/doc/london-borough-council/redbridge","1BOTHEROPI&E","Other Operating Income & Expenditure","1CTRADSURDEF","Trading Account Surpluses & Deficits","REV","Revenue","R9255","Support","04-SUPPLIES","Supplies And Services","04F","Communications and computing","5858","Phones","3770268","202410",10/01/2024 00:00:00,10.3,"76520","Telecommunications Equipment and Systems","10012399","O2 (UK) LTD","",,""
"London Borough of Redbridge","http://opendatacommunities.org/doc/london-borough-council/redbridge","1BOTHEROPI&E","Other Operating Income & Expenditure","1CTRADSURDEF","Trading Account Surpluses & Deficits","REV","Revenue","R9255","Support","04-SUPPLIES","Supplies And Services","04F","Communications and computing","5858","Phones","3770268","202410",10/01/2024 00:00:00,10,"76520","Telecommunications Equipment and Systems","10012399","O2 (UK) LTD","",,""
"London Borough of Redbridge","http://opendatacommunities.org/doc/london-borough-council/redbridge","1BOTHEROPI&E","Other Operating Income & Expenditure","1CTRADSURDEF","Trading Account Surpluses & Deficits","REV","Revenue","R9255","Support","04-SUPPLIES","Supplies And Services","04F","Communications and computing","5858","Phones","3770268","202410",10/01/2024 00:00:00,10.99,"76520","Telecommunications Equipment and Systems","10012399","O2 (UK) LTD","",,""
"London Borough of Redbridge","http://opendatacommunities.org/doc/london-borough-council/redbridge","1BOTHEROPI&E","Other Operating Income & Expenditure","1CTRADSURDEF","Trading Account Surpluses & Deficits","REV","Revenue","R9255","Support","04-SUPPLIES","Supplies And Services","04F","Communications and computing","5858","Phones","3770268","202410",10/01/2024 00:00:00,26.47,"76520","Telecommunications Equipment and Systems","10012399","O2 (UK) LTD","",,""
"London Borough of Redbridge","http://opendatacommunities.org/doc/london-borough-council/redbridge","1BOTHEROPI&E","Other Operating Income & Expenditure","1CTRADSURDEF","Trading Account Surpluses & Deficits","REV","Revenue","R9255","Support","04-SUPPLIES","Supplies And Services","04F","Communications and computing","5858","Phones","3770268","202410",10/01/2024 00:00:00,10,"76520","Telecommunications Equipment and Systems","10012399","O2 (UK) LTD","",,""
"London Borough of Redbridge","http://opendatacommunities.org/doc/london-borough-council/redbridge","1BOTHEROPI&E","Other Operating Income & Expenditure","1CTRADSURDEF","Trading Account Surpluses & Deficits","REV","Revenue","R9255","Support","04-SUPPLIES","Supplies And Services","04F","Communications and computing","5858","Phones","3770268","202410",10/01/2024 00:00:00,10,"76520","Telecommunications Equipment and Systems","10012399","O2 (UK) LTD","",,""
"London Borough of Redbridge","http://opendatacommunities.org/doc/london-borough-council/redbridge","1BOTHEROPI&E","Other Operating Income & Expenditure","1CTRADSURDEF","Trading Account Surpluses & Deficits","REV","Revenue","R9255","Support","04-SUPPLIES","Supplies And Services","04F","Communications and computing","5858","Phones","3770268","202410",10/01/2024 00:00:00,10,"76520","Telecommunications Equipment and Systems","10012399","O2 (UK) LTD","",,""
"London Borough of Redbridge","http://opendatacommunities.org/doc/london-borough-council/redbridge","1BOTHEROPI&E","Other Operating Income & Expenditure","1CTRADSURDEF","Trading Account Surpluses & Deficits","REV","Revenue","R9255","Support","04-SUPPLIES","Supplies And Services","04F","Communications and computing","5858","Phones","3770268","202410",10/01/2024 00:00:00,0,"76520","Telecommunications Equipment and Systems","10012399","O2 (UK) LTD","",,""
"London Borough of Redbridge","http://opendatacommunities.org/doc/london-borough-council/redbridge","1BOTHEROPI&E","Other Operating Income & Expenditure","1CTRADSURDEF","Trading Account Surpluses & Deficits","REV","Revenue","R9255","Support","04-SUPPLIES","Supplies And Services","04F","Communications and computing","5858","Phones","3770268","202410",10/01/2024 00:00:00,0,"76520","Telecommunications Equipment and Systems","10012399","O2 (UK) LTD","",,""
"London Borough of Redbridge","http://opendatacommunities.org/doc/london-borough-council/redbridge","1BOTHEROPI&E","Other Operating Income & Expenditure","1CTRADSURDEF","Trading Account Surpluses & Deficits","REV","Revenue","R9255","Support","04-SUPPLIES","Supplies And Services","04F","Communications and computing","5858","Phones","3770268","202410",10/01/2024 00:00:00,85.7,"76520","Telecommunications Equipment and Systems","10012399","O2 (UK) LTD","",,""
"London Borough of Redbridge","http://opendatacommunities.org/doc/london-borough-council/redbridge","1BOTHEROPI&E","Other Operating Income & Expenditure","1CTRADSURDEF","Trading Account Surpluses & Deficits","REV","Revenue","R9255","Support","04-SUPPLIES","Supplies And Services","04F","Communications and computing","5858","Phones","3770268","202410",10/01/2024 00:00:00,10,"76520","Telecommunications Equipment and Systems","10012399","O2 (UK) LTD","",,""
"London Borough of Redbridge","http://opendatacommunities.org/doc/london-borough-council/redbridge","1BOTHEROPI&E","Other Operating Income & Expenditure","1CTRADSURDEF","Trading Account Surpluses & Deficits","REV","Revenue","R9255","Support","04-SUPPLIES","Supplies And Services","04F","Communications and computing","5858","Phones","3770268","202410",10/01/2024 00:00:00,10,"76520","Telecommunications Equipment and Systems","10012399","O2 (UK) LTD","",,""
"London Borough of Redbridge","http://opendatacommunities.org/doc/london-borough-council/redbridge","1BOTHEROPI&E","Other Operating Income & Expenditure","1CTRADSURDEF","Trading Account Surpluses & Deficits","REV","Revenue","R9255","Support","04-SUPPLIES","Supplies And Services","04F","Communications and computing","5858","Phones","3770268","202410",10/01/2024 00:00:00,20,"76520","Telecommunications Equipment and Systems","10012399","O2 (UK) LTD","",,""
"London Borough of Redbridge","http://opendatacommunities.org/doc/london-borough-council/redbridge","1BOTHEROPI&E","Other Operating Income & Expenditure","1CTRADSURDEF","Trading Account Surpluses & Deficits","REV","Revenue","R9255","Support","04-SUPPLIES","Supplies And Services","04F","Communications and computing","5858","Phones","3770268","202410",10/01/2024 00:00:00,10,"76520","Telecommunications Equipment and Systems","10012399","O2 (UK) LTD","",,""
"London Borough of Redbridge","http://opendatacommunities.org/doc/london-borough-council/redbridge","1BOTHEROPI&E","Other Operating Income & Expenditure","1CTRADSURDEF","Trading Account Surpluses & Deficits","REV","Revenue","R9255","Support","04-SUPPLIES","Supplies And Services","04F","Communications and computing","5858","Phones","3770268","202410",10/01/2024 00:00:00,10,"76520","Telecommunications Equipment and Systems","10012399","O2 (UK) LTD","",,""
"London Borough of Redbridge","http://opendatacommunities.org/doc/london-borough-council/redbridge","1BOTHEROPI&E","Other Operating Income & Expenditure","1CTRADSURDEF","Trading Account Surpluses & Deficits","REV","Revenue","R9255","Support","04-SUPPLIES","Supplies And Services","04F","Communications and computing","5858","Phones","3770268","202410",10/01/2024 00:00:00,10,"76520","Telecommunications Equipment and Systems","10012399","O2 (UK) LTD","",,""
"London Borough of Redbridge","http://opendatacommunities.org/doc/london-borough-council/redbridge","1BOTHEROPI&E","Other Operating Income & Expenditure","1CTRADSURDEF","Trading Account Surpluses & Deficits","REV","Revenue","R9255","Support","04-SUPPLIES","Supplies And Services","04F","Communications and computing","5858","Phones","3770268","202410",10/01/2024 00:00:00,10,"76520","Telecommunications Equipment and Systems","10012399","O2 (UK) LTD","",,""
"London Borough of Redbridge","http://opendatacommunities.org/doc/london-borough-council/redbridge","1BOTHEROPI&E","Other Operating Income & Expenditure","1CTRADSURDEF","Trading Account Surpluses & Deficits","REV","Revenue","R9255","Support","04-SUPPLIES","Supplies And Services","04F","Communications and computing","5858","Phones","3770268","202410",10/01/2024 00:00:00,23.49,"76520","Telecommunications Equipment and Systems","10012399","O2 (UK) LTD","",,""
"London Borough of Redbridge","http://opendatacommunities.org/doc/london-borough-council/redbridge","1BOTHEROPI&E","Other Operating Income & Expenditure","1CTRADSURDEF","Trading Account Surpluses & Deficits","REV","Revenue","R9255","Support","04-SUPPLIES","Supplies And Services","04F","Communications and computing","5858","Phones","3770268","202410",10/01/2024 00:00:00,10,"76520","Telecommunications Equipment and Systems","10012399","O2 (UK) LTD","",,""
"London Borough of Redbridge","http://opendatacommunities.org/doc/london-borough-council/redbridge","1BOTHEROPI&E","Other Operating Income & Expenditure","1CTRADSURDEF","Trading Account Surpluses & Deficits","REV","Revenue","R9255","Support","04-SUPPLIES","Supplies And Services","04F","Communications and computing","5858","Phones","3770268","202410",10/01/2024 00:00:00,10,"76520","Telecommunications Equipment and Systems","10012399","O2 (UK) LTD","",,""
"London Borough of Redbridge","http://opendatacommunities.org/doc/london-borough-council/redbridge","1BOTHEROPI&E","Other Operating Income & Expenditure","1CTRADSURDEF","Trading Account Surpluses & Deficits","REV","Revenue","R9255","Support","04-SUPPLIES","Supplies And Services","04F","Communications and computing","5858","Phones","3770268","202410",10/01/2024 00:00:00,10,"76520","Telecommunications Equipment and Systems","10012399","O2 (UK) LTD","",,""
"London Borough of Redbridge","http://opendatacommunities.org/doc/london-borough-council/redbridge","1BOTHEROPI&E","Other Operating Income & Expenditure","1CTRADSURDEF","Trading Account Surpluses & Deficits","REV","Revenue","R9255","Support","04-SUPPLIES","Supplies And Services","04F","Communications and computing","5858","Phones","3770268","202410",10/01/2024 00:00:00,10,"76520","Telecommunications Equipment and Systems","10012399","O2 (UK) LTD","",,""
"London Borough of Redbridge","http://opendatacommunities.org/doc/london-borough-council/redbridge","1BOTHEROPI&E","Other Operating Income & Expenditure","1CTRADSURDEF","Trading Account Surpluses & Deficits","REV","Revenue","R9255","Support","04-SUPPLIES","Supplies And Services","04F","Communications and computing","5858","Phones","3770268","202410",10/01/2024 00:00:00,10,"76520","Telecommunications Equipment and Systems","10012399","O2 (UK) LTD","",,""
"London Borough of Redbridge","http://opendatacommunities.org/doc/london-borough-council/redbridge","1BOTHEROPI&E","Other Operating Income & Expenditure","1CTRADSURDEF","Trading Account Surpluses & Deficits","REV","Revenue","R9255","Support","04-SUPPLIES","Supplies And Services","04F","Communications and computing","5858","Phones","3770268","202410",10/01/2024 00:00:00,10,"76520","Telecommunications Equipment and Systems","10012399","O2 (UK) LTD","",,""
"London Borough of Redbridge","http://opendatacommunities.org/doc/london-borough-council/redbridge","1BOTHEROPI&E","Other Operating Income & Expenditure","1CTRADSURDEF","Trading Account Surpluses & Deficits","REV","Revenue","R9255","Support","04-SUPPLIES","Supplies And Services","04F","Communications and computing","5858","Phones","3770268","202410",10/01/2024 00:00:00,10,"76520","Telecommunications Equipment and Systems","10012399","O2 (UK) LTD","",,""
"London Borough of Redbridge","http://opendatacommunities.org/doc/london-borough-council/redbridge","1BOTHEROPI&E","Other Operating Income & Expenditure","1CTRADSURDEF","Trading Account Surpluses & Deficits","REV","Revenue","R9255","Support","04-SUPPLIES","Supplies And Services","04F","Communications and computing","5858","Phones","3770268","202410",10/01/2024 00:00:00,10,"76520","Telecommunications Equipment and Systems","10012399","O2 (UK) LTD","",,""
"London Borough of Redbridge","http://opendatacommunities.org/doc/london-borough-council/redbridge","1BOTHEROPI&E","Other Operating Income & Expenditure","1CTRADSURDEF","Trading Account Surpluses & Deficits","REV","Revenue","R9255","Support","04-SUPPLIES","Supplies And Services","04F","Communications and computing","5858","Phones","3770268","202410",10/01/2024 00:00:00,10,"76520","Telecommunications Equipment and Systems","10012399","O2 (UK) LTD","",,""
"London Borough of Redbridge","http://opendatacommunities.org/doc/london-borough-council/redbridge","1BOTHEROPI&E","Other Operating Income & Expenditure","1CTRADSURDEF","Trading Account Surpluses & Deficits","REV","Revenue","R9255","Support","04-SUPPLIES","Supplies And Services","04F","Communications and computing","5858","Phones","3770268","202410",10/01/2024 00:00:00,10,"76520","Telecommunications Equipment and Systems","10012399","O2 (UK) LTD","",,""
"London Borough of Redbridge","http://opendatacommunities.org/doc/london-borough-council/redbridge","1BOTHEROPI&E","Other Operating Income & Expenditure","1CTRADSURDEF","Trading Account Surpluses & Deficits","REV","Revenue","R9255","Support","04-SUPPLIES","Supplies And Services","04F","Communications and computing","5858","Phones","3770268","202410",10/01/2024 00:00:00,10.42,"76520","Telecommunications Equipment and Systems","10012399","O2 (UK) LTD","",,""
"London Borough of Redbridge","http://opendatacommunities.org/doc/london-borough-council/redbridge","1BOTHEROPI&E","Other Operating Income & Expenditure","1CTRADSURDEF","Trading Account Surpluses & Deficits","REV","Revenue","R9255","Support","04-SUPPLIES","Supplies And Services","04F","Communications and computing","5858","Phones","3770268","202410",10/01/2024 00:00:00,0,"76520","Telecommunications Equipment and Systems","10012399","O2 (UK) LTD","",,""
"London Borough of Redbridge","http://opendatacommunities.org/doc/london-borough-council/redbridge","1BOTHEROPI&E","Other Operating Income & Expenditure","1CTRADSURDEF","Trading Account Surpluses & Deficits","REV","Revenue","R9255","Support","04-SUPPLIES","Supplies And Services","04F","Communications and computing","5858","Phones","3770268","202410",10/01/2024 00:00:00,10,"76520","Telecommunications Equipment and Systems","10012399","O2 (UK) LTD","",,""
"London Borough of Redbridge","http://opendatacommunities.org/doc/london-borough-council/redbridge","1BOTHEROPI&E","Other Operating Income & Expenditure","1CTRADSURDEF","Trading Account Surpluses & Deficits","REV","Revenue","R9255","Support","04-SUPPLIES","Supplies And Services","04F","Communications and computing","5858","Phones","3770268","202410",10/01/2024 00:00:00,10.5,"76520","Telecommunications Equipment and Systems","10012399","O2 (UK) LTD","",,""
"London Borough of Redbridge","http://opendatacommunities.org/doc/london-borough-council/redbridge","1BOTHEROPI&E","Other Operating Income & Expenditure","1CTRADSURDEF","Trading Account Surpluses & Deficits","REV","Revenue","R9255","Support","04-SUPPLIES","Supplies And Services","04F","Communications and computing","5858","Phones","3770268","202410",10/01/2024 00:00:00,10,"76520","Telecommunications Equipment and Systems","10012399","O2 (UK) LTD","",,""
"London Borough of Redbridge","http://opendatacommunities.org/doc/london-borough-council/redbridge","1BOTHEROPI&E","Other Operating Income & Expenditure","1CTRADSURDEF","Trading Account Surpluses & Deficits","REV","Revenue","R9255","Support","04-SUPPLIES","Supplies And Services","04F","Communications and computing","5858","Phones","3770268","202410",10/01/2024 00:00:00,10,"76520","Telecommunications Equipment and Systems","10012399","O2 (UK) LTD","",,""
"London Borough of Redbridge","http://opendatacommunities.org/doc/london-borough-council/redbridge","1BOTHEROPI&E","Other Operating Income & Expenditure","1CTRADSURDEF","Trading Account Surpluses & Deficits","REV","Revenue","R9255","Support","04-SUPPLIES","Supplies And Services","04F","Communications and computing","5858","Phones","3770268","202410",10/01/2024 00:00:00,10,"76520","Telecommunications Equipment and Systems","10012399","O2 (UK) LTD","",,""
"London Borough of Redbridge","http://opendatacommunities.org/doc/london-borough-council/redbridge","1BOTHEROPI&E","Other Operating Income & Expenditure","1CTRADSURDEF","Trading Account Surpluses & Deficits","REV","Revenue","R9255","Support","04-SUPPLIES","Supplies And Services","04F","Communications and computing","5858","Phones","3770268","202410",10/01/2024 00:00:00,10,"76520","Telecommunications Equipment and Systems","10012399","O2 (UK) LTD","",,""
"London Borough of Redbridge","http://opendatacommunities.org/doc/london-borough-council/redbridge","1BOTHEROPI&E","Other Operating Income & Expenditure","1CTRADSURDEF","Trading Account Surpluses & Deficits","REV","Revenue","R9255","Support","04-SUPPLIES","Supplies And Services","04F","Communications and computing","5858","Phones","3770268","202410",10/01/2024 00:00:00,40.02,"76520","Telecommunications Equipment and Systems","10012399","O2 (UK) LTD","",,""
"London Borough of Redbridge","http://opendatacommunities.org/doc/london-borough-council/redbridge","1BOTHEROPI&E","Other Operating Income & Expenditure","1CTRADSURDEF","Trading Account Surpluses & Deficits","REV","Revenue","R9255","Support","04-SUPPLIES","Supplies And Services","04F","Communications and computing","5858","Phones","3770268","202410",10/01/2024 00:00:00,10.01,"76520","Telecommunications Equipment and Systems","10012399","O2 (UK) LTD","",,""
"London Borough of Redbridge","http://opendatacommunities.org/doc/london-borough-council/redbridge","1BOTHEROPI&E","Other Operating Income & Expenditure","1CTRADSURDEF","Trading Account Surpluses & Deficits","REV","Revenue","R9255","Support","04-SUPPLIES","Supplies And Services","04F","Communications and computing","5858","Phones","3770268","202410",10/01/2024 00:00:00,10,"76520","Telecommunications Equipment and Systems","10012399","O2 (UK) LTD","",,""
"London Borough of Redbridge","http://opendatacommunities.org/doc/london-borough-council/redbridge","1BOTHEROPI&E","Other Operating Income & Expenditure","1CTRADSURDEF","Trading Account Surpluses & Deficits","REV","Revenue","R9255","Support","04-SUPPLIES","Supplies And Services","04F","Communications and computing","5858","Phones","3770268","202410",10/01/2024 00:00:00,-7.4,"76520","Telecommunications Equipment and Systems","10012399","O2 (UK) LTD","",,""
"London Borough of Redbridge","http://opendatacommunities.org/doc/london-borough-council/redbridge","1BOTHEROPI&E","Other Operating Income & Expenditure","1CTRADSURDEF","Trading Account Surpluses & Deficits","REV","Revenue","R9255","Support","04-SUPPLIES","Supplies And Services","04F","Communications and computing","5858","Phones","3770268","202410",10/01/2024 00:00:00,10,"76520","Telecommunications Equipment and Systems","10012399","O2 (UK) LTD","",,""
"London Borough of Redbridge","http://opendatacommunities.org/doc/london-borough-council/redbridge","1BOTHEROPI&E","Other Operating Income & Expenditure","1CTRADSURDEF","Trading Account Surpluses & Deficits","REV","Revenue","R9255","Support","04-SUPPLIES","Supplies And Services","04F","Communications and computing","5858","Phones","3770268","202410",10/01/2024 00:00:00,10,"76520","Telecommunications Equipment and Systems","10012399","O2 (UK) LTD","",,""
"London Borough of Redbridge","http://opendatacommunities.org/doc/london-borough-council/redbridge","1BOTHEROPI&E","Other Operating Income & Expenditure","1CTRADSURDEF","Trading Account Surpluses & Deficits","REV","Revenue","R9255","Support","04-SUPPLIES","Supplies And Services","04F","Communications and computing","5858","Phones","3770268","202410",10/01/2024 00:00:00,10,"76520","Telecommunications Equipment and Systems","10012399","O2 (UK) LTD","",,""
"London Borough of Redbridge","http://opendatacommunities.org/doc/london-borough-council/redbridge","1BOTHEROPI&E","Other Operating Income & Expenditure","1CTRADSURDEF","Trading Account Surpluses & Deficits","REV","Revenue","R9255","Support","04-SUPPLIES","Supplies And Services","04F","Communications and computing","5858","Phones","3770268","202410",10/01/2024 00:00:00,11,"76520","Telecommunications Equipment and Systems","10012399","O2 (UK) LTD","",,""
"London Borough of Redbridge","http://opendatacommunities.org/doc/london-borough-council/redbridge","1BOTHEROPI&E","Other Operating Income & Expenditure","1CTRADSURDEF","Trading Account Surpluses & Deficits","REV","Revenue","R9255","Support","04-SUPPLIES","Supplies And Services","04F","Communications and computing","5858","Phones","3770268","202410",10/01/2024 00:00:00,10,"76520","Telecommunications Equipment and Systems","10012399","O2 (UK) LTD","",,""
"London Borough of Redbridge","http://opendatacommunities.org/doc/london-borough-council/redbridge","1BOTHEROPI&E","Other Operating Income & Expenditure","1CTRADSURDEF","Trading Account Surpluses & Deficits","REV","Revenue","R9255","Support","04-SUPPLIES","Supplies And Services","04F","Communications and computing","5858","Phones","3770268","202410",10/01/2024 00:00:00,10,"76520","Telecommunications Equipment and Systems","10012399","O2 (UK) LTD","",,""
"London Borough of Redbridge","http://opendatacommunities.org/doc/london-borough-council/redbridge","1BOTHEROPI&E","Other Operating Income & Expenditure","1CTRADSURDEF","Trading Account Surpluses & Deficits","REV","Revenue","R9255","Support","04-SUPPLIES","Supplies And Services","04F","Communications and computing","5858","Phones","3770268","202410",10/01/2024 00:00:00,10,"76520","Telecommunications Equipment and Systems","10012399","O2 (UK) LTD","",,""
"London Borough of Redbridge","http://opendatacommunities.org/doc/london-borough-council/redbridge","1BOTHEROPI&E","Other Operating Income & Expenditure","1CTRADSURDEF","Trading Account Surpluses & Deficits","REV","Revenue","R9255","Support","04-SUPPLIES","Supplies And Services","04F","Communications and computing","5858","Phones","3770268","202410",10/01/2024 00:00:00,10,"76520","Telecommunications Equipment and Systems","10012399","O2 (UK) LTD","",,""
"London Borough of Redbridge","http://opendatacommunities.org/doc/london-borough-council/redbridge","1BOTHEROPI&E","Other Operating Income & Expenditure","1CTRADSURDEF","Trading Account Surpluses & Deficits","REV","Revenue","R9255","Support","04-SUPPLIES","Supplies And Services","04F","Communications and computing","5858","Phones","3770268","202410",10/01/2024 00:00:00,10,"76520","Telecommunications Equipment and Systems","10012399","O2 (UK) LTD","",,""
"London Borough of Redbridge","http://opendatacommunities.org/doc/london-borough-council/redbridge","1BOTHEROPI&E","Other Operating Income & Expenditure","1CTRADSURDEF","Trading Account Surpluses & Deficits","REV","Revenue","R9255","Support","04-SUPPLIES","Supplies And Services","04F","Communications and computing","5858","Phones","3770268","202410",10/01/2024 00:00:00,10,"76520","Telecommunications Equipment and Systems","10012399","O2 (UK) LTD","",,""
"London Borough of Redbridge","http://opendatacommunities.org/doc/london-borough-council/redbridge","1BOTHEROPI&E","Other Operating Income & Expenditure","1CTRADSURDEF","Trading Account Surpluses & Deficits","REV","Revenue","R9255","Support","04-SUPPLIES","Supplies And Services","04F","Communications and computing","5858","Phones","3770268","202410",10/01/2024 00:00:00,10,"76520","Telecommunications Equipment and Systems","10012399","O2 (UK) LTD","",,""
"London Borough of Redbridge","http://opendatacommunities.org/doc/london-borough-council/redbridge","1BOTHEROPI&E","Other Operating Income & Expenditure","1CTRADSURDEF","Trading Account Surpluses & Deficits","REV","Revenue","R9255","Support","04-SUPPLIES","Supplies And Services","04F","Communications and computing","5858","Phones","3770268","202410",10/01/2024 00:00:00,10,"76520","Telecommunications Equipment and Systems","10012399","O2 (UK) LTD","",,""
"London Borough of Redbridge","http://opendatacommunities.org/doc/london-borough-council/redbridge","1BOTHEROPI&E","Other Operating Income & Expenditure","1CTRADSURDEF","Trading Account Surpluses & Deficits","REV","Revenue","R9255","Support","04-SUPPLIES","Supplies And Services","04F","Communications and computing","5858","Phones","3770268","202410",10/01/2024 00:00:00,10,"76520","Telecommunications Equipment and Systems","10012399","O2 (UK) LTD","",,""
"London Borough of Redbridge","http://opendatacommunities.org/doc/london-borough-council/redbridge","1BOTHEROPI&E","Other Operating Income & Expenditure","1CTRADSURDEF","Trading Account Surpluses & Deficits","REV","Revenue","R9255","Support","04-SUPPLIES","Supplies And Services","04F","Communications and computing","5858","Phones","3770268","202410",10/01/2024 00:00:00,10,"76520","Telecommunications Equipment and Systems","10012399","O2 (UK) LTD","",,""
"London Borough of Redbridge","http://opendatacommunities.org/doc/london-borough-council/redbridge","1BOTHEROPI&E","Other Operating Income & Expenditure","1CTRADSURDEF","Trading Account Surpluses & Deficits","REV","Revenue","R9255","Support","04-SUPPLIES","Supplies And Services","04F","Communications and computing","5858","Phones","3770268","202410",10/01/2024 00:00:00,10,"76520","Telecommunications Equipment and Systems","10012399","O2 (UK) LTD","",,""
"London Borough of Redbridge","http://opendatacommunities.org/doc/london-borough-council/redbridge","1BOTHEROPI&E","Other Operating Income & Expenditure","1CTRADSURDEF","Trading Account Surpluses & Deficits","REV","Revenue","R9255","Support","04-SUPPLIES","Supplies And Services","04F","Communications and computing","5858","Phones","60548580","202410",15/01/2024 00:00:00,6109.55,"76520","Telecommunications Equipment and Systems","10036837","Six Degrees Technology Group Ltd","3036806","http://opencorporates.com/companies/gb/3036806","135 5266 17"
"London Borough of Redbridge","http://opendatacommunities.org/doc/london-borough-council/redbridge","1BOTHEROPI&E","Other Operating Income & Expenditure","1CTRADSURDEF","Trading Account Surpluses & Deficits","REV","Revenue","R9278","IT - Vision RCL Costs","04-SUPPLIES","Supplies And Services","04F","Communications and computing","5854","Exchange Line Rental","60547643","202410",04/01/2024 00:00:00,19.85,"76510","Telecommunication Services","10020093","VIRGIN MEDIA PAYMENTS LTD(MAIN ACCT)","1785381","http://opencorporates.com/companies/gb/1785381","591819014"
"London Borough of Redbridge","http://opendatacommunities.org/doc/london-borough-council/redbridge","1BOTHEROPI&E","Other Operating Income & Expenditure","1CTRADSURDEF","Trading Account Surpluses & Deficits","REV","Revenue","R9278","IT - Vision RCL Costs","04-SUPPLIES","Supplies And Services","04F","Communications and computing","5854","Exchange Line Rental","3770103","202410",08/01/2024 00:00:00,28.44,"76510","Telecommunication Services","10020093","VIRGIN MEDIA PAYMENTS LTD(MAIN ACCT)","1785381","http://opencorporates.com/companies/gb/1785381","591819014"
"London Borough of Redbridge","http://opendatacommunities.org/doc/london-borough-council/redbridge","1BOTHEROPI&E","Other Operating Income & Expenditure","1CTRADSURDEF","Trading Account Surpluses & Deficits","REV","Revenue","R9278","IT - Vision RCL Costs","04-SUPPLIES","Supplies And Services","04F","Communications and computing","5854","Exchange Line Rental","3770114","202410",08/01/2024 00:00:00,45.37,"76510","Telecommunication Services","10020093","VIRGIN MEDIA PAYMENTS LTD(MAIN ACCT)","1785381","http://opencorporates.com/companies/gb/1785381","591819014"
"London Borough of Redbridge","http://opendatacommunities.org/doc/london-borough-council/redbridge","1BOTHEROPI&E","Other Operating Income & Expenditure","1CTRADSURDEF","Trading Account Surpluses & Deficits","REV","Revenue","R9278","IT - Vision RCL Costs","04-SUPPLIES","Supplies And Services","04F","Communications and computing","5854","Exchange Line Rental","3770107","202410",08/01/2024 00:00:00,49.16,"76510","Telecommunication Services","10020093","VIRGIN MEDIA PAYMENTS LTD(MAIN ACCT)","1785381","http://opencorporates.com/companies/gb/1785381","591819014"
"London Borough of Redbridge","http://opendatacommunities.org/doc/london-borough-council/redbridge","1BOTHEROPI&E","Other Operating Income & Expenditure","1CTRADSURDEF","Trading Account Surpluses & Deficits","REV","Revenue","R9278","IT - Vision RCL Costs","04-SUPPLIES","Supplies And Services","04F","Communications and computing","5854","Exchange Line Rental","3770108","202410",08/01/2024 00:00:00,46.73,"76510","Telecommunication Services","10020093","VIRGIN MEDIA PAYMENTS LTD(MAIN ACCT)","1785381","http://opencorporates.com/companies/gb/1785381","591819014"
"London Borough of Redbridge","http://opendatacommunities.org/doc/london-borough-council/redbridge","1BOTHEROPI&E","Other Operating Income & Expenditure","1CTRADSURDEF","Trading Account Surpluses & Deficits","REV","Revenue","R9278","IT - Vision RCL Costs","04-SUPPLIES","Supplies And Services","04F","Communications and computing","5856","Leased Line Rentals","60549146","202410",05/01/2024 00:00:00,7.93,"76510","Telecommunication Services","10020093","VIRGIN MEDIA PAYMENTS LTD(MAIN ACCT)","1785381","http://opencorporates.com/companies/gb/1785381","591819014"
"London Borough of Redbridge","http://opendatacommunities.org/doc/london-borough-council/redbridge","1BOTHEROPI&E","Other Operating Income & Expenditure","1CTRADSURDEF","Trading Account Surpluses & Deficits","REV","Revenue","R9278","IT - Vision RCL Costs","04-SUPPLIES","Supplies And Services","04F","Communications and computing","5856","Leased Line Rentals","60549147","202410",05/01/2024 00:00:00,7.93,"76510","Telecommunication Services","10020093","VIRGIN MEDIA PAYMENTS LTD(MAIN ACCT)","1785381","http://opencorporates.com/companies/gb/1785381","591819014"
"London Borough of Redbridge","http://opendatacommunities.org/doc/london-borough-council/redbridge","1BOTHEROPI&E","Other Operating Income & Expenditure","1CTRADSURDEF","Trading Account Surpluses & Deficits","REV","Revenue","R9278","IT - Vision RCL Costs","04-SUPPLIES","Supplies And Services","04F","Communications and computing","5856","Leased Line Rentals","60547905","202410",09/01/2024 00:00:00,34,"76510","Telecommunication Services","10020093","VIRGIN MEDIA PAYMENTS LTD(MAIN ACCT)","1785381","http://opencorporates.com/companies/gb/1785381","591819014"
"London Borough of Redbridge","http://opendatacommunities.org/doc/london-borough-council/redbridge","1BOTHEROPI&E","Other Operating Income & Expenditure","1CTRADSURDEF","Trading Account Surpluses & Deficits","REV","Revenue","R9278","IT - Vision RCL Costs","04-SUPPLIES","Supplies And Services","04F","Communications and computing","5856","Leased Line Rentals","60549145","202410",09/01/2024 00:00:00,7.93,"76510","Telecommunication Services","10020093","VIRGIN MEDIA PAYMENTS LTD(MAIN ACCT)","1785381","http://opencorporates.com/companies/gb/1785381","591819014"
"London Borough of Redbridge","http://opendatacommunities.org/doc/london-borough-council/redbridge","1BOTHEROPI&E","Other Operating Income & Expenditure","1CTRADSURDEF","Trading Account Surpluses & Deficits","REV","Revenue","R9278","IT - Vision RCL Costs","04-SUPPLIES","Supplies And Services","04F","Communications and computing","5856","Leased Line Rentals","3771911","202410",15/01/2024 00:00:00,312.5,"76510","Telecommunication Services","10016977","BRITISH TELECOM (DURHAM)","4190816","http://opencorporates.com/companies/gb/4190816","245719348"
"London Borough of Redbridge","http://opendatacommunities.org/doc/london-borough-council/redbridge","1BOTHEROPI&E","Other Operating Income & Expenditure","1CTRADSURDEF","Trading Account Surpluses & Deficits","REV","Revenue","R9278","IT - Vision RCL Costs","04-SUPPLIES","Supplies And Services","04F","Communications and computing","5856","Leased Line Rentals","3771912","202410",15/01/2024 00:00:00,367.04,"76510","Telecommunication Services","10016977","BRITISH TELECOM (DURHAM)","4190816","http://opencorporates.com/companies/gb/4190816","245719348"
"London Borough of Redbridge","http://opendatacommunities.org/doc/london-borough-council/redbridge","1BOTHEROPI&E","Other Operating Income & Expenditure","1CTRADSURDEF","Trading Account Surpluses & Deficits","REV","Revenue","R9278","IT - Vision RCL Costs","04-SUPPLIES","Supplies And Services","04F","Communications and computing","5858","Phones","60547641","202410",05/01/2024 00:00:00,49,"76510","Telecommunication Services","10020093","VIRGIN MEDIA PAYMENTS LTD(MAIN ACCT)","1785381","http://opencorporates.com/companies/gb/1785381","591819014"
"London Borough of Redbridge","http://opendatacommunities.org/doc/london-borough-council/redbridge","1BOTHEROPI&E","Other Operating Income & Expenditure","1CTRADSURDEF","Trading Account Surpluses & Deficits","REV","Revenue","R9350","Management Team","04-SUPPLIES","Supplies And Services","04B","Catering","5602","Refreshments","80046870","202410",25/12/2023 00:00:00,2.34,"84070","Water Suppliers - Bottled","10012869","EDEN SPRINGS (UK) LTD (NATURE SPRING)","04063744","http://opencorporates.com/companies/gb/04063744","232160411"
"London Borough of Redbridge","http://opendatacommunities.org/doc/london-borough-council/redbridge","1BOTHEROPI&E","Other Operating Income & Expenditure","1CTRADSURDEF","Trading Account Surpluses & Deficits","REV","Revenue","R9351","Litigation Team","01-EMPLOYEES","Employees","01A","Direct employee expenses","0004","Agency Staff - Pay","60549012","202410",22/01/2024 00:00:00,2106,"31230","Employment and Recruitment Agencies","10035518","Sellick Partnership Limited","04156002","http://opencorporates.com/companies/gb/04156002","864288095"
"London Borough of Redbridge","http://opendatacommunities.org/doc/london-borough-council/redbridge","1BOTHEROPI&E","Other Operating Income & Expenditure","1CTRADSURDEF","Trading Account Surpluses & Deficits","REV","Revenue","R9351","Litigation Team","01-EMPLOYEES","Employees","01A","Direct employee expenses","0004","Agency Staff - Pay","60547645","202410",08/01/2024 00:00:00,117,"31230","Employment and Recruitment Agencies","10035518","Sellick Partnership Limited","04156002","http://opencorporates.com/companies/gb/04156002","864288095"
"London Borough of Redbridge","http://opendatacommunities.org/doc/london-borough-council/redbridge","1BOTHEROPI&E","Other Operating Income & Expenditure","1CTRADSURDEF","Trading Account Surpluses & Deficits","REV","Revenue","R9351","Litigation Team","01-EMPLOYEES","Employees","01A","Direct employee expenses","0004","Agency Staff - Pay","60548510","202410",16/01/2024 00:00:00,2106,"31230","Employment and Recruitment Agencies","10035518","Sellick Partnership Limited","04156002","http://opencorporates.com/companies/gb/04156002","864288095"
"London Borough of Redbridge","http://opendatacommunities.org/doc/london-borough-council/redbridge","1BOTHEROPI&E","Other Operating Income & Expenditure","1CTRADSURDEF","Trading Account Surpluses & Deficits","REV","Revenue","R9351","Litigation Team","01-EMPLOYEES","Employees","01A","Direct employee expenses","0004","Agency Staff - Pay","60547692","202410",08/01/2024 00:00:00,1684.8,"31230","Employment and Recruitment Agencies","10035518","Sellick Partnership Limited","04156002","http://opencorporates.com/companies/gb/04156002","864288095"
"London Borough of Redbridge","http://opendatacommunities.org/doc/london-borough-council/redbridge","1BOTHEROPI&E","Other Operating Income & Expenditure","1CTRADSURDEF","Trading Account Surpluses & Deficits","REV","Revenue","R9351","Litigation Team","01-EMPLOYEES","Employees","01A","Direct employee expenses","0004","Agency Staff - Pay","60549233","202410",24/01/2024 00:00:00,2052,"31230","Employment and Recruitment Agencies","10032631","VIVID RESOURCING LIMITED","08067630","http://opencorporates.com/companies/gb/08067630","182819383"
"London Borough of Redbridge","http://opendatacommunities.org/doc/london-borough-council/redbridge","1BOTHEROPI&E","Other Operating Income & Expenditure","1CTRADSURDEF","Trading Account Surpluses & Deficits","REV","Revenue","R9352","Legal Supplies & Services","04-SUPPLIES","Supplies And Services","04D","Printing, stationery and general office expenses","5710","Stationery","60549266","202410",24/01/2024 00:00:00,30,"22620","Courier and Messenger Services","10012618","ANGELS COURIER SERVICE LTD","02949091","http://opencorporates.com/companies/gb/02949091","648831896"
"London Borough of Redbridge","http://opendatacommunities.org/doc/london-borough-council/redbridge","1BOTHEROPI&E","Other Operating Income & Expenditure","1CTRADSURDEF","Trading Account Surpluses & Deficits","REV","Revenue","R9352","Legal Supplies & Services","04-SUPPLIES","Supplies And Services","04D","Printing, stationery and general office expenses","5710","Stationery","60549267","202410",24/01/2024 00:00:00,30,"22620","Courier and Messenger Services","10012618","ANGELS COURIER SERVICE LTD","02949091","http://opencorporates.com/companies/gb/02949091","648831896"
"London Borough of Redbridge","http://opendatacommunities.org/doc/london-borough-council/redbridge","1BOTHEROPI&E","Other Operating Income & Expenditure","1CTRADSURDEF","Trading Account Surpluses & Deficits","REV","Revenue","R9352","Legal Supplies & Services","04-SUPPLIES","Supplies And Services","04D","Printing, stationery and general office expenses","5710","Stationery","60549774","202410",29/01/2024 00:00:00,30,"22620","Courier and Messenger Services","10012618","ANGELS COURIER SERVICE LTD","02949091","http://opencorporates.com/companies/gb/02949091","648831896"
"London Borough of Redbridge","http://opendatacommunities.org/doc/london-borough-council/redbridge","1BOTHEROPI&E","Other Operating Income & Expenditure","1CTRADSURDEF","Trading Account Surpluses & Deficits","REV","Revenue","R9352","Legal Supplies & Services","04-SUPPLIES","Supplies And Services","04D","Printing, stationery and general office expenses","5710","Stationery","60547389","202410",05/01/2024 00:00:00,27,"22620","Courier and Messenger Services","10012618","ANGELS COURIER SERVICE LTD","02949091","http://opencorporates.com/companies/gb/02949091","648831896"
"London Borough of Redbridge","http://opendatacommunities.org/doc/london-borough-council/redbridge","1BOTHEROPI&E","Other Operating Income & Expenditure","1CTRADSURDEF","Trading Account Surpluses & Deficits","REV","Revenue","R9352","Legal Supplies & Services","04-SUPPLIES","Supplies And Services","04D","Printing, stationery and general office expenses","5710","Stationery","60548023","202410",10/01/2024 00:00:00,30,"22620","Courier and Messenger Services","10012618","ANGELS COURIER SERVICE LTD","02949091","http://opencorporates.com/companies/gb/02949091","648831896"
"London Borough of Redbridge","http://opendatacommunities.org/doc/london-borough-council/redbridge","1BOTHEROPI&E","Other Operating Income & Expenditure","1CTRADSURDEF","Trading Account Surpluses & Deficits","REV","Revenue","R9352","Legal Supplies & Services","04-SUPPLIES","Supplies And Services","04D","Printing, stationery and general office expenses","5710","Stationery","60548024","202410",10/01/2024 00:00:00,30,"22620","Courier and Messenger Services","10012618","ANGELS COURIER SERVICE LTD","02949091","http://opencorporates.com/companies/gb/02949091","648831896"
"London Borough of Redbridge","http://opendatacommunities.org/doc/london-borough-council/redbridge","1BOTHEROPI&E","Other Operating Income & Expenditure","1CTRADSURDEF","Trading Account Surpluses & Deficits","REV","Revenue","R9352","Legal Supplies & Services","04-SUPPLIES","Supplies And Services","04D","Printing, stationery and general office expenses","5710","Stationery","60548800","202410",18/01/2024 00:00:00,30,"22620","Courier and Messenger Services","10012618","ANGELS COURIER SERVICE LTD","02949091","http://opencorporates.com/companies/gb/02949091","648831896"
"London Borough of Redbridge","http://opendatacommunities.org/doc/london-borough-council/redbridge","1BOTHEROPI&E","Other Operating Income & Expenditure","1CTRADSURDEF","Trading Account Surpluses & Deficits","REV","Revenue","R9353","Advisory Team","01-EMPLOYEES","Employees","01A","Direct employee expenses","0004","Agency Staff - Pay","60549234","202410",24/01/2024 00:00:00,8976,"31230","Employment and Recruitment Agencies","10032631","VIVID RESOURCING LIMITED","08067630","http://opencorporates.com/companies/gb/08067630","182819383"
"London Borough of Redbridge","http://opendatacommunities.org/doc/london-borough-council/redbridge","1BOTHEROPI&E","Other Operating Income & Expenditure","1CTRADSURDEF","Trading Account Surpluses & Deficits","REV","Revenue","R9354","Legal Disbursements","04-SUPPLIES","Supplies And Services","04H","Grants and subscriptions","5954","Professional Fees","60548648","202410",12/01/2024 00:00:00,200,"06700","Barristers","10035155","Field Court Chambers","",,"209123537"
"London Borough of Redbridge","http://opendatacommunities.org/doc/london-borough-council/redbridge","1BOTHEROPI&E","Other Operating Income & Expenditure","1CTRADSURDEF","Trading Account Surpluses & Deficits","REV","Revenue","R9354","Legal Disbursements","04-SUPPLIES","Supplies And Services","04H","Grants and subscriptions","5954","Professional Fees","60548444","202410",31/12/2023 00:00:00,116.17,"47830","Legal Services","10034121","SHARPE PRITCHARD LLP","OC378650","http://opencorporates.com/companies/gb/OC378650","233214995"
"London Borough of Redbridge","http://opendatacommunities.org/doc/london-borough-council/redbridge","1BOTHEROPI&E","Other Operating Income & Expenditure","1CTRADSURDEF","Trading Account Surpluses & Deficits","REV","Revenue","R9354","Legal Disbursements","04-SUPPLIES","Supplies And Services","04H","Grants and subscriptions","5954","Professional Fees","60548446","202410",31/12/2023 00:00:00,168,"47830","Legal Services","10034121","SHARPE PRITCHARD LLP","OC378650","http://opencorporates.com/companies/gb/OC378650","233214995"
"London Borough of Redbridge","http://opendatacommunities.org/doc/london-borough-council/redbridge","1BOTHEROPI&E","Other Operating Income & Expenditure","1CTRADSURDEF","Trading Account Surpluses & Deficits","REV","Revenue","R9354","Legal Disbursements","04-SUPPLIES","Supplies And Services","04H","Grants and subscriptions","5954","Professional Fees","60548430","202410",09/01/2024 00:00:00,400,"06700","Barristers","10035155","Field Court Chambers","",,"209123537"
"London Borough of Redbridge","http://opendatacommunities.org/doc/london-borough-council/redbridge","1BOTHEROPI&E","Other Operating Income & Expenditure","1CTRADSURDEF","Trading Account Surpluses & Deficits","REV","Revenue","R9354","Legal Disbursements","04-SUPPLIES","Supplies And Services","04H","Grants and subscriptions","5954","Professional Fees","60548431","202410",10/01/2024 00:00:00,200,"06700","Barristers","10035155","Field Court Chambers","",,"209123537"
"London Borough of Redbridge","http://opendatacommunities.org/doc/london-borough-council/redbridge","1BOTHEROPI&E","Other Operating Income & Expenditure","1CTRADSURDEF","Trading Account Surpluses & Deficits","REV","Revenue","R9354","Legal Disbursements","04-SUPPLIES","Supplies And Services","04H","Grants and subscriptions","5954","Professional Fees","60547691","202410",08/01/2024 00:00:00,4643.33,"06700","Barristers","10032435","CORNERSTONE BARRISTERS","2362144415","http://opencorporates.com/companies/gb/2362144415","832399019"
"London Borough of Redbridge","http://opendatacommunities.org/doc/london-borough-council/redbridge","1BOTHEROPI&E","Other Operating Income & Expenditure","1CTRADSURDEF","Trading Account Surpluses & Deficits","REV","Revenue","R9354","Legal Disbursements","04-SUPPLIES","Supplies And Services","04H","Grants and subscriptions","5954","Professional Fees","60548464","202410",15/11/2023 00:00:00,160,"06700","Barristers","10032435","CORNERSTONE BARRISTERS","2362144415","http://opencorporates.com/companies/gb/2362144415","832399019"
"London Borough of Redbridge","http://opendatacommunities.org/doc/london-borough-council/redbridge","1BOTHEROPI&E","Other Operating Income & Expenditure","1CTRADSURDEF","Trading Account Surpluses & Deficits","REV","Revenue","R9354","Legal Disbursements","04-SUPPLIES","Supplies And Services","04H","Grants and subscriptions","5954","Professional Fees","60548647","202410",11/01/2024 00:00:00,200,"06700","Barristers","10034634","FIVE PAPER CHAMBERS- FEES ACCOUNT","",,""
"London Borough of Redbridge","http://opendatacommunities.org/doc/london-borough-council/redbridge","1BOTHEROPI&E","Other Operating Income & Expenditure","1CTRADSURDEF","Trading Account Surpluses & Deficits","REV","Revenue","R9354","Legal Disbursements","04-SUPPLIES","Supplies And Services","04H","Grants and subscriptions","5954","Professional Fees","60547863","202410",09/01/2024 00:00:00,1995,"06700","Barristers","10034634","FIVE PAPER CHAMBERS- FEES ACCOUNT","",,""
"London Borough of Redbridge","http://opendatacommunities.org/doc/london-borough-council/redbridge","1BOTHEROPI&E","Other Operating Income & Expenditure","1CTRADSURDEF","Trading Account Surpluses & Deficits","REV","Revenue","R9354","Legal Disbursements","04-SUPPLIES","Supplies And Services","04H","Grants and subscriptions","5954","Professional Fees","60549510","202410",25/01/2024 00:00:00,735,"06700","Barristers","10034634","FIVE PAPER CHAMBERS- FEES ACCOUNT","",,""
"London Borough of Redbridge","http://opendatacommunities.org/doc/london-borough-council/redbridge","1BOTHEROPI&E","Other Operating Income & Expenditure","1CTRADSURDEF","Trading Account Surpluses & Deficits","REV","Revenue","R9354","Legal Disbursements","04-SUPPLIES","Supplies And Services","04H","Grants and subscriptions","5954","Professional Fees","60548195","202410",11/01/2024 00:00:00,1526.25,"06700","Barristers","10034634","FIVE PAPER CHAMBERS- FEES ACCOUNT","",,""
"London Borough of Redbridge","http://opendatacommunities.org/doc/london-borough-council/redbridge","1BOTHEROPI&E","Other Operating Income & Expenditure","1CTRADSURDEF","Trading Account Surpluses & Deficits","REV","Revenue","R9354","Legal Disbursements","04-SUPPLIES","Supplies And Services","04H","Grants and subscriptions","5954","Professional Fees","60548872","202410",19/01/2024 00:00:00,480,"06700","Barristers","10034634","FIVE PAPER CHAMBERS- FEES ACCOUNT","",,""
"London Borough of Redbridge","http://opendatacommunities.org/doc/london-borough-council/redbridge","1BOTHEROPI&E","Other Operating Income & Expenditure","1CTRADSURDEF","Trading Account Surpluses & Deficits","REV","Revenue","R9354","Legal Disbursements","04-SUPPLIES","Supplies And Services","04H","Grants and subscriptions","5954","Professional Fees","60549225","202410",22/01/2024 00:00:00,860,"06700","Barristers","10034634","FIVE PAPER CHAMBERS- FEES ACCOUNT","",,""
"London Borough of Redbridge","http://opendatacommunities.org/doc/london-borough-council/redbridge","1BOTHEROPI&E","Other Operating Income & Expenditure","1CTRADSURDEF","Trading Account Surpluses & Deficits","REV","Revenue","R9354","Legal Disbursements","04-SUPPLIES","Supplies And Services","04H","Grants and subscriptions","5954","Professional Fees","60549710","202410",26/01/2024 00:00:00,450,"06700","Barristers","10034634","FIVE PAPER CHAMBERS- FEES ACCOUNT","",,""
"London Borough of Redbridge","http://opendatacommunities.org/doc/london-borough-council/redbridge","1BOTHEROPI&E","Other Operating Income & Expenditure","1CTRADSURDEF","Trading Account Surpluses & Deficits","REV","Revenue","R9354","Legal Disbursements","04-SUPPLIES","Supplies And Services","04H","Grants and subscriptions","5954","Professional Fees","60547695","202410",08/01/2024 00:00:00,150,"06700","Barristers","10034634","FIVE PAPER CHAMBERS- FEES ACCOUNT","",,""
"London Borough of Redbridge","http://opendatacommunities.org/doc/london-borough-council/redbridge","1BOTHEROPI&E","Other Operating Income & Expenditure","1CTRADSURDEF","Trading Account Surpluses & Deficits","REV","Revenue","R9354","Legal Disbursements","04-SUPPLIES","Supplies And Services","04H","Grants and subscriptions","5954","Professional Fees","60547696","202410",08/01/2024 00:00:00,1500,"06700","Barristers","10034634","FIVE PAPER CHAMBERS- FEES ACCOUNT","",,""
"London Borough of Redbridge","http://opendatacommunities.org/doc/london-borough-council/redbridge","1BOTHEROPI&E","Other Operating Income & Expenditure","1CTRADSURDEF","Trading Account Surpluses & Deficits","REV","Revenue","R9354","Legal Disbursements","04-SUPPLIES","Supplies And Services","04H","Grants and subscriptions","5954","Professional Fees","60549719","202410",26/01/2024 00:00:00,1125,"06700","Barristers","10034634","FIVE PAPER CHAMBERS- FEES ACCOUNT","",,""
"London Borough of Redbridge","http://opendatacommunities.org/doc/london-borough-council/redbridge","1BOTHEROPI&E","Other Operating Income & Expenditure","1CTRADSURDEF","Trading Account Surpluses & Deficits","REV","Revenue","R9462","Human Resources","04-SUPPLIES","Supplies And Services","04E","Services","5755","Counselling","60549357","202410",13/12/2023 00:00:00,340,"11584","Oocupational Health","10034812","MEDIGOLD HEALTH CONSULTANCY LTD","3507491","http://opencorporates.com/companies/gb/3507491","705029661"
"London Borough of Redbridge","http://opendatacommunities.org/doc/london-borough-council/redbridge","1BOTHEROPI&E","Other Operating Income & Expenditure","1CTRADSURDEF","Trading Account Surpluses & Deficits","REV","Revenue","R9551","CLM Maintenance","02-PREMISES","Premises","02A","Repairs, alteration and maintenance of buildings","3026","Minor Maintenance","3771605","202410",16/01/2024 00:00:00,1912,"21557","Construction Management","10033977","BAILY GARNER LLP","OC305198","http://opencorporates.com/companies/gb/OC305198","207362483"
"London Borough of Redbridge","http://opendatacommunities.org/doc/london-borough-council/redbridge","1BOTHEROPI&E","Other Operating Income & Expenditure","1CTRADSURDEF","Trading Account Surpluses & Deficits","REV","Revenue","R9551","CLM Maintenance","02-PREMISES","Premises","02A","Repairs, alteration and maintenance of buildings","3026","Minor Maintenance","3770663","202410",21/12/2023 00:00:00,160,"47960","Lifts - Servicing and Repairs","10021202","GRIFFIN ELEVATORS LTD","3719819","http://opencorporates.com/companies/gb/3719819","731279340"
"London Borough of Redbridge","http://opendatacommunities.org/doc/london-borough-council/redbridge","1BOTHEROPI&E","Other Operating Income & Expenditure","1CTRADSURDEF","Trading Account Surpluses & Deficits","REV","Revenue","R9551","CLM Maintenance","02-PREMISES","Premises","02A","Repairs, alteration and maintenance of buildings","3026","Minor Maintenance","3771602","202410",15/01/2024 00:00:00,160,"47960","Lifts - Servicing and Repairs","10021202","GRIFFIN ELEVATORS LTD","3719819","http://opencorporates.com/companies/gb/3719819","731279340"
"London Borough of Redbridge","http://opendatacommunities.org/doc/london-borough-council/redbridge","1BOTHEROPI&E","Other Operating Income & Expenditure","1CTRADSURDEF","Trading Account Surpluses & Deficits","REV","Revenue","R9551","CLM Maintenance","02-PREMISES","Premises","02A","Repairs, alteration and maintenance of buildings","3026","Minor Maintenance","3769779","202410",28/12/2023 00:00:00,165,"47960","Lifts - Servicing and Repairs","10037454","Multiple Lifts Ltd","11925540","http://opencorporates.com/companies/gb/11925540","321081648"
"London Borough of Redbridge","http://opendatacommunities.org/doc/london-borough-council/redbridge","1BOTHEROPI&E","Other Operating Income & Expenditure","1CTRADSURDEF","Trading Account Surpluses & Deficits","REV","Revenue","R9551","CLM Maintenance","02-PREMISES","Premises","02A","Repairs, alteration and maintenance of buildings","3026","Minor Maintenance","3770671","202410",03/01/2024 00:00:00,300,"47960","Lifts - Servicing and Repairs","10037454","Multiple Lifts Ltd","11925540","http://opencorporates.com/companies/gb/11925540","321081648"
"London Borough of Redbridge","http://opendatacommunities.org/doc/london-borough-council/redbridge","1BOTHEROPI&E","Other Operating Income & Expenditure","1CTRADSURDEF","Trading Account Surpluses & Deficits","REV","Revenue","R9551","CLM Maintenance","02-PREMISES","Premises","02A","Repairs, alteration and maintenance of buildings","3026","Minor Maintenance","3770947","202410",16/01/2024 00:00:00,165,"47960","Lifts - Servicing and Repairs","10037454","Multiple Lifts Ltd","11925540","http://opencorporates.com/companies/gb/11925540","321081648"
"London Borough of Redbridge","http://opendatacommunities.org/doc/london-borough-council/redbridge","1BOTHEROPI&E","Other Operating Income & Expenditure","1CTRADSURDEF","Trading Account Surpluses & Deficits","REV","Revenue","R9551","CLM Maintenance","02-PREMISES","Premises","02A","Repairs, alteration and maintenance of buildings","3026","Minor Maintenance","3770670","202410",03/01/2024 00:00:00,165,"47960","Lifts - Servicing and Repairs","10037454","Multiple Lifts Ltd","11925540","http://opencorporates.com/companies/gb/11925540","321081648"
"London Borough of Redbridge","http://opendatacommunities.org/doc/london-borough-council/redbridge","1BOTHEROPI&E","Other Operating Income & Expenditure","1CTRADSURDEF","Trading Account Surpluses & Deficits","REV","Revenue","R9551","CLM Maintenance","02-PREMISES","Premises","02A","Repairs, alteration and maintenance of buildings","3026","Minor Maintenance","3769792","202410",31/12/2023 00:00:00,170,"69240","Security Services","10018128","Grosvenor Corporate Security Ltd","1530957","http://opencorporates.com/companies/gb/1530957","342117968"
"London Borough of Redbridge","http://opendatacommunities.org/doc/london-borough-council/redbridge","1BOTHEROPI&E","Other Operating Income & Expenditure","1CTRADSURDEF","Trading Account Surpluses & Deficits","REV","Revenue","R9551","CLM Maintenance","02-PREMISES","Premises","02A","Repairs, alteration and maintenance of buildings","3026","Minor Maintenance","3769717","202410",12/12/2023 00:00:00,0,"84085","Water Treatment Equipment and Service","10026984","P H WATER TECHNOLOGIES LTD","05042025","http://opencorporates.com/companies/gb/05042025","834219240"
"London Borough of Redbridge","http://opendatacommunities.org/doc/london-borough-council/redbridge","1BOTHEROPI&E","Other Operating Income & Expenditure","1CTRADSURDEF","Trading Account Surpluses & Deficits","REV","Revenue","R9551","CLM Maintenance","02-PREMISES","Premises","02A","Repairs, alteration and maintenance of buildings","3026","Minor Maintenance","3769717","202410",12/12/2023 00:00:00,179.5,"84085","Water Treatment Equipment and Service","10026984","P H WATER TECHNOLOGIES LTD","05042025","http://opencorporates.com/companies/gb/05042025","834219240"
"London Borough of Redbridge","http://opendatacommunities.org/doc/london-borough-council/redbridge","1BOTHEROPI&E","Other Operating Income & Expenditure","1CTRADSURDEF","Trading Account Surpluses & Deficits","REV","Revenue","R9551","CLM Maintenance","02-PREMISES","Premises","02A","Repairs, alteration and maintenance of buildings","3026","Minor Maintenance","3769718","202410",12/12/2023 00:00:00,0,"84085","Water Treatment Equipment and Service","10026984","P H WATER TECHNOLOGIES LTD","05042025","http://opencorporates.com/companies/gb/05042025","834219240"
"London Borough of Redbridge","http://opendatacommunities.org/doc/london-borough-council/redbridge","1BOTHEROPI&E","Other Operating Income & Expenditure","1CTRADSURDEF","Trading Account Surpluses & Deficits","REV","Revenue","R9551","CLM Maintenance","02-PREMISES","Premises","02A","Repairs, alteration and maintenance of buildings","3026","Minor Maintenance","3769712","202410",31/10/2023 00:00:00,254.5,"84085","Water Treatment Equipment and Service","10026984","P H WATER TECHNOLOGIES LTD","05042025","http://opencorporates.com/companies/gb/05042025","834219240"
"London Borough of Redbridge","http://opendatacommunities.org/doc/london-borough-council/redbridge","1BOTHEROPI&E","Other Operating Income & Expenditure","1CTRADSURDEF","Trading Account Surpluses & Deficits","REV","Revenue","R9551","CLM Maintenance","02-PREMISES","Premises","02A","Repairs, alteration and maintenance of buildings","3026","Minor Maintenance","3771492","202410",29/12/2023 00:00:00,95,"84085","Water Treatment Equipment and Service","10026984","P H WATER TECHNOLOGIES LTD","05042025","http://opencorporates.com/companies/gb/05042025","834219240"
"London Borough of Redbridge","http://opendatacommunities.org/doc/london-borough-council/redbridge","1BOTHEROPI&E","Other Operating Income & Expenditure","1CTRADSURDEF","Trading Account Surpluses & Deficits","REV","Revenue","R9551","CLM Maintenance","02-PREMISES","Premises","02A","Repairs, alteration and maintenance of buildings","3026","Minor Maintenance","3771612","202410",30/06/2023 00:00:00,0,"84085","Water Treatment Equipment and Service","10026984","P H WATER TECHNOLOGIES LTD","05042025","http://opencorporates.com/companies/gb/05042025","834219240"
"London Borough of Redbridge","http://opendatacommunities.org/doc/london-borough-council/redbridge","1BOTHEROPI&E","Other Operating Income & Expenditure","1CTRADSURDEF","Trading Account Surpluses & Deficits","REV","Revenue","R9551","CLM Maintenance","02-PREMISES","Premises","02A","Repairs, alteration and maintenance of buildings","3026","Minor Maintenance","3771612","202410",30/06/2023 00:00:00,134.5,"84085","Water Treatment Equipment and Service","10026984","P H WATER TECHNOLOGIES LTD","05042025","http://opencorporates.com/companies/gb/05042025","834219240"
"London Borough of Redbridge","http://opendatacommunities.org/doc/london-borough-council/redbridge","1BOTHEROPI&E","Other Operating Income & Expenditure","1CTRADSURDEF","Trading Account Surpluses & Deficits","REV","Revenue","R9551","CLM Maintenance","02-PREMISES","Premises","02A","Repairs, alteration and maintenance of buildings","3026","Minor Maintenance","3770909","202410",23/05/2023 00:00:00,66,"65451","Roller Shutter Mnfrs","10016372","ELLIOTT SECURITIES LONDON LTD T/A EXPRESS SHUTTERS & GOSPORT ENGINEERING","8417405","http://opencorporates.com/companies/gb/8417405","835715613"
"London Borough of Redbridge","http://opendatacommunities.org/doc/london-borough-council/redbridge","1BOTHEROPI&E","Other Operating Income & Expenditure","1CTRADSURDEF","Trading Account Surpluses & Deficits","REV","Revenue","R9551","CLM Maintenance","02-PREMISES","Premises","02A","Repairs, alteration and maintenance of buildings","3026","Minor Maintenance","3769718","202410",12/12/2023 00:00:00,159.5,"84085","Water Treatment Equipment and Service","10026984","P H WATER TECHNOLOGIES LTD","05042025","http://opencorporates.com/companies/gb/05042025","834219240"
"London Borough of Redbridge","http://opendatacommunities.org/doc/london-borough-council/redbridge","1BOTHEROPI&E","Other Operating Income & Expenditure","1CTRADSURDEF","Trading Account Surpluses & Deficits","REV","Revenue","R9551","CLM Maintenance","02-PREMISES","Premises","02A","Repairs, alteration and maintenance of buildings","3026","Minor Maintenance","3771554","202410",14/06/2023 00:00:00,0,"84085","Water Treatment Equipment and Service","10026984","P H WATER TECHNOLOGIES LTD","05042025","http://opencorporates.com/companies/gb/05042025","834219240"
"London Borough of Redbridge","http://opendatacommunities.org/doc/london-borough-council/redbridge","1BOTHEROPI&E","Other Operating Income & Expenditure","1CTRADSURDEF","Trading Account Surpluses & Deficits","REV","Revenue","R9551","CLM Maintenance","02-PREMISES","Premises","02A","Repairs, alteration and maintenance of buildings","3026","Minor Maintenance","3771554","202410",14/06/2023 00:00:00,304,"84085","Water Treatment Equipment and Service","10026984","P H WATER TECHNOLOGIES LTD","05042025","http://opencorporates.com/companies/gb/05042025","834219240"
"London Borough of Redbridge","http://opendatacommunities.org/doc/london-borough-council/redbridge","1BOTHEROPI&E","Other Operating Income & Expenditure","1CTRADSURDEF","Trading Account Surpluses & Deficits","REV","Revenue","R9551","CLM Maintenance","02-PREMISES","Premises","02A","Repairs, alteration and maintenance of buildings","3026","Minor Maintenance","3769795","202410",03/01/2024 00:00:00,180,"65451","Roller Shutter Mnfrs","10016372","ELLIOTT SECURITIES LONDON LTD T/A EXPRESS SHUTTERS & GOSPORT ENGINEERING","8417405","http://opencorporates.com/companies/gb/8417405","835715613"
"London Borough of Redbridge","http://opendatacommunities.org/doc/london-borough-council/redbridge","1BOTHEROPI&E","Other Operating Income & Expenditure","1CTRADSURDEF","Trading Account Surpluses & Deficits","REV","Revenue","R9551","CLM Maintenance","02-PREMISES","Premises","02A","Repairs, alteration and maintenance of buildings","3026","Minor Maintenance","3770917","202410",10/01/2024 00:00:00,75,"02950","Air Conditioning and Refrigeration Contractors","10023947","NIXON & FARROW","04159118","http://opencorporates.com/companies/gb/04159118","683409123"
"London Borough of Redbridge","http://opendatacommunities.org/doc/london-borough-council/redbridge","1BOTHEROPI&E","Other Operating Income & Expenditure","1CTRADSURDEF","Trading Account Surpluses & Deficits","REV","Revenue","R9551","CLM Maintenance","02-PREMISES","Premises","02A","Repairs, alteration and maintenance of buildings","3026","Minor Maintenance","3769794","202410",03/01/2024 00:00:00,180,"65451","Roller Shutter Mnfrs","10016372","ELLIOTT SECURITIES LONDON LTD T/A EXPRESS SHUTTERS & GOSPORT ENGINEERING","8417405","http://opencorporates.com/companies/gb/8417405","835715613"
"London Borough of Redbridge","http://opendatacommunities.org/doc/london-borough-council/redbridge","1BOTHEROPI&E","Other Operating Income & Expenditure","1CTRADSURDEF","Trading Account Surpluses & Deficits","REV","Revenue","R9551","CLM Maintenance","02-PREMISES","Premises","02A","Repairs, alteration and maintenance of buildings","3026","Minor Maintenance","3771492","202410",29/12/2023 00:00:00,0,"84085","Water Treatment Equipment and Service","10026984","P H WATER TECHNOLOGIES LTD","05042025","http://opencorporates.com/companies/gb/05042025","834219240"
"London Borough of Redbridge","http://opendatacommunities.org/doc/london-borough-council/redbridge","1BOTHEROPI&E","Other Operating Income & Expenditure","1CTRADSURDEF","Trading Account Surpluses & Deficits","REV","Revenue","R9551","CLM Maintenance","02-PREMISES","Premises","02A","Repairs, alteration and maintenance of buildings","3026","Minor Maintenance","3771595","202410",15/01/2024 00:00:00,485,"65451","Roller Shutter Mnfrs","10016372","ELLIOTT SECURITIES LONDON LTD T/A EXPRESS SHUTTERS & GOSPORT ENGINEERING","8417405","http://opencorporates.com/companies/gb/8417405","835715613"
"London Borough of Redbridge","http://opendatacommunities.org/doc/london-borough-council/redbridge","1BOTHEROPI&E","Other Operating Income & Expenditure","1CTRADSURDEF","Trading Account Surpluses & Deficits","REV","Revenue","R9551","CLM Maintenance","02-PREMISES","Premises","02A","Repairs, alteration and maintenance of buildings","3026","Minor Maintenance","3769712","202410",31/10/2023 00:00:00,0,"84085","Water Treatment Equipment and Service","10026984","P H WATER TECHNOLOGIES LTD","05042025","http://opencorporates.com/companies/gb/05042025","834219240"
"London Borough of Redbridge","http://opendatacommunities.org/doc/london-borough-council/redbridge","1BOTHEROPI&E","Other Operating Income & Expenditure","1CTRADSURDEF","Trading Account Surpluses & Deficits","REV","Revenue","R9551","CLM Maintenance","02-PREMISES","Premises","02A","Repairs, alteration and maintenance of buildings","3026","Minor Maintenance","3770133","202410",18/12/2023 00:00:00,221,"46040","Joinery Manufacturers","10010288","DRS DOORS LTD","09608644","http://opencorporates.com/companies/gb/09608644","164467489"
"London Borough of Redbridge","http://opendatacommunities.org/doc/london-borough-council/redbridge","1BOTHEROPI&E","Other Operating Income & Expenditure","1CTRADSURDEF","Trading Account Surpluses & Deficits","REV","Revenue","R9551","CLM Maintenance","02-PREMISES","Premises","02A","Repairs, alteration and maintenance of buildings","3026","Minor Maintenance","3770133","202410",18/12/2023 00:00:00,0,"46040","Joinery Manufacturers","10010288","DRS DOORS LTD","09608644","http://opencorporates.com/companies/gb/09608644","164467489"
"London Borough of Redbridge","http://opendatacommunities.org/doc/london-borough-council/redbridge","1BOTHEROPI&E","Other Operating Income & Expenditure","1CTRADSURDEF","Trading Account Surpluses & Deficits","REV","Revenue","R9551","CLM Maintenance","02-PREMISES","Premises","02A","Repairs, alteration and maintenance of buildings","3026","Minor Maintenance","3770134","202410",20/12/2023 00:00:00,245,"46040","Joinery Manufacturers","10010288","DRS DOORS LTD","09608644","http://opencorporates.com/companies/gb/09608644","164467489"
"London Borough of Redbridge","http://opendatacommunities.org/doc/london-borough-council/redbridge","1BOTHEROPI&E","Other Operating Income & Expenditure","1CTRADSURDEF","Trading Account Surpluses & Deficits","REV","Revenue","R9551","CLM Maintenance","02-PREMISES","Premises","02A","Repairs, alteration and maintenance of buildings","3026","Minor Maintenance","3770134","202410",20/12/2023 00:00:00,56.32,"46040","Joinery Manufacturers","10010288","DRS DOORS LTD","09608644","http://opencorporates.com/companies/gb/09608644","164467489"
"London Borough of Redbridge","http://opendatacommunities.org/doc/london-borough-council/redbridge","1BOTHEROPI&E","Other Operating Income & Expenditure","1CTRADSURDEF","Trading Account Surpluses & Deficits","REV","Revenue","R9551","CLM Maintenance","02-PREMISES","Premises","02A","Repairs, alteration and maintenance of buildings","3026","Minor Maintenance","3769706","202410",20/12/2023 00:00:00,120,"69240","Security Services","10034606","HALL & KAY FIRE SERVICES LTD T/A HALL & KAY FIRE ENGINEERING","5211559","http://opencorporates.com/companies/gb/5211559","199888505"
"London Borough of Redbridge","http://opendatacommunities.org/doc/london-borough-council/redbridge","1BOTHEROPI&E","Other Operating Income & Expenditure","1CTRADSURDEF","Trading Account Surpluses & Deficits","REV","Revenue","R9551","CLM Maintenance","02-PREMISES","Premises","02A","Repairs, alteration and maintenance of buildings","3026","Minor Maintenance","3769704","202410",20/12/2023 00:00:00,120,"69240","Security Services","10034606","HALL & KAY FIRE SERVICES LTD T/A HALL & KAY FIRE ENGINEERING","5211559","http://opencorporates.com/companies/gb/5211559","199888505"
"London Borough of Redbridge","http://opendatacommunities.org/doc/london-borough-council/redbridge","1BOTHEROPI&E","Other Operating Income & Expenditure","1CTRADSURDEF","Trading Account Surpluses & Deficits","REV","Revenue","R9551","CLM Maintenance","02-PREMISES","Premises","02A","Repairs, alteration and maintenance of buildings","3026","Minor Maintenance","3769748","202410",28/12/2023 00:00:00,120,"69240","Security Services","10034606","HALL & KAY FIRE SERVICES LTD T/A HALL & KAY FIRE ENGINEERING","5211559","http://opencorporates.com/companies/gb/5211559","199888505"
"London Borough of Redbridge","http://opendatacommunities.org/doc/london-borough-council/redbridge","1BOTHEROPI&E","Other Operating Income & Expenditure","1CTRADSURDEF","Trading Account Surpluses & Deficits","REV","Revenue","R9551","CLM Maintenance","02-PREMISES","Premises","02A","Repairs, alteration and maintenance of buildings","3026","Minor Maintenance","3769696","202410",20/12/2023 00:00:00,245,"46040","Joinery Manufacturers","10010288","DRS DOORS LTD","09608644","http://opencorporates.com/companies/gb/09608644","164467489"
"London Borough of Redbridge","http://opendatacommunities.org/doc/london-borough-council/redbridge","1BOTHEROPI&E","Other Operating Income & Expenditure","1CTRADSURDEF","Trading Account Surpluses & Deficits","REV","Revenue","R9551","CLM Maintenance","02-PREMISES","Premises","02A","Repairs, alteration and maintenance of buildings","3026","Minor Maintenance","3769696","202410",20/12/2023 00:00:00,56.32,"46040","Joinery Manufacturers","10010288","DRS DOORS LTD","09608644","http://opencorporates.com/companies/gb/09608644","164467489"
"London Borough of Redbridge","http://opendatacommunities.org/doc/london-borough-council/redbridge","1BOTHEROPI&E","Other Operating Income & Expenditure","1CTRADSURDEF","Trading Account Surpluses & Deficits","REV","Revenue","R9551","CLM Maintenance","02-PREMISES","Premises","02A","Repairs, alteration and maintenance of buildings","3026","Minor Maintenance","3771509","202410",04/01/2024 00:00:00,221,"46040","Joinery Manufacturers","10010288","DRS DOORS LTD","09608644","http://opencorporates.com/companies/gb/09608644","164467489"
"London Borough of Redbridge","http://opendatacommunities.org/doc/london-borough-council/redbridge","1BOTHEROPI&E","Other Operating Income & Expenditure","1CTRADSURDEF","Trading Account Surpluses & Deficits","REV","Revenue","R9551","CLM Maintenance","02-PREMISES","Premises","02A","Repairs, alteration and maintenance of buildings","3026","Minor Maintenance","3771509","202410",04/01/2024 00:00:00,0,"46040","Joinery Manufacturers","10010288","DRS DOORS LTD","09608644","http://opencorporates.com/companies/gb/09608644","164467489"
"London Borough of Redbridge","http://opendatacommunities.org/doc/london-borough-council/redbridge","1BOTHEROPI&E","Other Operating Income & Expenditure","1CTRADSURDEF","Trading Account Surpluses & Deficits","REV","Revenue","R9551","CLM Maintenance","02-PREMISES","Premises","02A","Repairs, alteration and maintenance of buildings","3026","Minor Maintenance","3769701","202410",20/12/2023 00:00:00,316.92,"69240","Security Services","10034606","HALL & KAY FIRE SERVICES LTD T/A HALL & KAY FIRE ENGINEERING","5211559","http://opencorporates.com/companies/gb/5211559","199888505"
"London Borough of Redbridge","http://opendatacommunities.org/doc/london-borough-council/redbridge","1BOTHEROPI&E","Other Operating Income & Expenditure","1CTRADSURDEF","Trading Account Surpluses & Deficits","REV","Revenue","R9551","CLM Maintenance","02-PREMISES","Premises","02A","Repairs, alteration and maintenance of buildings","3026","Minor Maintenance","3769773","202410",28/12/2023 00:00:00,120,"69240","Security Services","10034606","HALL & KAY FIRE SERVICES LTD T/A HALL & KAY FIRE ENGINEERING","5211559","http://opencorporates.com/companies/gb/5211559","199888505"
"London Borough of Redbridge","http://opendatacommunities.org/doc/london-borough-council/redbridge","1BOTHEROPI&E","Other Operating Income & Expenditure","1CTRADSURDEF","Trading Account Surpluses & Deficits","REV","Revenue","R9551","CLM Maintenance","02-PREMISES","Premises","02A","Repairs, alteration and maintenance of buildings","3026","Minor Maintenance","3769764","202410",28/12/2023 00:00:00,120,"69240","Security Services","10034606","HALL & KAY FIRE SERVICES LTD T/A HALL & KAY FIRE ENGINEERING","5211559","http://opencorporates.com/companies/gb/5211559","199888505"
"London Borough of Redbridge","http://opendatacommunities.org/doc/london-borough-council/redbridge","1BOTHEROPI&E","Other Operating Income & Expenditure","1CTRADSURDEF","Trading Account Surpluses & Deficits","REV","Revenue","R9551","CLM Maintenance","02-PREMISES","Premises","02A","Repairs, alteration and maintenance of buildings","3026","Minor Maintenance","3771522","202410",08/01/2024 00:00:00,240,"69240","Security Services","10034606","HALL & KAY FIRE SERVICES LTD T/A HALL & KAY FIRE ENGINEERING","5211559","http://opencorporates.com/companies/gb/5211559","199888505"
"London Borough of Redbridge","http://opendatacommunities.org/doc/london-borough-council/redbridge","1BOTHEROPI&E","Other Operating Income & Expenditure","1CTRADSURDEF","Trading Account Surpluses & Deficits","REV","Revenue","R9551","CLM Maintenance","02-PREMISES","Premises","02A","Repairs, alteration and maintenance of buildings","3026","Minor Maintenance","3769750","202410",28/12/2023 00:00:00,120,"69240","Security Services","10034606","HALL & KAY FIRE SERVICES LTD T/A HALL & KAY FIRE ENGINEERING","5211559","http://opencorporates.com/companies/gb/5211559","199888505"
"London Borough of Redbridge","http://opendatacommunities.org/doc/london-borough-council/redbridge","1BOTHEROPI&E","Other Operating Income & Expenditure","1CTRADSURDEF","Trading Account Surpluses & Deficits","REV","Revenue","R9551","CLM Maintenance","02-PREMISES","Premises","02A","Repairs, alteration and maintenance of buildings","3026","Minor Maintenance","3769766","202410",28/12/2023 00:00:00,120,"69240","Security Services","10034606","HALL & KAY FIRE SERVICES LTD T/A HALL & KAY FIRE ENGINEERING","5211559","http://opencorporates.com/companies/gb/5211559","199888505"
"London Borough of Redbridge","http://opendatacommunities.org/doc/london-borough-council/redbridge","1BOTHEROPI&E","Other Operating Income & Expenditure","1CTRADSURDEF","Trading Account Surpluses & Deficits","REV","Revenue","R9551","CLM Maintenance","02-PREMISES","Premises","02A","Repairs, alteration and maintenance of buildings","3026","Minor Maintenance","3771513","202410",08/01/2024 00:00:00,150,"69240","Security Services","10034606","HALL & KAY FIRE SERVICES LTD T/A HALL & KAY FIRE ENGINEERING","5211559","http://opencorporates.com/companies/gb/5211559","199888505"
"London Borough of Redbridge","http://opendatacommunities.org/doc/london-borough-council/redbridge","1BOTHEROPI&E","Other Operating Income & Expenditure","1CTRADSURDEF","Trading Account Surpluses & Deficits","REV","Revenue","R9551","CLM Maintenance","02-PREMISES","Premises","02A","Repairs, alteration and maintenance of buildings","3026","Minor Maintenance","3771625","202410",22/01/2024 00:00:00,0,"46040","Joinery Manufacturers","10010288","DRS DOORS LTD","09608644","http://opencorporates.com/companies/gb/09608644","164467489"
"London Borough of Redbridge","http://opendatacommunities.org/doc/london-borough-council/redbridge","1BOTHEROPI&E","Other Operating Income & Expenditure","1CTRADSURDEF","Trading Account Surpluses & Deficits","REV","Revenue","R9551","CLM Maintenance","02-PREMISES","Premises","02A","Repairs, alteration and maintenance of buildings","3026","Minor Maintenance","3770908","202410",09/01/2024 00:00:00,190,"69240","Security Services","10034606","HALL & KAY FIRE SERVICES LTD T/A HALL & KAY FIRE ENGINEERING","5211559","http://opencorporates.com/companies/gb/5211559","199888505"
"London Borough of Redbridge","http://opendatacommunities.org/doc/london-borough-council/redbridge","1BOTHEROPI&E","Other Operating Income & Expenditure","1CTRADSURDEF","Trading Account Surpluses & Deficits","REV","Revenue","R9551","CLM Maintenance","02-PREMISES","Premises","02A","Repairs, alteration and maintenance of buildings","3026","Minor Maintenance","3770911","202410",09/01/2024 00:00:00,150,"69240","Security Services","10034606","HALL & KAY FIRE SERVICES LTD T/A HALL & KAY FIRE ENGINEERING","5211559","http://opencorporates.com/companies/gb/5211559","199888505"
"London Borough of Redbridge","http://opendatacommunities.org/doc/london-borough-council/redbridge","1BOTHEROPI&E","Other Operating Income & Expenditure","1CTRADSURDEF","Trading Account Surpluses & Deficits","REV","Revenue","R9551","CLM Maintenance","02-PREMISES","Premises","02A","Repairs, alteration and maintenance of buildings","3026","Minor Maintenance","3769695","202410",18/12/2023 00:00:00,221,"46040","Joinery Manufacturers","10010288","DRS DOORS LTD","09608644","http://opencorporates.com/companies/gb/09608644","164467489"
"London Borough of Redbridge","http://opendatacommunities.org/doc/london-borough-council/redbridge","1BOTHEROPI&E","Other Operating Income & Expenditure","1CTRADSURDEF","Trading Account Surpluses & Deficits","REV","Revenue","R9551","CLM Maintenance","02-PREMISES","Premises","02A","Repairs, alteration and maintenance of buildings","3026","Minor Maintenance","3769695","202410",18/12/2023 00:00:00,0,"46040","Joinery Manufacturers","10010288","DRS DOORS LTD","09608644","http://opencorporates.com/companies/gb/09608644","164467489"
"London Borough of Redbridge","http://opendatacommunities.org/doc/london-borough-council/redbridge","1BOTHEROPI&E","Other Operating Income & Expenditure","1CTRADSURDEF","Trading Account Surpluses & Deficits","REV","Revenue","R9551","CLM Maintenance","02-PREMISES","Premises","02A","Repairs, alteration and maintenance of buildings","3026","Minor Maintenance","3770918","202410",11/01/2024 00:00:00,1656.89,"69240","Security Services","10034606","HALL & KAY FIRE SERVICES LTD T/A HALL & KAY FIRE ENGINEERING","5211559","http://opencorporates.com/companies/gb/5211559","199888505"
"London Borough of Redbridge","http://opendatacommunities.org/doc/london-borough-council/redbridge","1BOTHEROPI&E","Other Operating Income & Expenditure","1CTRADSURDEF","Trading Account Surpluses & Deficits","REV","Revenue","R9551","CLM Maintenance","02-PREMISES","Premises","02A","Repairs, alteration and maintenance of buildings","3026","Minor Maintenance","3770904","202410",08/01/2024 00:00:00,150,"69240","Security Services","10034606","HALL & KAY FIRE SERVICES LTD T/A HALL & KAY FIRE ENGINEERING","5211559","http://opencorporates.com/companies/gb/5211559","199888505"
"London Borough of Redbridge","http://opendatacommunities.org/doc/london-borough-council/redbridge","1BOTHEROPI&E","Other Operating Income & Expenditure","1CTRADSURDEF","Trading Account Surpluses & Deficits","REV","Revenue","R9551","CLM Maintenance","02-PREMISES","Premises","02A","Repairs, alteration and maintenance of buildings","3026","Minor Maintenance","3769699","202410",20/12/2023 00:00:00,120,"69240","Security Services","10034606","HALL & KAY FIRE SERVICES LTD T/A HALL & KAY FIRE ENGINEERING","5211559","http://opencorporates.com/companies/gb/5211559","199888505"
"London Borough of Redbridge","http://opendatacommunities.org/doc/london-borough-council/redbridge","1BOTHEROPI&E","Other Operating Income & Expenditure","1CTRADSURDEF","Trading Account Surpluses & Deficits","REV","Revenue","R9551","CLM Maintenance","02-PREMISES","Premises","02A","Repairs, alteration and maintenance of buildings","3026","Minor Maintenance","3769761","202410",28/12/2023 00:00:00,400,"69240","Security Services","10034606","HALL & KAY FIRE SERVICES LTD T/A HALL & KAY FIRE ENGINEERING","5211559","http://opencorporates.com/companies/gb/5211559","199888505"
"London Borough of Redbridge","http://opendatacommunities.org/doc/london-borough-council/redbridge","1BOTHEROPI&E","Other Operating Income & Expenditure","1CTRADSURDEF","Trading Account Surpluses & Deficits","REV","Revenue","R9551","CLM Maintenance","02-PREMISES","Premises","02A","Repairs, alteration and maintenance of buildings","3026","Minor Maintenance","3770949","202410",16/01/2024 00:00:00,75,"69240","Security Services","10034606","HALL & KAY FIRE SERVICES LTD T/A HALL & KAY FIRE ENGINEERING","5211559","http://opencorporates.com/companies/gb/5211559","199888505"
"London Borough of Redbridge","http://opendatacommunities.org/doc/london-borough-council/redbridge","1BOTHEROPI&E","Other Operating Income & Expenditure","1CTRADSURDEF","Trading Account Surpluses & Deficits","REV","Revenue","R9551","CLM Maintenance","02-PREMISES","Premises","02A","Repairs, alteration and maintenance of buildings","3026","Minor Maintenance","3769776","202410",28/12/2023 00:00:00,120,"69240","Security Services","10034606","HALL & KAY FIRE SERVICES LTD T/A HALL & KAY FIRE ENGINEERING","5211559","http://opencorporates.com/companies/gb/5211559","199888505"
"London Borough of Redbridge","http://opendatacommunities.org/doc/london-borough-council/redbridge","1BOTHEROPI&E","Other Operating Income & Expenditure","1CTRADSURDEF","Trading Account Surpluses & Deficits","REV","Revenue","R9551","CLM Maintenance","02-PREMISES","Premises","02A","Repairs, alteration and maintenance of buildings","3026","Minor Maintenance","3769707","202410",20/12/2023 00:00:00,120,"69240","Security Services","10034606","HALL & KAY FIRE SERVICES LTD T/A HALL & KAY FIRE ENGINEERING","5211559","http://opencorporates.com/companies/gb/5211559","199888505"
"London Borough of Redbridge","http://opendatacommunities.org/doc/london-borough-council/redbridge","1BOTHEROPI&E","Other Operating Income & Expenditure","1CTRADSURDEF","Trading Account Surpluses & Deficits","REV","Revenue","R9551","CLM Maintenance","02-PREMISES","Premises","02A","Repairs, alteration and maintenance of buildings","3026","Minor Maintenance","3770669","202410",03/01/2024 00:00:00,180,"69240","Security Services","10034606","HALL & KAY FIRE SERVICES LTD T/A HALL & KAY FIRE ENGINEERING","5211559","http://opencorporates.com/companies/gb/5211559","199888505"
"London Borough of Redbridge","http://opendatacommunities.org/doc/london-borough-council/redbridge","1BOTHEROPI&E","Other Operating Income & Expenditure","1CTRADSURDEF","Trading Account Surpluses & Deficits","REV","Revenue","R9551","CLM Maintenance","02-PREMISES","Premises","02A","Repairs, alteration and maintenance of buildings","3026","Minor Maintenance","3769697","202410",20/12/2023 00:00:00,120,"69240","Security Services","10034606","HALL & KAY FIRE SERVICES LTD T/A HALL & KAY FIRE ENGINEERING","5211559","http://opencorporates.com/companies/gb/5211559","199888505"
"London Borough of Redbridge","http://opendatacommunities.org/doc/london-borough-council/redbridge","1BOTHEROPI&E","Other Operating Income & Expenditure","1CTRADSURDEF","Trading Account Surpluses & Deficits","REV","Revenue","R9551","CLM Maintenance","02-PREMISES","Premises","02A","Repairs, alteration and maintenance of buildings","3026","Minor Maintenance","3771527","202410",08/01/2024 00:00:00,640,"69240","Security Services","10034606","HALL & KAY FIRE SERVICES LTD T/A HALL & KAY FIRE ENGINEERING","5211559","http://opencorporates.com/companies/gb/5211559","199888505"
"London Borough of Redbridge","http://opendatacommunities.org/doc/london-borough-council/redbridge","1BOTHEROPI&E","Other Operating Income & Expenditure","1CTRADSURDEF","Trading Account Surpluses & Deficits","REV","Revenue","R9551","CLM Maintenance","02-PREMISES","Premises","02A","Repairs, alteration and maintenance of buildings","3026","Minor Maintenance","3771625","202410",22/01/2024 00:00:00,169,"46040","Joinery Manufacturers","10010288","DRS DOORS LTD","09608644","http://opencorporates.com/companies/gb/09608644","164467489"
"London Borough of Redbridge","http://opendatacommunities.org/doc/london-borough-council/redbridge","1BOTHEROPI&E","Other Operating Income & Expenditure","1CTRADSURDEF","Trading Account Surpluses & Deficits","REV","Revenue","R9551","CLM Maintenance","02-PREMISES","Premises","02A","Repairs, alteration and maintenance of buildings","3026","Minor Maintenance","3770941","202410",15/01/2024 00:00:00,240,"69240","Security Services","10034606","HALL & KAY FIRE SERVICES LTD T/A HALL & KAY FIRE ENGINEERING","5211559","http://opencorporates.com/companies/gb/5211559","199888505"
"London Borough of Redbridge","http://opendatacommunities.org/doc/london-borough-council/redbridge","1BOTHEROPI&E","Other Operating Income & Expenditure","1CTRADSURDEF","Trading Account Surpluses & Deficits","REV","Revenue","R9551","CLM Maintenance","02-PREMISES","Premises","02A","Repairs, alteration and maintenance of buildings","3026","Minor Maintenance","3769754","202410",28/12/2023 00:00:00,240,"69240","Security Services","10034606","HALL & KAY FIRE SERVICES LTD T/A HALL & KAY FIRE ENGINEERING","5211559","http://opencorporates.com/companies/gb/5211559","199888505"
"London Borough of Redbridge","http://opendatacommunities.org/doc/london-borough-council/redbridge","1BOTHEROPI&E","Other Operating Income & Expenditure","1CTRADSURDEF","Trading Account Surpluses & Deficits","REV","Revenue","R9551","CLM Maintenance","02-PREMISES","Premises","02A","Repairs, alteration and maintenance of buildings","3026","Minor Maintenance","3769755","202410",28/12/2023 00:00:00,120,"69240","Security Services","10034606","HALL & KAY FIRE SERVICES LTD T/A HALL & KAY FIRE ENGINEERING","5211559","http://opencorporates.com/companies/gb/5211559","199888505"
"London Borough of Redbridge","http://opendatacommunities.org/doc/london-borough-council/redbridge","1BOTHEROPI&E","Other Operating Income & Expenditure","1CTRADSURDEF","Trading Account Surpluses & Deficits","REV","Revenue","R9551","CLM Maintenance","02-PREMISES","Premises","02A","Repairs, alteration and maintenance of buildings","3026","Minor Maintenance","3769756","202410",28/12/2023 00:00:00,120,"69240","Security Services","10034606","HALL & KAY FIRE SERVICES LTD T/A HALL & KAY FIRE ENGINEERING","5211559","http://opencorporates.com/companies/gb/5211559","199888505"
"London Borough of Redbridge","http://opendatacommunities.org/doc/london-borough-council/redbridge","1BOTHEROPI&E","Other Operating Income & Expenditure","1CTRADSURDEF","Trading Account Surpluses & Deficits","REV","Revenue","R9551","CLM Maintenance","02-PREMISES","Premises","02A","Repairs, alteration and maintenance of buildings","3026","Minor Maintenance","3770137","202410",01/01/2024 00:00:00,120,"30045","Electrical Engineers","10026677","COUNTY ELECTRICAL SOLUTIONS LTD","06476990","http://opencorporates.com/companies/gb/06476990","924889474"
"London Borough of Redbridge","http://opendatacommunities.org/doc/london-borough-council/redbridge","1BOTHEROPI&E","Other Operating Income & Expenditure","1CTRADSURDEF","Trading Account Surpluses & Deficits","REV","Revenue","R9551","CLM Maintenance","02-PREMISES","Premises","02A","Repairs, alteration and maintenance of buildings","3026","Minor Maintenance","3770137","202410",01/01/2024 00:00:00,0,"30045","Electrical Engineers","10026677","COUNTY ELECTRICAL SOLUTIONS LTD","06476990","http://opencorporates.com/companies/gb/06476990","924889474"
"London Borough of Redbridge","http://opendatacommunities.org/doc/london-borough-council/redbridge","1BOTHEROPI&E","Other Operating Income & Expenditure","1CTRADSURDEF","Trading Account Surpluses & Deficits","REV","Revenue","R9551","CLM Maintenance","02-PREMISES","Premises","02A","Repairs, alteration and maintenance of buildings","3026","Minor Maintenance","3771581","202410",14/01/2024 00:00:00,202.6,"16710","Central Heating - Installation and Servicing","10018364","J R ASHWORTH PLMBING & HTG LTD","",,""
"London Borough of Redbridge","http://opendatacommunities.org/doc/london-borough-council/redbridge","1BOTHEROPI&E","Other Operating Income & Expenditure","1CTRADSURDEF","Trading Account Surpluses & Deficits","REV","Revenue","R9551","CLM Maintenance","02-PREMISES","Premises","02A","Repairs, alteration and maintenance of buildings","3026","Minor Maintenance","3771584","202410",15/01/2024 00:00:00,120,"30045","Electrical Engineers","10026677","COUNTY ELECTRICAL SOLUTIONS LTD","06476990","http://opencorporates.com/companies/gb/06476990","924889474"
"London Borough of Redbridge","http://opendatacommunities.org/doc/london-borough-council/redbridge","1BOTHEROPI&E","Other Operating Income & Expenditure","1CTRADSURDEF","Trading Account Surpluses & Deficits","REV","Revenue","R9551","CLM Maintenance","02-PREMISES","Premises","02A","Repairs, alteration and maintenance of buildings","3026","Minor Maintenance","3771584","202410",15/01/2024 00:00:00,10,"30045","Electrical Engineers","10026677","COUNTY ELECTRICAL SOLUTIONS LTD","06476990","http://opencorporates.com/companies/gb/06476990","924889474"
"London Borough of Redbridge","http://opendatacommunities.org/doc/london-borough-council/redbridge","1BOTHEROPI&E","Other Operating Income & Expenditure","1CTRADSURDEF","Trading Account Surpluses & Deficits","REV","Revenue","R9551","CLM Maintenance","02-PREMISES","Premises","02A","Repairs, alteration and maintenance of buildings","3026","Minor Maintenance","3771572","202410",13/01/2024 00:00:00,90,"16710","Central Heating - Installation and Servicing","10018364","J R ASHWORTH PLMBING & HTG LTD","",,""
"London Borough of Redbridge","http://opendatacommunities.org/doc/london-borough-council/redbridge","1BOTHEROPI&E","Other Operating Income & Expenditure","1CTRADSURDEF","Trading Account Surpluses & Deficits","REV","Revenue","R9551","CLM Maintenance","02-PREMISES","Premises","02A","Repairs, alteration and maintenance of buildings","3026","Minor Maintenance","3771635","202410",24/01/2024 00:00:00,120,"30045","Electrical Engineers","10026677","COUNTY ELECTRICAL SOLUTIONS LTD","06476990","http://opencorporates.com/companies/gb/06476990","924889474"
"London Borough of Redbridge","http://opendatacommunities.org/doc/london-borough-council/redbridge","1BOTHEROPI&E","Other Operating Income & Expenditure","1CTRADSURDEF","Trading Account Surpluses & Deficits","REV","Revenue","R9551","CLM Maintenance","02-PREMISES","Premises","02A","Repairs, alteration and maintenance of buildings","3026","Minor Maintenance","3771635","202410",24/01/2024 00:00:00,16,"30045","Electrical Engineers","10026677","COUNTY ELECTRICAL SOLUTIONS LTD","06476990","http://opencorporates.com/companies/gb/06476990","924889474"
"London Borough of Redbridge","http://opendatacommunities.org/doc/london-borough-council/redbridge","1BOTHEROPI&E","Other Operating Income & Expenditure","1CTRADSURDEF","Trading Account Surpluses & Deficits","REV","Revenue","R9551","CLM Maintenance","02-PREMISES","Premises","02A","Repairs, alteration and maintenance of buildings","3026","Minor Maintenance","3771636","202410",24/01/2024 00:00:00,162.5,"30045","Electrical Engineers","10026677","COUNTY ELECTRICAL SOLUTIONS LTD","06476990","http://opencorporates.com/companies/gb/06476990","924889474"
"London Borough of Redbridge","http://opendatacommunities.org/doc/london-borough-council/redbridge","1BOTHEROPI&E","Other Operating Income & Expenditure","1CTRADSURDEF","Trading Account Surpluses & Deficits","REV","Revenue","R9551","CLM Maintenance","02-PREMISES","Premises","02A","Repairs, alteration and maintenance of buildings","3026","Minor Maintenance","3771521","202410",07/01/2024 00:00:00,159.38,"16710","Central Heating - Installation and Servicing","10018364","J R ASHWORTH PLMBING & HTG LTD","",,""
"London Borough of Redbridge","http://opendatacommunities.org/doc/london-borough-council/redbridge","1BOTHEROPI&E","Other Operating Income & Expenditure","1CTRADSURDEF","Trading Account Surpluses & Deficits","REV","Revenue","R9551","CLM Maintenance","02-PREMISES","Premises","02A","Repairs, alteration and maintenance of buildings","3026","Minor Maintenance","3771637","202410",24/01/2024 00:00:00,90,"30045","Electrical Engineers","10026677","COUNTY ELECTRICAL SOLUTIONS LTD","06476990","http://opencorporates.com/companies/gb/06476990","924889474"
"London Borough of Redbridge","http://opendatacommunities.org/doc/london-borough-council/redbridge","1BOTHEROPI&E","Other Operating Income & Expenditure","1CTRADSURDEF","Trading Account Surpluses & Deficits","REV","Revenue","R9551","CLM Maintenance","02-PREMISES","Premises","02A","Repairs, alteration and maintenance of buildings","3026","Minor Maintenance","3771637","202410",24/01/2024 00:00:00,0,"30045","Electrical Engineers","10026677","COUNTY ELECTRICAL SOLUTIONS LTD","06476990","http://opencorporates.com/companies/gb/06476990","924889474"
"London Borough of Redbridge","http://opendatacommunities.org/doc/london-borough-council/redbridge","1BOTHEROPI&E","Other Operating Income & Expenditure","1CTRADSURDEF","Trading Account Surpluses & Deficits","REV","Revenue","R9551","CLM Maintenance","02-PREMISES","Premises","02A","Repairs, alteration and maintenance of buildings","3026","Minor Maintenance","3770666","202410",01/01/2024 00:00:00,120,"30045","Electrical Engineers","10026677","COUNTY ELECTRICAL SOLUTIONS LTD","06476990","http://opencorporates.com/companies/gb/06476990","924889474"
"London Borough of Redbridge","http://opendatacommunities.org/doc/london-borough-council/redbridge","1BOTHEROPI&E","Other Operating Income & Expenditure","1CTRADSURDEF","Trading Account Surpluses & Deficits","REV","Revenue","R9551","CLM Maintenance","02-PREMISES","Premises","02A","Repairs, alteration and maintenance of buildings","3026","Minor Maintenance","3770666","202410",01/01/2024 00:00:00,0,"30045","Electrical Engineers","10026677","COUNTY ELECTRICAL SOLUTIONS LTD","06476990","http://opencorporates.com/companies/gb/06476990","924889474"
"London Borough of Redbridge","http://opendatacommunities.org/doc/london-borough-council/redbridge","1BOTHEROPI&E","Other Operating Income & Expenditure","1CTRADSURDEF","Trading Account Surpluses & Deficits","REV","Revenue","R9551","CLM Maintenance","02-PREMISES","Premises","02A","Repairs, alteration and maintenance of buildings","3026","Minor Maintenance","3771636","202410",24/01/2024 00:00:00,0,"30045","Electrical Engineers","10026677","COUNTY ELECTRICAL SOLUTIONS LTD","06476990","http://opencorporates.com/companies/gb/06476990","924889474"
"London Borough of Redbridge","http://opendatacommunities.org/doc/london-borough-council/redbridge","1BOTHEROPI&E","Other Operating Income & Expenditure","1CTRADSURDEF","Trading Account Surpluses & Deficits","REV","Revenue","R9551","CLM Maintenance","02-PREMISES","Premises","02A","Repairs, alteration and maintenance of buildings","3026","Minor Maintenance","3771573","202410",13/01/2024 00:00:00,135,"16710","Central Heating - Installation and Servicing","10018364","J R ASHWORTH PLMBING & HTG LTD","",,""
"London Borough of Redbridge","http://opendatacommunities.org/doc/london-borough-council/redbridge","1BOTHEROPI&E","Other Operating Income & Expenditure","1CTRADSURDEF","Trading Account Surpluses & Deficits","REV","Revenue","R9551","CLM Maintenance","02-PREMISES","Premises","02A","Repairs, alteration and maintenance of buildings","3026","Minor Maintenance","3771638","202410",24/01/2024 00:00:00,400,"30045","Electrical Engineers","10026677","COUNTY ELECTRICAL SOLUTIONS LTD","06476990","http://opencorporates.com/companies/gb/06476990","924889474"
"London Borough of Redbridge","http://opendatacommunities.org/doc/london-borough-council/redbridge","1BOTHEROPI&E","Other Operating Income & Expenditure","1CTRADSURDEF","Trading Account Surpluses & Deficits","REV","Revenue","R9551","CLM Maintenance","02-PREMISES","Premises","02A","Repairs, alteration and maintenance of buildings","3026","Minor Maintenance","3771638","202410",24/01/2024 00:00:00,0,"30045","Electrical Engineers","10026677","COUNTY ELECTRICAL SOLUTIONS LTD","06476990","http://opencorporates.com/companies/gb/06476990","924889474"
"London Borough of Redbridge","http://opendatacommunities.org/doc/london-borough-council/redbridge","1BOTHEROPI&E","Other Operating Income & Expenditure","1CTRADSURDEF","Trading Account Surpluses & Deficits","REV","Revenue","R9551","CLM Maintenance","02-PREMISES","Premises","02A","Repairs, alteration and maintenance of buildings","3026","Minor Maintenance","3771586","202410",15/01/2024 00:00:00,160,"30045","Electrical Engineers","10026677","COUNTY ELECTRICAL SOLUTIONS LTD","06476990","http://opencorporates.com/companies/gb/06476990","924889474"
"London Borough of Redbridge","http://opendatacommunities.org/doc/london-borough-council/redbridge","1BOTHEROPI&E","Other Operating Income & Expenditure","1CTRADSURDEF","Trading Account Surpluses & Deficits","REV","Revenue","R9551","CLM Maintenance","02-PREMISES","Premises","02A","Repairs, alteration and maintenance of buildings","3026","Minor Maintenance","3771591","202410",16/01/2024 00:00:00,160,"30045","Electrical Engineers","10026677","COUNTY ELECTRICAL SOLUTIONS LTD","06476990","http://opencorporates.com/companies/gb/06476990","924889474"
"London Borough of Redbridge","http://opendatacommunities.org/doc/london-borough-council/redbridge","1BOTHEROPI&E","Other Operating Income & Expenditure","1CTRADSURDEF","Trading Account Surpluses & Deficits","REV","Revenue","R9551","CLM Maintenance","02-PREMISES","Premises","02A","Repairs, alteration and maintenance of buildings","3026","Minor Maintenance","3771588","202410",16/01/2024 00:00:00,120,"30045","Electrical Engineers","10026677","COUNTY ELECTRICAL SOLUTIONS LTD","06476990","http://opencorporates.com/companies/gb/06476990","924889474"
"London Borough of Redbridge","http://opendatacommunities.org/doc/london-borough-council/redbridge","1BOTHEROPI&E","Other Operating Income & Expenditure","1CTRADSURDEF","Trading Account Surpluses & Deficits","REV","Revenue","R9551","CLM Maintenance","02-PREMISES","Premises","02A","Repairs, alteration and maintenance of buildings","3026","Minor Maintenance","3771588","202410",16/01/2024 00:00:00,0,"30045","Electrical Engineers","10026677","COUNTY ELECTRICAL SOLUTIONS LTD","06476990","http://opencorporates.com/companies/gb/06476990","924889474"
"London Borough of Redbridge","http://opendatacommunities.org/doc/london-borough-council/redbridge","1BOTHEROPI&E","Other Operating Income & Expenditure","1CTRADSURDEF","Trading Account Surpluses & Deficits","REV","Revenue","R9551","CLM Maintenance","02-PREMISES","Premises","02A","Repairs, alteration and maintenance of buildings","3026","Minor Maintenance","3771631","202410",24/01/2024 00:00:00,200,"30045","Electrical Engineers","10026677","COUNTY ELECTRICAL SOLUTIONS LTD","06476990","http://opencorporates.com/companies/gb/06476990","924889474"
"London Borough of Redbridge","http://opendatacommunities.org/doc/london-borough-council/redbridge","1BOTHEROPI&E","Other Operating Income & Expenditure","1CTRADSURDEF","Trading Account Surpluses & Deficits","REV","Revenue","R9551","CLM Maintenance","02-PREMISES","Premises","02A","Repairs, alteration and maintenance of buildings","3026","Minor Maintenance","3770945","202410",15/01/2024 00:00:00,60,"30045","Electrical Engineers","10026677","COUNTY ELECTRICAL SOLUTIONS LTD","06476990","http://opencorporates.com/companies/gb/06476990","924889474"
"London Borough of Redbridge","http://opendatacommunities.org/doc/london-borough-council/redbridge","1BOTHEROPI&E","Other Operating Income & Expenditure","1CTRADSURDEF","Trading Account Surpluses & Deficits","REV","Revenue","R9551","CLM Maintenance","02-PREMISES","Premises","02A","Repairs, alteration and maintenance of buildings","3026","Minor Maintenance","3770945","202410",15/01/2024 00:00:00,0,"30045","Electrical Engineers","10026677","COUNTY ELECTRICAL SOLUTIONS LTD","06476990","http://opencorporates.com/companies/gb/06476990","924889474"
"London Borough of Redbridge","http://opendatacommunities.org/doc/london-borough-council/redbridge","1BOTHEROPI&E","Other Operating Income & Expenditure","1CTRADSURDEF","Trading Account Surpluses & Deficits","REV","Revenue","R9551","CLM Maintenance","02-PREMISES","Premises","02A","Repairs, alteration and maintenance of buildings","3026","Minor Maintenance","3769785","202410",01/01/2024 00:00:00,120,"30045","Electrical Engineers","10026677","COUNTY ELECTRICAL SOLUTIONS LTD","06476990","http://opencorporates.com/companies/gb/06476990","924889474"
"London Borough of Redbridge","http://opendatacommunities.org/doc/london-borough-council/redbridge","1BOTHEROPI&E","Other Operating Income & Expenditure","1CTRADSURDEF","Trading Account Surpluses & Deficits","REV","Revenue","R9551","CLM Maintenance","02-PREMISES","Premises","02A","Repairs, alteration and maintenance of buildings","3026","Minor Maintenance","3769785","202410",01/01/2024 00:00:00,0,"30045","Electrical Engineers","10026677","COUNTY ELECTRICAL SOLUTIONS LTD","06476990","http://opencorporates.com/companies/gb/06476990","924889474"
"London Borough of Redbridge","http://opendatacommunities.org/doc/london-borough-council/redbridge","1BOTHEROPI&E","Other Operating Income & Expenditure","1CTRADSURDEF","Trading Account Surpluses & Deficits","REV","Revenue","R9551","CLM Maintenance","02-PREMISES","Premises","02A","Repairs, alteration and maintenance of buildings","3026","Minor Maintenance","3771519","202410",07/01/2024 00:00:00,90,"16710","Central Heating - Installation and Servicing","10018364","J R ASHWORTH PLMBING & HTG LTD","",,""
"London Borough of Redbridge","http://opendatacommunities.org/doc/london-borough-council/redbridge","1BOTHEROPI&E","Other Operating Income & Expenditure","1CTRADSURDEF","Trading Account Surpluses & Deficits","REV","Revenue","R9551","CLM Maintenance","02-PREMISES","Premises","02A","Repairs, alteration and maintenance of buildings","3026","Minor Maintenance","3771520","202410",07/01/2024 00:00:00,169.6,"16710","Central Heating - Installation and Servicing","10018364","J R ASHWORTH PLMBING & HTG LTD","",,""
"London Borough of Redbridge","http://opendatacommunities.org/doc/london-borough-council/redbridge","1BOTHEROPI&E","Other Operating Income & Expenditure","1CTRADSURDEF","Trading Account Surpluses & Deficits","REV","Revenue","R9551","CLM Maintenance","02-PREMISES","Premises","02A","Repairs, alteration and maintenance of buildings","3026","Minor Maintenance","3770931","202410",15/01/2024 00:00:00,120,"30045","Electrical Engineers","10026677","COUNTY ELECTRICAL SOLUTIONS LTD","06476990","http://opencorporates.com/companies/gb/06476990","924889474"
"London Borough of Redbridge","http://opendatacommunities.org/doc/london-borough-council/redbridge","1BOTHEROPI&E","Other Operating Income & Expenditure","1CTRADSURDEF","Trading Account Surpluses & Deficits","REV","Revenue","R9551","CLM Maintenance","02-PREMISES","Premises","02A","Repairs, alteration and maintenance of buildings","3026","Minor Maintenance","3770885","202410",01/01/2024 00:00:00,400,"30045","Electrical Engineers","10026677","COUNTY ELECTRICAL SOLUTIONS LTD","06476990","http://opencorporates.com/companies/gb/06476990","924889474"
"London Borough of Redbridge","http://opendatacommunities.org/doc/london-borough-council/redbridge","1BOTHEROPI&E","Other Operating Income & Expenditure","1CTRADSURDEF","Trading Account Surpluses & Deficits","REV","Revenue","R9551","CLM Maintenance","02-PREMISES","Premises","02A","Repairs, alteration and maintenance of buildings","3026","Minor Maintenance","3770885","202410",01/01/2024 00:00:00,0,"30045","Electrical Engineers","10026677","COUNTY ELECTRICAL SOLUTIONS LTD","06476990","http://opencorporates.com/companies/gb/06476990","924889474"
"London Borough of Redbridge","http://opendatacommunities.org/doc/london-borough-council/redbridge","1BOTHEROPI&E","Other Operating Income & Expenditure","1CTRADSURDEF","Trading Account Surpluses & Deficits","REV","Revenue","R9551","CLM Maintenance","02-PREMISES","Premises","02A","Repairs, alteration and maintenance of buildings","3026","Minor Maintenance","3770931","202410",15/01/2024 00:00:00,10,"30045","Electrical Engineers","10026677","COUNTY ELECTRICAL SOLUTIONS LTD","06476990","http://opencorporates.com/companies/gb/06476990","924889474"
"London Borough of Redbridge","http://opendatacommunities.org/doc/london-borough-council/redbridge","1BOTHEROPI&E","Other Operating Income & Expenditure","1CTRADSURDEF","Trading Account Surpluses & Deficits","REV","Revenue","R9551","CLM Maintenance","02-PREMISES","Premises","02A","Repairs, alteration and maintenance of buildings","3026","Minor Maintenance","3771631","202410",24/01/2024 00:00:00,30,"30045","Electrical Engineers","10026677","COUNTY ELECTRICAL SOLUTIONS LTD","06476990","http://opencorporates.com/companies/gb/06476990","924889474"
"London Borough of Redbridge","http://opendatacommunities.org/doc/london-borough-council/redbridge","1BOTHEROPI&E","Other Operating Income & Expenditure","1CTRADSURDEF","Trading Account Surpluses & Deficits","REV","Revenue","R9551","CLM Maintenance","02-PREMISES","Premises","02A","Repairs, alteration and maintenance of buildings","3026","Minor Maintenance","3771634","202410",24/01/2024 00:00:00,120,"30045","Electrical Engineers","10026677","COUNTY ELECTRICAL SOLUTIONS LTD","06476990","http://opencorporates.com/companies/gb/06476990","924889474"
"London Borough of Redbridge","http://opendatacommunities.org/doc/london-borough-council/redbridge","1BOTHEROPI&E","Other Operating Income & Expenditure","1CTRADSURDEF","Trading Account Surpluses & Deficits","REV","Revenue","R9551","CLM Maintenance","02-PREMISES","Premises","02A","Repairs, alteration and maintenance of buildings","3026","Minor Maintenance","3771634","202410",24/01/2024 00:00:00,0,"30045","Electrical Engineers","10026677","COUNTY ELECTRICAL SOLUTIONS LTD","06476990","http://opencorporates.com/companies/gb/06476990","924889474"
"London Borough of Redbridge","http://opendatacommunities.org/doc/london-borough-council/redbridge","1BOTHEROPI&E","Other Operating Income & Expenditure","1CTRADSURDEF","Trading Account Surpluses & Deficits","REV","Revenue","R9551","CLM Maintenance","02-PREMISES","Premises","02A","Repairs, alteration and maintenance of buildings","3026","Minor Maintenance","3771518","202410",07/01/2024 00:00:00,353.2,"16710","Central Heating - Installation and Servicing","10018364","J R ASHWORTH PLMBING & HTG LTD","",,""
"London Borough of Redbridge","http://opendatacommunities.org/doc/london-borough-council/redbridge","1BOTHEROPI&E","Other Operating Income & Expenditure","1CTRADSURDEF","Trading Account Surpluses & Deficits","REV","Revenue","R9551","CLM Maintenance","02-PREMISES","Premises","02A","Repairs, alteration and maintenance of buildings","3026","Minor Maintenance","3771589","202410",16/01/2024 00:00:00,120,"30045","Electrical Engineers","10026677","COUNTY ELECTRICAL SOLUTIONS LTD","06476990","http://opencorporates.com/companies/gb/06476990","924889474"
"London Borough of Redbridge","http://opendatacommunities.org/doc/london-borough-council/redbridge","1BOTHEROPI&E","Other Operating Income & Expenditure","1CTRADSURDEF","Trading Account Surpluses & Deficits","REV","Revenue","R9551","CLM Maintenance","02-PREMISES","Premises","02A","Repairs, alteration and maintenance of buildings","3026","Minor Maintenance","3771589","202410",16/01/2024 00:00:00,35,"30045","Electrical Engineers","10026677","COUNTY ELECTRICAL SOLUTIONS LTD","06476990","http://opencorporates.com/companies/gb/06476990","924889474"
"London Borough of Redbridge","http://opendatacommunities.org/doc/london-borough-council/redbridge","1BOTHEROPI&E","Other Operating Income & Expenditure","1CTRADSURDEF","Trading Account Surpluses & Deficits","REV","Revenue","R9551","CLM Maintenance","02-PREMISES","Premises","02A","Repairs, alteration and maintenance of buildings","3026","Minor Maintenance","3770667","202410",01/01/2024 00:00:00,140,"30045","Electrical Engineers","10026677","COUNTY ELECTRICAL SOLUTIONS LTD","06476990","http://opencorporates.com/companies/gb/06476990","924889474"
"London Borough of Redbridge","http://opendatacommunities.org/doc/london-borough-council/redbridge","1BOTHEROPI&E","Other Operating Income & Expenditure","1CTRADSURDEF","Trading Account Surpluses & Deficits","REV","Revenue","R9551","CLM Maintenance","02-PREMISES","Premises","02A","Repairs, alteration and maintenance of buildings","3026","Minor Maintenance","3770667","202410",01/01/2024 00:00:00,54.22,"30045","Electrical Engineers","10026677","COUNTY ELECTRICAL SOLUTIONS LTD","06476990","http://opencorporates.com/companies/gb/06476990","924889474"
"London Borough of Redbridge","http://opendatacommunities.org/doc/london-borough-council/redbridge","1BOTHEROPI&E","Other Operating Income & Expenditure","1CTRADSURDEF","Trading Account Surpluses & Deficits","REV","Revenue","R9551","CLM Maintenance","02-PREMISES","Premises","02A","Repairs, alteration and maintenance of buildings","3026","Minor Maintenance","3771594","202410",16/01/2024 00:00:00,180,"57130","Pest and Vermin Control Products","10015865","RAPTOR SERVICES LTD (SOUTH EAST) LTD","06624216","http://opencorporates.com/companies/gb/06624216","650089346"
"London Borough of Redbridge","http://opendatacommunities.org/doc/london-borough-council/redbridge","1BOTHEROPI&E","Other Operating Income & Expenditure","1CTRADSURDEF","Trading Account Surpluses & Deficits","REV","Revenue","R9551","CLM Maintenance","02-PREMISES","Premises","02A","Repairs, alteration and maintenance of buildings","3026","Minor Maintenance","3771591","202410",16/01/2024 00:00:00,35,"30045","Electrical Engineers","10026677","COUNTY ELECTRICAL SOLUTIONS LTD","06476990","http://opencorporates.com/companies/gb/06476990","924889474"
"London Borough of Redbridge","http://opendatacommunities.org/doc/london-borough-council/redbridge","1BOTHEROPI&E","Other Operating Income & Expenditure","1CTRADSURDEF","Trading Account Surpluses & Deficits","REV","Revenue","R9551","CLM Maintenance","02-PREMISES","Premises","02A","Repairs, alteration and maintenance of buildings","3026","Minor Maintenance","3771585","202410",15/01/2024 00:00:00,120,"30045","Electrical Engineers","10026677","COUNTY ELECTRICAL SOLUTIONS LTD","06476990","http://opencorporates.com/companies/gb/06476990","924889474"
"London Borough of Redbridge","http://opendatacommunities.org/doc/london-borough-council/redbridge","1BOTHEROPI&E","Other Operating Income & Expenditure","1CTRADSURDEF","Trading Account Surpluses & Deficits","REV","Revenue","R9551","CLM Maintenance","02-PREMISES","Premises","02A","Repairs, alteration and maintenance of buildings","3026","Minor Maintenance","3771585","202410",15/01/2024 00:00:00,15,"30045","Electrical Engineers","10026677","COUNTY ELECTRICAL SOLUTIONS LTD","06476990","http://opencorporates.com/companies/gb/06476990","924889474"
"London Borough of Redbridge","http://opendatacommunities.org/doc/london-borough-council/redbridge","1BOTHEROPI&E","Other Operating Income & Expenditure","1CTRADSURDEF","Trading Account Surpluses & Deficits","REV","Revenue","R9551","CLM Maintenance","02-PREMISES","Premises","02A","Repairs, alteration and maintenance of buildings","3026","Minor Maintenance","3771592","202410",16/01/2024 00:00:00,160,"30045","Electrical Engineers","10026677","COUNTY ELECTRICAL SOLUTIONS LTD","06476990","http://opencorporates.com/companies/gb/06476990","924889474"
"London Borough of Redbridge","http://opendatacommunities.org/doc/london-borough-council/redbridge","1BOTHEROPI&E","Other Operating Income & Expenditure","1CTRADSURDEF","Trading Account Surpluses & Deficits","REV","Revenue","R9551","CLM Maintenance","02-PREMISES","Premises","02A","Repairs, alteration and maintenance of buildings","3026","Minor Maintenance","3771592","202410",16/01/2024 00:00:00,245,"30045","Electrical Engineers","10026677","COUNTY ELECTRICAL SOLUTIONS LTD","06476990","http://opencorporates.com/companies/gb/06476990","924889474"
"London Borough of Redbridge","http://opendatacommunities.org/doc/london-borough-council/redbridge","1BOTHEROPI&E","Other Operating Income & Expenditure","1CTRADSURDEF","Trading Account Surpluses & Deficits","REV","Revenue","R9551","CLM Maintenance","02-PREMISES","Premises","02A","Repairs, alteration and maintenance of buildings","3026","Minor Maintenance","3771593","202410",16/01/2024 00:00:00,0,"30045","Electrical Engineers","10026677","COUNTY ELECTRICAL SOLUTIONS LTD","06476990","http://opencorporates.com/companies/gb/06476990","924889474"
"London Borough of Redbridge","http://opendatacommunities.org/doc/london-borough-council/redbridge","1BOTHEROPI&E","Other Operating Income & Expenditure","1CTRADSURDEF","Trading Account Surpluses & Deficits","REV","Revenue","R9551","CLM Maintenance","02-PREMISES","Premises","02A","Repairs, alteration and maintenance of buildings","3026","Minor Maintenance","3771593","202410",16/01/2024 00:00:00,150,"30045","Electrical Engineers","10026677","COUNTY ELECTRICAL SOLUTIONS LTD","06476990","http://opencorporates.com/companies/gb/06476990","924889474"
"London Borough of Redbridge","http://opendatacommunities.org/doc/london-borough-council/redbridge","1BOTHEROPI&E","Other Operating Income & Expenditure","1CTRADSURDEF","Trading Account Surpluses & Deficits","REV","Revenue","R9551","CLM Maintenance","02-PREMISES","Premises","02A","Repairs, alteration and maintenance of buildings","3026","Minor Maintenance","3771567","202410",13/01/2024 00:00:00,139.2,"16710","Central Heating - Installation and Servicing","10018364","J R ASHWORTH PLMBING & HTG LTD","",,""
"London Borough of Redbridge","http://opendatacommunities.org/doc/london-borough-council/redbridge","1BOTHEROPI&E","Other Operating Income & Expenditure","1CTRADSURDEF","Trading Account Surpluses & Deficits","REV","Revenue","R9551","CLM Maintenance","02-PREMISES","Premises","02A","Repairs, alteration and maintenance of buildings","3026","Minor Maintenance","3771586","202410",15/01/2024 00:00:00,45,"30045","Electrical Engineers","10026677","COUNTY ELECTRICAL SOLUTIONS LTD","06476990","http://opencorporates.com/companies/gb/06476990","924889474"
"London Borough of Redbridge","http://opendatacommunities.org/doc/london-borough-council/redbridge","1BOTHEROPI&E","Other Operating Income & Expenditure","1CTRADSURDEF","Trading Account Surpluses & Deficits","REV","Revenue","R9551","CLM Maintenance","02-PREMISES","Premises","02A","Repairs, alteration and maintenance of buildings","3026","Minor Maintenance","3771579","202410",14/01/2024 00:00:00,90,"16710","Central Heating - Installation and Servicing","10018364","J R ASHWORTH PLMBING & HTG LTD","",,""
"London Borough of Redbridge","http://opendatacommunities.org/doc/london-borough-council/redbridge","1BOTHEROPI&E","Other Operating Income & Expenditure","1CTRADSURDEF","Trading Account Surpluses & Deficits","REV","Revenue","R9551","CLM Maintenance","02-PREMISES","Premises","02A","Repairs, alteration and maintenance of buildings","3026","Minor Maintenance","3771505","202410",02/01/2024 00:00:00,166.66,"26625","Do It Yourself Wholesalers","10016910","SCREWFIX DIRECT LIMITED T/A TRADE UK","3006378","http://opencorporates.com/companies/gb/3006378","232555575"
"London Borough of Redbridge","http://opendatacommunities.org/doc/london-borough-council/redbridge","1BOTHEROPI&E","Other Operating Income & Expenditure","1CTRADSURDEF","Trading Account Surpluses & Deficits","REV","Revenue","R9551","CLM Maintenance","02-PREMISES","Premises","02A","Repairs, alteration and maintenance of buildings","3026","Minor Maintenance","3771506","202410",02/01/2024 00:00:00,30.77,"26625","Do It Yourself Wholesalers","10016910","SCREWFIX DIRECT LIMITED T/A TRADE UK","3006378","http://opencorporates.com/companies/gb/3006378","232555575"
"London Borough of Redbridge","http://opendatacommunities.org/doc/london-borough-council/redbridge","1BOTHEROPI&E","Other Operating Income & Expenditure","1CTRADSURDEF","Trading Account Surpluses & Deficits","REV","Revenue","R9551","CLM Maintenance","02-PREMISES","Premises","02A","Repairs, alteration and maintenance of buildings","3026","Minor Maintenance","3769760","202410",20/12/2023 00:00:00,32.74,"26625","Do It Yourself Wholesalers","10016910","SCREWFIX DIRECT LIMITED T/A TRADE UK","3006378","http://opencorporates.com/companies/gb/3006378","232555575"
"London Borough of Redbridge","http://opendatacommunities.org/doc/london-borough-council/redbridge","1BOTHEROPI&E","Other Operating Income & Expenditure","1CTRADSURDEF","Trading Account Surpluses & Deficits","REV","Revenue","R9551","CLM Maintenance","02-PREMISES","Premises","02A","Repairs, alteration and maintenance of buildings","3026","Minor Maintenance","3769762","202410",20/12/2023 00:00:00,12.73,"26625","Do It Yourself Wholesalers","10016910","SCREWFIX DIRECT LIMITED T/A TRADE UK","3006378","http://opencorporates.com/companies/gb/3006378","232555575"
"London Borough of Redbridge","http://opendatacommunities.org/doc/london-borough-council/redbridge","1BOTHEROPI&E","Other Operating Income & Expenditure","1CTRADSURDEF","Trading Account Surpluses & Deficits","REV","Revenue","R9551","CLM Maintenance","02-PREMISES","Premises","02A","Repairs, alteration and maintenance of buildings","3026","Minor Maintenance","3769763","202410",20/12/2023 00:00:00,8.4,"26625","Do It Yourself Wholesalers","10016910","SCREWFIX DIRECT LIMITED T/A TRADE UK","3006378","http://opencorporates.com/companies/gb/3006378","232555575"
"London Borough of Redbridge","http://opendatacommunities.org/doc/london-borough-council/redbridge","1BOTHEROPI&E","Other Operating Income & Expenditure","1CTRADSURDEF","Trading Account Surpluses & Deficits","REV","Revenue","R9551","CLM Maintenance","02-PREMISES","Premises","02A","Repairs, alteration and maintenance of buildings","3026","Minor Maintenance","3771616","202410",18/01/2024 00:00:00,120.79,"26625","Do It Yourself Wholesalers","10016910","SCREWFIX DIRECT LIMITED T/A TRADE UK","3006378","http://opencorporates.com/companies/gb/3006378","232555575"
"London Borough of Redbridge","http://opendatacommunities.org/doc/london-borough-council/redbridge","1BOTHEROPI&E","Other Operating Income & Expenditure","1CTRADSURDEF","Trading Account Surpluses & Deficits","REV","Revenue","R9551","CLM Maintenance","02-PREMISES","Premises","02A","Repairs, alteration and maintenance of buildings","3026","Minor Maintenance","3771630","202410",22/01/2024 00:00:00,1.13,"26625","Do It Yourself Wholesalers","10016910","SCREWFIX DIRECT LIMITED T/A TRADE UK","3006378","http://opencorporates.com/companies/gb/3006378","232555575"
"London Borough of Redbridge","http://opendatacommunities.org/doc/london-borough-council/redbridge","1BOTHEROPI&E","Other Operating Income & Expenditure","1CTRADSURDEF","Trading Account Surpluses & Deficits","REV","Revenue","R9551","CLM Maintenance","02-PREMISES","Premises","02A","Repairs, alteration and maintenance of buildings","3026","Minor Maintenance","3771596","202410",15/01/2024 00:00:00,291.66,"26625","Do It Yourself Wholesalers","10016910","SCREWFIX DIRECT LIMITED T/A TRADE UK","3006378","http://opencorporates.com/companies/gb/3006378","232555575"
"London Borough of Redbridge","http://opendatacommunities.org/doc/london-borough-council/redbridge","1BOTHEROPI&E","Other Operating Income & Expenditure","1CTRADSURDEF","Trading Account Surpluses & Deficits","REV","Revenue","R9551","CLM Maintenance","02-PREMISES","Premises","02A","Repairs, alteration and maintenance of buildings","3026","Minor Maintenance","3771561","202410",10/01/2024 00:00:00,9.58,"26625","Do It Yourself Wholesalers","10016910","SCREWFIX DIRECT LIMITED T/A TRADE UK","3006378","http://opencorporates.com/companies/gb/3006378","232555575"
"London Borough of Redbridge","http://opendatacommunities.org/doc/london-borough-council/redbridge","1BOTHEROPI&E","Other Operating Income & Expenditure","1CTRADSURDEF","Trading Account Surpluses & Deficits","REV","Revenue","R9551","CLM Maintenance","02-PREMISES","Premises","02A","Repairs, alteration and maintenance of buildings","3026","Minor Maintenance","3769751","202410",22/12/2023 00:00:00,-4.16,"26625","Do It Yourself Wholesalers","10016910","SCREWFIX DIRECT LIMITED T/A TRADE UK","3006378","http://opencorporates.com/companies/gb/3006378","232555575"
"London Borough of Redbridge","http://opendatacommunities.org/doc/london-borough-council/redbridge","1BOTHEROPI&E","Other Operating Income & Expenditure","1CTRADSURDEF","Trading Account Surpluses & Deficits","REV","Revenue","R9551","CLM Maintenance","02-PREMISES","Premises","02A","Repairs, alteration and maintenance of buildings","3026","Minor Maintenance","3769752","202410",22/12/2023 00:00:00,-10.49,"26625","Do It Yourself Wholesalers","10016910","SCREWFIX DIRECT LIMITED T/A TRADE UK","3006378","http://opencorporates.com/companies/gb/3006378","232555575"
"London Borough of Redbridge","http://opendatacommunities.org/doc/london-borough-council/redbridge","1BOTHEROPI&E","Other Operating Income & Expenditure","1CTRADSURDEF","Trading Account Surpluses & Deficits","REV","Revenue","R9551","CLM Maintenance","02-PREMISES","Premises","02A","Repairs, alteration and maintenance of buildings","3026","Minor Maintenance","3771557","202410",09/01/2024 00:00:00,63.71,"26625","Do It Yourself Wholesalers","10016910","SCREWFIX DIRECT LIMITED T/A TRADE UK","3006378","http://opencorporates.com/companies/gb/3006378","232555575"
"London Borough of Redbridge","http://opendatacommunities.org/doc/london-borough-council/redbridge","1BOTHEROPI&E","Other Operating Income & Expenditure","1CTRADSURDEF","Trading Account Surpluses & Deficits","REV","Revenue","R9551","CLM Maintenance","02-PREMISES","Premises","02A","Repairs, alteration and maintenance of buildings","3026","Minor Maintenance","3769791","202410",29/12/2023 00:00:00,24.17,"26625","Do It Yourself Wholesalers","10016910","SCREWFIX DIRECT LIMITED T/A TRADE UK","3006378","http://opencorporates.com/companies/gb/3006378","232555575"
